Workbook

Sheet Instructions
A1: Purpose
A2: This spreadsheet allows estimation of the costs and benefits of implementing dual-fuel industrial process heat facilities - ie, electricity heating (electro boiler or heat pump) plus a combustion boiler.
A3: It models the overall costs from single-fuel operation (both entirely electric, or entirely combustion fuel - whether that be gas, coal or biomass), and compares them with the costs from dual-fuel operation.
A4: When calculating the costs from dual-fuel operation, it models which fuel will be cheapest on an hour-by-hour basis across the pattern of electricity prices that are likely to be experienced in the future, taking into account the likely variation in cost of the combustion fuel from operating in dual fuel mode.
A5: It allows for exploration of the impact of variations in the patterns in industrial energy demand (eg, 24/7 versus 9-to-5, or within-year variations), as well as variations in the average level of electricity and combustion fuels as well as the 'shape' of prices of such fuels.
A7: Structure of model
A8: The model is comprised of a small number of tab, as follows:
A9: Ctrl | B9: This tab is where the user specifies the various characterstics of the industrial site (size and pattern of heat load), and various defining parameters for the fuel prices
A10: Assump | B10: This contains a number of constants and input assumptions. The demand shape and network price input assumptions have some pre-specified values, but there are also some 'spare' spaces where a user can specify bespoke values that can be called up for use in the model.
A11: ePrice | B11: This contains the database of different electricity price profiles to represent likely patterns of prices in a highly-renewable electricity system. The user specifies in the Ctrl tab which pattern of prices to use.
A12: Calc | B12: This tab undertakes the hour-by-hour calculation of which fuel is cheapest to use when the model is in dual-fuel operation. The model does this evaluation for three different decision time-frames: 1) If the decision can be made on an hour-by-hour basis. 2) If the decision needs to be made on a day-by-day basis, based on which fuel is cheapest on average over the whole day. 3) If the decision needs to be made on a week-by-week basis, based on which fuel is cheapest on average over the whole week. These latter two modes reflect the fact that some industrial sites may not have the flexibility to dynamically switch between fuels on an hour-by-hour basis.
A13: Out | B13: This tab presents the results of the various calculations, highlighting the overall costs and benefits of the different modes of operation, taking into account the fuel costs (including any network costs), plus capital and non-fuel operating costs.
A14: Potential | B14: This tab contains some stand-alone analyses for the potential for dual fuel operation and its impact on the need for fossil generation. It is not used in any part of the model and could be deleted by EECA before releasing the model to external parties
A16: Operating the model
A17: The model uses a visual basic macro, so when the model is first opened, the user should specify that macros are enabled.
A19: The user must specify the various characterstics of the site and fuel prices in the Ctrl tab and Assump tab.
A20: This is either achieved through the use of pull-down menus, or through entering values in green-shaded cells. The parameters that need to be specified are:
A21: Site characteristics
B22: The combustion fuel to compare against electricity, selected by a drop-down menu.
B23: The peak heat load requirement, and the pattern of demand, the latter selected through the use of drop-down menus. If an appropriate demand pattern is not already specified, the user can input a bespoke demand pattern in one of the 'spare' rows in the Assump tab and give the pattern an appropriate name.
B24: The coefficients of performance for the electric and combustion fuel options.
A25: Network prices
B26: This is specified by using a drop-down menu to choose which network prices to choose for the electricity and (if appropriate) the gas option. If a particular set of network prices aren't already saved, the user can input a bespoke set of network prices in the Assump tab, and give the network prices an appropriate name.
B27: Note: A network price for the combustion fuel only needs to be specified if the combustion fuel is gas, not if it is coal or biomass.
A28: Fuel prices
B29: The user needs to specify the scenario the shape of electricity prices, as well as the time-weighted average electricity price.
B30: For the combustion fuel, the user needs to specify the baseload fuel price, as well as parameters which will estimate how the $/GJ price of the fuel will increase at progressively lower capacity factors. The exception is for gas where there is a drop-down option which also allows for an alternative approach to be used to calculate the gas price, based on the observed historical relationship between gas prices and electricity prices
B31: After specifying the fuel price parameters, and the network prices, the user should hit the button labelled 'Calculate combustion fuel price'. This will perform the iteration which determines the stable capacity factor of operation and associated fuel price, noting there is a circularity between combustion fuel price and capacity factor of operation
A32: Other non-fuel costs and financial evaluation specifications
B33: The user needs to specify the non-fuel electric and combustion fuel appliance costs
B34: Additionally, the user needs to specify the parameters to perform the overall present value calculation comparing the single fuel and dual fuel options.
A36: The subsequent output from the model is in the Out tab. This details:
B37: The optimal operating patterns (expressed in capacity factors for each of the fuels)
B38: The wholesale and network costs for the different fuels for the different site configurations, split between the different cost components. This is expressed in $k, plus reported on a $/MWh or $/GJ basis for reporting purposes, including variablising fixed costs for such reporting purposes.
B39: The non-fuel appliance costs of the different options, plus an overall evaluation of the present value of the different cost components for the different configurations.

Sheet Assump
A1: This tab contains various inputs to the model
A2: Constants
A3: Days in yr | B3: 365.24 | D3: GJ per MWh | E3: 3.6 | G3: MJ per scm of gas | H3: 37 | K3: List of non-electric fuels that can be evaluated
A4: Hrs in yr | B4: =Days_in_yr*Hrs_in_dy -> 8765.76 | D4: Gas emissions factor (tCO2/GJ) | E4: 0.053 | K4: Gas | N4: 1) Derive from specified baseload price and fuel flexibility shape, plus carbon price | O4: =IF(Other_fuel="Gas",N4,"NA for "&Other_fuel) -> 1) Derive from specified baseload price and fuel flexibility shape, plus carbon price
A5: Mths in yr | B5: 12 | D5: Coal emisisons (tCO2/GJ) | E5: 0.0891 | K5: Coal | N5: 2) Based on observed historical relationship between electricity price and gas prices | O5: =IF(Other_fuel="Gas",N5,"NA for "&Other_fuel) -> 2) Based on observed historical relationship between electricity price and gas prices
A6: Hrs in dy | B6: 24 | D6: Biomass emissions factor (tCO2/GJ) | E6: 0 | K6: Biomass
A8: Demand profiles (as % of max demand)
A9: Within-year
C10: Month
B11: Season: | C11: Sum | D11: Sum | E11: Shl | F11: Shl | G11: Shl | H11: Win | I11: Win | J11: Win | K11: Shl | L11: Shl | M11: Sum | N11: Sum
A12: Scen # | B12: Sc Name | C12: 1 | D12: 2 | E12: 3 | F12: 4 | G12: 5 | H12: 6 | I12: 7 | J12: 8 | K12: 9 | L12: 10 | M12: 11 | N12: 12
A13: 1 | B13: Flat | C13: 1 | D13: 1 | E13: 1 | F13: 1 | G13: 1 | H13: 1 | I13: 1 | J13: 1 | K13: 1 | L13: 1 | M13: 1 | N13: 1
A14: 2 | B14: Winter peaking | C14: 0 | D14: 0.15 | E14: 0.35 | F14: 0.5 | G14: 0.9 | H14: 1 | I14: 1 | J14: 0.9 | K14: 0.5 | L14: 0.35 | M14: 0.15 | N14: 0
A15: 3 | B15: Dairy | C15: 0.6404783353 | D15: 0.5373455414 | E15: 0.5012225823 | F15: 0.5538072647 | G15: 0.4120529011 | H15: 0.2056918308 | I15: 0.2663101963 | J15: 0.6990424916 | K15: 0.956434829 | L15: 1 | M15: 0.9345964772 | N15: 0.8008351658
A16: 4 | B16: Spare A
A17: 5 | B17: Spare B
A18: 6 | B18: Spare C
A19: 7 | B19: Spare D
A20: 8 | B20: Spare E
A21: 9 | B21: Spare F
A22: 10 | B22: Spare G
A23: 11 | B23: Spare H
A24: 12 | B24: Spare I
A25: 13 | B25: Spare J
A26: 14 | B26: Spare K
A27: 15 | B27: Spare L
A28: 16 | B28: Spare M
A29: B B B B B B | B29: B B B B B B | C29: B B B B B B | D29: B B B B B B | E29: B B B B B B | F29: B B B B B B | G29: B B B B B B | H29: B B B B B B | I29: B B B B B B | J29: B B B B B B | K29: B B B B B B | L29: B B B B B B | M29: B B B B B B | N29: B B B B B B | O29: Max Sum | P29: Max Win
A30: 3 | B30: Chosen | C30: =INDEX(C$13:C$29,Prof_WY) -> 0.6404783353 | D30: =INDEX(D$13:D$29,Prof_WY) -> 0.5373455414 | E30: =INDEX(E$13:E$29,Prof_WY) -> 0.5012225823 | F30: =INDEX(F$13:F$29,Prof_WY) -> 0.5538072647 | G30: =INDEX(G$13:G$29,Prof_WY) -> 0.4120529011 | H30: =INDEX(H$13:H$29,Prof_WY) -> 0.2056918308 | I30: =INDEX(I$13:I$29,Prof_WY) -> 0.2663101963 | J30: =INDEX(J$13:J$29,Prof_WY) -> 0.6990424916 | K30: =INDEX(K$13:K$29,Prof_WY) -> 0.956434829 | L30: =INDEX(L$13:L$29,Prof_WY) -> 1 | M30: =INDEX(M$13:M$29,Prof_WY) -> 0.9345964772 | N30: =INDEX(N$13:N$29,Prof_WY) -> 0.8008351658 | O30: =MAX(C30:F30,L30:N30) -> 1 | P30: =MAX(G30:K30) -> 0.956434829
A32: Within-day/week
B33: Day of week | C33: 1 | D33: 2 | E33: 3 | F33: 4 | G33: 5 | H33: 6 | I33: 7
B34: WD/WE | C34: WD | D34: WD | E34: WD | F34: WD | G34: WD | H34: WE | I34: WE
B36: Day of week | C36: 1 | D36: 1 | E36: 1 | F36: 1 | G36: 1 | H36: 1 | I36: 1 | J36: 1 | K36: 1 | L36: 1 | M36: 1 | N36: 1 | O36: 1 | P36: 1 | Q36: 1 | R36: 1 | S36: 1 | T36: 1 | U36: 1 | V36: 1 | W36: 1 | X36: 1 | Y36: 1 | Z36: 1 | AA36: 2 | AB36: 2 | AC36: 2 | AD36: 2 | AE36: 2 | AF36: 2 | AG36: 2 | AH36: 2 | AI36: 2 | AJ36: 2 | AK36: 2 | AL36: 2 | AM36: 2 | AN36: 2 | AO36: 2 | AP36: 2 | AQ36: 2 | AR36: 2 | AS36: 2 | AT36: 2 | AU36: 2 | AV36: 2 | AW36: 2 | AX36: 2 | AY36: 3 | AZ36: 3 | BA36: 3 | BB36: 3 | BC36: 3 | BD36: 3 | BE36: 3 | BF36: 3 | BG36: 3 | BH36: 3 | BI36: 3 | BJ36: 3 | BK36: 3 | BL36: 3 | BM36: 3 | BN36: 3 | BO36: 3 | BP36: 3 | BQ36: 3 | BR36: 3 | BS36: 3 | BT36: 3 | BU36: 3 | BV36: 3 | BW36: 4 | BX36: 4 | BY36: 4 | BZ36: 4 | CA36: 4 | CB36: 4 | CC36: 4 | CD36: 4 | CE36: 4 | CF36: 4 | CG36: 4 | CH36: 4 | CI36: 4 | CJ36: 4 | CK36: 4 | CL36: 4 | CM36: 4 | CN36: 4 | CO36: 4 | CP36: 4 | CQ36: 4 | CR36: 4 | CS36: 4 | CT36: 4 | CU36: 5 | CV36: 5 | CW36: 5 | CX36: 5 | CY36: 5 | CZ36: 5 | DA36: 5 | DB36: 5 | DC36: 5 | DD36: 5 | DE36: 5 | DF36: 5 | DG36: 5 | DH36: 5 | DI36: 5 | DJ36: 5 | DK36: 5 | DL36: 5 | DM36: 5 | DN36: 5 | DO36: 5 | DP36: 5 | DQ36: 5 | DR36: 5 | DS36: 6 | DT36: 6 | DU36: 6 | DV36: 6 | DW36: 6 | DX36: 6 | DY36: 6 | DZ36: 6 | EA36: 6 | EB36: 6 | EC36: 6 | ED36: 6 | EE36: 6 | EF36: 6 | EG36: 6 | EH36: 6 | EI36: 6 | EJ36: 6 | EK36: 6 | EL36: 6 | EM36: 6 | EN36: 6 | EO36: 6 | EP36: 6 | EQ36: 7 | ER36: 7 | ES36: 7 | ET36: 7 | EU36: 7 | EV36: 7 | EW36: 7 | EX36: 7 | EY36: 7 | EZ36: 7 | FA36: 7 | FB36: 7 | FC36: 7 | FD36: 7 | FE36: 7 | FF36: 7 | FG36: 7 | FH36: 7 | FI36: 7 | FJ36: 7 | FK36: 7 | FL36: 7 | FM36: 7 | FN36: 7
B37: Hr | C37: 1 | D37: 2 | E37: 3 | F37: 4 | G37: 5 | H37: 6 | I37: 7 | J37: 8 | K37: 9 | L37: 10 | M37: 11 | N37: 12 | O37: 13 | P37: 14 | Q37: 15 | R37: 16 | S37: 17 | T37: 18 | U37: 19 | V37: 20 | W37: 21 | X37: 22 | Y37: 23 | Z37: 24 | AA37: 1 | AB37: 2 | AC37: 3 | AD37: 4 | AE37: 5 | AF37: 6 | AG37: 7 | AH37: 8 | AI37: 9 | AJ37: 10 | AK37: 11 | AL37: 12 | AM37: 13 | AN37: 14 | AO37: 15 | AP37: 16 | AQ37: 17 | AR37: 18 | AS37: 19 | AT37: 20 | AU37: 21 | AV37: 22 | AW37: 23 | AX37: 24 | AY37: 1 | AZ37: 2 | BA37: 3 | BB37: 4 | BC37: 5 | BD37: 6 | BE37: 7 | BF37: 8 | BG37: 9 | BH37: 10 | BI37: 11 | BJ37: 12 | BK37: 13 | BL37: 14 | BM37: 15 | BN37: 16 | BO37: 17 | BP37: 18 | BQ37: 19 | BR37: 20 | BS37: 21 | BT37: 22 | BU37: 23 | BV37: 24 | BW37: 1 | BX37: 2 | BY37: 3 | BZ37: 4 | CA37: 5 | CB37: 6 | CC37: 7 | CD37: 8 | CE37: 9 | CF37: 10 | CG37: 11 | CH37: 12 | CI37: 13 | CJ37: 14 | CK37: 15 | CL37: 16 | CM37: 17 | CN37: 18 | CO37: 19 | CP37: 20 | CQ37: 21 | CR37: 22 | CS37: 23 | CT37: 24 | CU37: 1 | CV37: 2 | CW37: 3 | CX37: 4 | CY37: 5 | CZ37: 6 | DA37: 7 | DB37: 8 | DC37: 9 | DD37: 10 | DE37: 11 | DF37: 12 | DG37: 13 | DH37: 14 | DI37: 15 | DJ37: 16 | DK37: 17 | DL37: 18 | DM37: 19 | DN37: 20 | DO37: 21 | DP37: 22 | DQ37: 23 | DR37: 24 | DS37: 1 | DT37: 2 | DU37: 3 | DV37: 4 | DW37: 5 | DX37: 6 | DY37: 7 | DZ37: 8 | EA37: 9 | EB37: 10 | EC37: 11 | ED37: 12 | EE37: 13 | EF37: 14 | EG37: 15 | EH37: 16 | EI37: 17 | EJ37: 18 | EK37: 19 | EL37: 20 | EM37: 21 | EN37: 22 | EO37: 23 | EP37: 24 | EQ37: 1 | ER37: 2 | ES37: 3 | ET37: 4 | EU37: 5 | EV37: 6 | EW37: 7 | EX37: 8 | EY37: 9 | EZ37: 10 | FA37: 11 | FB37: 12 | FC37: 13 | FD37: 14 | FE37: 15 | FF37: 16 | FG37: 17 | FH37: 18 | FI37: 19 | FJ37: 20 | FK37: 21 | FL37: 22 | FM37: 23 | FN37: 24
A38: Scen # | B38: Profile Name:
A39: 1 | B39: Flat | C39: 1 | D39: 1 | E39: 1 | F39: 1 | G39: 1 | H39: 1 | I39: 1 | J39: 1 | K39: 1 | L39: 1 | M39: 1 | N39: 1 | O39: 1 | P39: 1 | Q39: 1 | R39: 1 | S39: 1 | T39: 1 | U39: 1 | V39: 1 | W39: 1 | X39: 1 | Y39: 1 | Z39: 1 | AA39: =C39 -> 1 | AB39: 1 | AC39: 1 | AD39: 1 | AE39: 1 | AF39: 1 | AG39: 1 | AH39: 1 | AI39: 1 | AJ39: 1 | AK39: =M39 -> 1 | AL39: 1 | AM39: 1 | AN39: 1 | AO39: 1 | AP39: 1 | AQ39: 1 | AR39: 1 | AS39: 1 | AT39: 1 | AU39: =W39 -> 1 | AV39: 1 | AW39: 1 | AX39: 1 | AY39: 1 | AZ39: 1 | BA39: 1 | BB39: 1 | BC39: 1 | BD39: 1 | BE39: =AG39 -> 1 | BF39: 1 | BG39: 1 | BH39: 1 | BI39: 1 | BJ39: 1 | BK39: 1 | BL39: 1 | BM39: 1 | BN39: 1 | BO39: =AQ39 -> 1 | BP39: 1 | BQ39: 1 | BR39: 1 | BS39: 1 | BT39: 1 | BU39: 1 | BV39: 1 | BW39: 1 | BX39: 1 | BY39: =BA39 -> 1 | BZ39: 1 | CA39: 1 | CB39: 1 | CC39: 1 | CD39: 1 | CE39: 1 | CF39: 1 | CG39: 1 | CH39: 1 | CI39: =BK39 -> 1 | CJ39: 1 | CK39: 1 | CL39: 1 | CM39: 1 | CN39: 1 | CO39: 1 | CP39: 1 | CQ39: 1 | CR39: 1 | CS39: =BU39 -> 1 | CT39: 1 | CU39: 1 | CV39: 1 | CW39: 1 | CX39: 1 | CY39: 1 | CZ39: 1 | DA39: 1 | DB39: 1 | DC39: =CE39 -> 1 | DD39: 1 | DE39: 1 | DF39: 1 | DG39: 1 | DH39: 1 | DI39: 1 | DJ39: 1 | DK39: 1 | DL39: 1 | DM39: =CO39 -> 1 | DN39: 1 | DO39: 1 | DP39: 1 | DQ39: 1 | DR39: 1 | DS39: 1 | DT39: 1 | DU39: 1 | DV39: 1 | DW39: =CY39 -> 1 | DX39: 1 | DY39: 1 | DZ39: 1 | EA39: 1 | EB39: 1 | EC39: 1 | ED39: 1 | EE39: 1 | EF39: 1 | EG39: =DI39 -> 1 | EH39: 1 | EI39: 1 | EJ39: 1 | EK39: 1 | EL39: 1 | EM39: 1 | EN39: 1 | EO39: 1 | EP39: 1 | EQ39: =DS39 -> 1 | ER39: 1 | ES39: 1 | ET39: 1 | EU39: 1 | EV39: 1 | EW39: 1 | EX39: 1 | EY39: 1 | EZ39: 1 | FA39: =EC39 -> 1 | FB39: 1 | FC39: 1 | FD39: 1 | FE39: 1 | FF39: 1 | FG39: 1 | FH39: 1 | FI39: 1 | FJ39: 1 | FK39: =EM39 -> 1 | FL39: 1 | FM39: 1 | FN39: 1
A40: 2 | B40: Daytime | C40: 0 | D40: 0 | E40: 0 | F40: 0 | G40: 0 | H40: 0 | I40: 0.5 | J40: 1 | K40: 1 | L40: 1 | M40: 1 | N40: 1 | O40: 1 | P40: 1 | Q40: 1 | R40: 1 | S40: 1 | T40: 1 | U40: 0.5 | V40: 0 | W40: 0 | X40: 0 | Y40: 0 | Z40: 0 | AA40: 0 | AB40: 0 | AC40: 0 | AD40: 0 | AE40: 0 | AF40: 0 | AG40: 0.5 | AH40: 1 | AI40: 1 | AJ40: 1 | AK40: 1 | AL40: 1 | AM40: 1 | AN40: 1 | AO40: 1 | AP40: 1 | AQ40: 1 | AR40: 1 | AS40: 0.5 | AT40: 0 | AU40: 0 | AV40: 0 | AW40: 0 | AX40: 0 | AY40: 0 | AZ40: 0 | BA40: 0 | BB40: 0 | BC40: 0 | BD40: 0 | BE40: 0.5 | BF40: 1 | BG40: 1 | BH40: 1 | BI40: 1 | BJ40: 1 | BK40: 1 | BL40: 1 | BM40: 1 | BN40: 1 | BO40: 1 | BP40: 1 | BQ40: 0.5 | BR40: 0 | BS40: 0 | BT40: 0 | BU40: 0 | BV40: 0 | BW40: 0 | BX40: 0 | BY40: 0 | BZ40: 0 | CA40: 0 | CB40: 0 | CC40: 0.5 | CD40: 1 | CE40: 1 | CF40: 1 | CG40: 1 | CH40: 1 | CI40: 1 | CJ40: 1 | CK40: 1 | CL40: 1 | CM40: 1 | CN40: 1 | CO40: 0.5 | CP40: 0 | CQ40: 0 | CR40: 0 | CS40: 0 | CT40: 0 | CU40: 0 | CV40: 0 | CW40: 0 | CX40: 0 | CY40: 0 | CZ40: 0 | DA40: 0.5 | DB40: 1 | DC40: 1 | DD40: 1 | DE40: 1 | DF40: 1 | DG40: 1 | DH40: 1 | DI40: 1 | DJ40: 1 | DK40: 1 | DL40: 1 | DM40: 0.5 | DN40: 0 | DO40: 0 | DP40: 0 | DQ40: 0 | DR40: 0 | DS40: 0 | DT40: 0 | DU40: 0 | DV40: 0 | DW40: 0 | DX40: 0 | DY40: 0.5 | DZ40: 1 | EA40: 1 | EB40: 1 | EC40: 1 | ED40: 1 | EE40: 1 | EF40: 1 | EG40: 1 | EH40: 1 | EI40: 1 | EJ40: 1 | EK40: 0.5 | EL40: 0 | EM40: 0 | EN40: 0 | EO40: 0 | EP40: 0 | EQ40: 0 | ER40: 0 | ES40: 0 | ET40: 0 | EU40: 0 | EV40: 0 | EW40: 0.5 | EX40: 1 | EY40: 1 | EZ40: 1 | FA40: 1 | FB40: 1 | FC40: 1 | FD40: 1 | FE40: 1 | FF40: 1 | FG40: 1 | FH40: 1 | FI40: 0.5 | FJ40: 0 | FK40: 0 | FL40: 0 | FM40: 0 | FN40: 0
A41: 3 | B41: BD Daytime | C41: 0 | D41: 0 | E41: 0 | F41: 0 | G41: 0 | H41: 0 | I41: 0.5 | J41: 1 | K41: 1 | L41: 1 | M41: 1 | N41: 1 | O41: 1 | P41: 1 | Q41: 1 | R41: 1 | S41: 1 | T41: 1 | U41: 0.5 | V41: 0 | W41: 0 | X41: 0 | Y41: 0 | Z41: 0 | AA41: =C41 -> 0 | AB41: 0 | AC41: 0 | AD41: 0 | AE41: 0 | AF41: 0 | AG41: 0.5 | AH41: 1 | AI41: 1 | AJ41: 1 | AK41: 1 | AL41: 1 | AM41: 1 | AN41: 1 | AO41: 1 | AP41: 1 | AQ41: 1 | AR41: 1 | AS41: 0.5 | AT41: 0 | AU41: 0 | AV41: 0 | AW41: 0 | AX41: 0 | AY41: 0 | AZ41: 0 | BA41: 0 | BB41: 0 | BC41: 0 | BD41: 0 | BE41: 0.5 | BF41: 1 | BG41: =AI41 -> 1 | BH41: 1 | BI41: 1 | BJ41: 1 | BK41: 1 | BL41: 1 | BM41: 1 | BN41: 1 | BO41: 1 | BP41: 1 | BQ41: 0.5 | BR41: 0 | BS41: 0 | BT41: 0 | BU41: 0 | BV41: 0 | BW41: 0 | BX41: 0 | BY41: 0 | BZ41: 0 | CA41: 0 | CB41: 0 | CC41: 0.5 | CD41: 1 | CE41: 1 | CF41: 1 | CG41: 1 | CH41: 1 | CI41: 1 | CJ41: 1 | CK41: 1 | CL41: 1 | CM41: =BO41 -> 1 | CN41: 1 | CO41: 0.5 | CP41: 0 | CQ41: 0 | CR41: 0 | CS41: 0 | CT41: 0 | CU41: 0 | CV41: 0 | CW41: 0 | CX41: 0 | CY41: 0 | CZ41: 0 | DA41: 0.5 | DB41: 1 | DC41: 1 | DD41: 1 | DE41: 1 | DF41: 1 | DG41: 1 | DH41: 1 | DI41: 1 | DJ41: 1 | DK41: 1 | DL41: 1 | DM41: 0.5 | DN41: 0 | DO41: 0 | DP41: 0 | DQ41: 0 | DR41: 0 | DS41: 0 | DT41: 0 | DU41: 0 | DV41: 0 | DW41: 0 | DX41: 0 | DY41: 0 | DZ41: 0 | EA41: 0 | EB41: 0 | EC41: 0 | ED41: 0 | EE41: 0 | EF41: 0 | EG41: 0 | EH41: 0 | EI41: 0 | EJ41: 0 | EK41: 0 | EL41: 0 | EM41: 0 | EN41: 0 | EO41: 0 | EP41: 0 | EQ41: =DS41 -> 0 | ER41: 0 | ES41: 0 | ET41: 0 | EU41: 0 | EV41: 0 | EW41: 0 | EX41: 0 | EY41: 0 | EZ41: 0 | FA41: 0 | FB41: 0 | FC41: 0 | FD41: 0 | FE41: 0 | FF41: 0 | FG41: 0 | FH41: 0 | FI41: 0 | FJ41: 0 | FK41: 0 | FL41: 0 | FM41: 0 | FN41: 0
A42: 4 | B42: Spare A
A43: 5 | B43: Spare B
A44: 6 | B44: Spare C
A45: 7 | B45: Spare D
A46: 8 | B46: Spare E
A47: 9 | B47: Spare F
A48: 10 | B48: Spare G
A49: 11 | B49: Spare H
A50: 12 | B50: Spare I
A51: 13 | B51: Spare J
A52: 14 | B52: Spare K
A53: 15 | B53: Spare L
A54: 16 | B54: Spare M
A55: B B B B B | B55: B B B B B | C55: B B B B B | D55: B B B B B | E55: B B B B B | F55: B B B B B | G55: B B B B B | H55: B B B B B | I55: B B B B B | J55: B B B B B | K55: B B B B B | L55: B B B B B | M55: B B B B B | N55: B B B B B | O55: B B B B B | P55: B B B B B | Q55: B B B B B | R55: B B B B B | S55: B B B B B | T55: B B B B B | U55: B B B B B | V55: B B B B B | W55: B B B B B | X55: B B B B B | Y55: B B B B B | Z55: B B B B B | AA55: B B B B B | AB55: B B B B B | AC55: B B B B B | AD55: B B B B B | AE55: B B B B B | AF55: B B B B B | AG55: B B B B B | AH55: B B B B B | AI55: B B B B B | AJ55: B B B B B | AK55: B B B B B | AL55: B B B B B | AM55: B B B B B | AN55: B B B B B | AO55: B B B B B | AP55: B B B B B | AQ55: B B B B B | AR55: B B B B B | AS55: B B B B B | AT55: B B B B B | AU55: B B B B B | AV55: B B B B B | AW55: B B B B B | AX55: B B B B B | AY55: B B B B B | AZ55: B B B B B | BA55: B B B B B | BB55: B B B B B | BC55: B B B B B | BD55: B B B B B | BE55: B B B B B | BF55: B B B B B | BG55: B B B B B | BH55: B B B B B | BI55: B B B B B | BJ55: B B B B B | BK55: B B B B B | BL55: B B B B B | BM55: B B B B B | BN55: B B B B B | BO55: B B B B B | BP55: B B B B B | BQ55: B B B B B | BR55: B B B B B | BS55: B B B B B | BT55: B B B B B | BU55: B B B B B | BV55: B B B B B | BW55: B B B B B | BX55: B B B B B | BY55: B B B B B | BZ55: B B B B B | CA55: B B B B B | CB55: B B B B B | CC55: B B B B B | CD55: B B B B B | CE55: B B B B B | CF55: B B B B B | CG55: B B B B B | CH55: B B B B B | CI55: B B B B B | CJ55: B B B B B | CK55: B B B B B | CL55: B B B B B | CM55: B B B B B | CN55: B B B B B | CO55: B B B B B | CP55: B B B B B | CQ55: B B B B B | CR55: B B B B B | CS55: B B B B B | CT55: B B B B B | CU55: B B B B B | CV55: B B B B B | CW55: B B B B B | CX55: B B B B B | CY55: B B B B B | CZ55: B B B B B | DA55: B B B B B | DB55: B B B B B | DC55: B B B B B | DD55: B B B B B | DE55: B B B B B | DF55: B B B B B | DG55: B B B B B | DH55: B B B B B | DI55: B B B B B | DJ55: B B B B B | DK55: B B B B B | DL55: B B B B B | DM55: B B B B B | DN55: B B B B B | DO55: B B B B B | DP55: B B B B B | DQ55: B B B B B | DR55: B B B B B | DS55: B B B B B | DT55: B B B B B | DU55: B B B B B | DV55: B B B B B | DW55: B B B B B | DX55: B B B B B | DY55: B B B B B | DZ55: B B B B B | EA55: B B B B B | EB55: B B B B B | EC55: B B B B B | ED55: B B B B B | EE55: B B B B B | EF55: B B B B B | EG55: B B B B B | EH55: B B B B B | EI55: B B B B B | EJ55: B B B B B | EK55: B B B B B | EL55: B B B B B | EM55: B B B B B | EN55: B B B B B | EO55: B B B B B | EP55: B B B B B | EQ55: B B B B B | ER55: B B B B B | ES55: B B B B B | ET55: B B B B B | EU55: B B B B B | EV55: B B B B B | EW55: B B B B B | EX55: B B B B B | EY55: B B B B B | EZ55: B B B B B | FA55: B B B B B | FB55: B B B B B | FC55: B B B B B | FD55: B B B B B | FE55: B B B B B | FF55: B B B B B | FG55: B B B B B | FH55: B B B B B | FI55: B B B B B | FJ55: B B B B B | FK55: B B B B B | FL55: B B B B B | FM55: B B B B B | FN55: B B B B B
A56: 1 | B56: Chosen | C56: =INDEX(C$39:C$55,Prof_WW) -> 1 | D56: =INDEX(D$39:D$55,Prof_WW) -> 1 | E56: =INDEX(E$39:E$55,Prof_WW) -> 1 | F56: =INDEX(F$39:F$55,Prof_WW) -> 1 | G56: =INDEX(G$39:G$55,Prof_WW) -> 1 | H56: =INDEX(H$39:H$55,Prof_WW) -> 1 | I56: =INDEX(I$39:I$55,Prof_WW) -> 1 | J56: =INDEX(J$39:J$55,Prof_WW) -> 1 | K56: =INDEX(K$39:K$55,Prof_WW) -> 1 | L56: =INDEX(L$39:L$55,Prof_WW) -> 1 | M56: =INDEX(M$39:M$55,Prof_WW) -> 1 | N56: =INDEX(N$39:N$55,Prof_WW) -> 1 | O56: =INDEX(O$39:O$55,Prof_WW) -> 1 | P56: =INDEX(P$39:P$55,Prof_WW) -> 1 | Q56: =INDEX(Q$39:Q$55,Prof_WW) -> 1 | R56: =INDEX(R$39:R$55,Prof_WW) -> 1 | S56: =INDEX(S$39:S$55,Prof_WW) -> 1 | T56: =INDEX(T$39:T$55,Prof_WW) -> 1 | U56: =INDEX(U$39:U$55,Prof_WW) -> 1 | V56: =INDEX(V$39:V$55,Prof_WW) -> 1 | W56: =INDEX(W$39:W$55,Prof_WW) -> 1 | X56: =INDEX(X$39:X$55,Prof_WW) -> 1 | Y56: =INDEX(Y$39:Y$55,Prof_WW) -> 1 | Z56: =INDEX(Z$39:Z$55,Prof_WW) -> 1 | AA56: =INDEX(AA$39:AA$55,Prof_WW) -> 1 | AB56: =INDEX(AB$39:AB$55,Prof_WW) -> 1 | AC56: =INDEX(AC$39:AC$55,Prof_WW) -> 1 | AD56: =INDEX(AD$39:AD$55,Prof_WW) -> 1 | AE56: =INDEX(AE$39:AE$55,Prof_WW) -> 1 | AF56: =INDEX(AF$39:AF$55,Prof_WW) -> 1 | AG56: =INDEX(AG$39:AG$55,Prof_WW) -> 1 | AH56: =INDEX(AH$39:AH$55,Prof_WW) -> 1 | AI56: =INDEX(AI$39:AI$55,Prof_WW) -> 1 | AJ56: =INDEX(AJ$39:AJ$55,Prof_WW) -> 1 | AK56: =INDEX(AK$39:AK$55,Prof_WW) -> 1 | AL56: =INDEX(AL$39:AL$55,Prof_WW) -> 1 | AM56: =INDEX(AM$39:AM$55,Prof_WW) -> 1 | AN56: =INDEX(AN$39:AN$55,Prof_WW) -> 1 | AO56: =INDEX(AO$39:AO$55,Prof_WW) -> 1 | AP56: =INDEX(AP$39:AP$55,Prof_WW) -> 1 | AQ56: =INDEX(AQ$39:AQ$55,Prof_WW) -> 1 | AR56: =INDEX(AR$39:AR$55,Prof_WW) -> 1 | AS56: =INDEX(AS$39:AS$55,Prof_WW) -> 1 | AT56: =INDEX(AT$39:AT$55,Prof_WW) -> 1 | AU56: =INDEX(AU$39:AU$55,Prof_WW) -> 1 | AV56: =INDEX(AV$39:AV$55,Prof_WW) -> 1 | AW56: =INDEX(AW$39:AW$55,Prof_WW) -> 1 | AX56: =INDEX(AX$39:AX$55,Prof_WW) -> 1 | AY56: =INDEX(AY$39:AY$55,Prof_WW) -> 1 | AZ56: =INDEX(AZ$39:AZ$55,Prof_WW) -> 1 | BA56: =INDEX(BA$39:BA$55,Prof_WW) -> 1 | BB56: =INDEX(BB$39:BB$55,Prof_WW) -> 1 | BC56: =INDEX(BC$39:BC$55,Prof_WW) -> 1 | BD56: =INDEX(BD$39:BD$55,Prof_WW) -> 1 | BE56: =INDEX(BE$39:BE$55,Prof_WW) -> 1 | BF56: =INDEX(BF$39:BF$55,Prof_WW) -> 1 | BG56: =INDEX(BG$39:BG$55,Prof_WW) -> 1 | BH56: =INDEX(BH$39:BH$55,Prof_WW) -> 1 | BI56: =INDEX(BI$39:BI$55,Prof_WW) -> 1 | BJ56: =INDEX(BJ$39:BJ$55,Prof_WW) -> 1 | BK56: =INDEX(BK$39:BK$55,Prof_WW) -> 1 | BL56: =INDEX(BL$39:BL$55,Prof_WW) -> 1 | BM56: =INDEX(BM$39:BM$55,Prof_WW) -> 1 | BN56: =INDEX(BN$39:BN$55,Prof_WW) -> 1 | BO56: =INDEX(BO$39:BO$55,Prof_WW) -> 1 | BP56: =INDEX(BP$39:BP$55,Prof_WW) -> 1 | BQ56: =INDEX(BQ$39:BQ$55,Prof_WW) -> 1 | BR56: =INDEX(BR$39:BR$55,Prof_WW) -> 1 | BS56: =INDEX(BS$39:BS$55,Prof_WW) -> 1 | BT56: =INDEX(BT$39:BT$55,Prof_WW) -> 1 | BU56: =INDEX(BU$39:BU$55,Prof_WW) -> 1 | BV56: =INDEX(BV$39:BV$55,Prof_WW) -> 1 | BW56: =INDEX(BW$39:BW$55,Prof_WW) -> 1 | BX56: =INDEX(BX$39:BX$55,Prof_WW) -> 1 | BY56: =INDEX(BY$39:BY$55,Prof_WW) -> 1 | BZ56: =INDEX(BZ$39:BZ$55,Prof_WW) -> 1 | CA56: =INDEX(CA$39:CA$55,Prof_WW) -> 1 | CB56: =INDEX(CB$39:CB$55,Prof_WW) -> 1 | CC56: =INDEX(CC$39:CC$55,Prof_WW) -> 1 | CD56: =INDEX(CD$39:CD$55,Prof_WW) -> 1 | CE56: =INDEX(CE$39:CE$55,Prof_WW) -> 1 | CF56: =INDEX(CF$39:CF$55,Prof_WW) -> 1 | CG56: =INDEX(CG$39:CG$55,Prof_WW) -> 1 | CH56: =INDEX(CH$39:CH$55,Prof_WW) -> 1 | CI56: =INDEX(CI$39:CI$55,Prof_WW) -> 1 | CJ56: =INDEX(CJ$39:CJ$55,Prof_WW) -> 1 | CK56: =INDEX(CK$39:CK$55,Prof_WW) -> 1 | CL56: =INDEX(CL$39:CL$55,Prof_WW) -> 1 | CM56: =INDEX(CM$39:CM$55,Prof_WW) -> 1 | CN56: =INDEX(CN$39:CN$55,Prof_WW) -> 1 | CO56: =INDEX(CO$39:CO$55,Prof_WW) -> 1 | CP56: =INDEX(CP$39:CP$55,Prof_WW) -> 1 | CQ56: =INDEX(CQ$39:CQ$55,Prof_WW) -> 1 | CR56: =INDEX(CR$39:CR$55,Prof_WW) -> 1 | CS56: =INDEX(CS$39:CS$55,Prof_WW) -> 1 | CT56: =INDEX(CT$39:CT$55,Prof_WW) -> 1 | CU56: =INDEX(CU$39:CU$55,Prof_WW) -> 1 | CV56: =INDEX(CV$39:CV$55,Prof_WW) -> 1 | CW56: =INDEX(CW$39:CW$55,Prof_WW) -> 1 | CX56: =INDEX(CX$39:CX$55,Prof_WW) -> 1 | CY56: =INDEX(CY$39:CY$55,Prof_WW) -> 1 | CZ56: =INDEX(CZ$39:CZ$55,Prof_WW) -> 1 | DA56: =INDEX(DA$39:DA$55,Prof_WW) -> 1 | DB56: =INDEX(DB$39:DB$55,Prof_WW) -> 1 | DC56: =INDEX(DC$39:DC$55,Prof_WW) -> 1 | DD56: =INDEX(DD$39:DD$55,Prof_WW) -> 1 | DE56: =INDEX(DE$39:DE$55,Prof_WW) -> 1 | DF56: =INDEX(DF$39:DF$55,Prof_WW) -> 1 | DG56: =INDEX(DG$39:DG$55,Prof_WW) -> 1 | DH56: =INDEX(DH$39:DH$55,Prof_WW) -> 1 | DI56: =INDEX(DI$39:DI$55,Prof_WW) -> 1 | DJ56: =INDEX(DJ$39:DJ$55,Prof_WW) -> 1 | DK56: =INDEX(DK$39:DK$55,Prof_WW) -> 1 | DL56: =INDEX(DL$39:DL$55,Prof_WW) -> 1 | DM56: =INDEX(DM$39:DM$55,Prof_WW) -> 1 | DN56: =INDEX(DN$39:DN$55,Prof_WW) -> 1 | DO56: =INDEX(DO$39:DO$55,Prof_WW) -> 1 | DP56: =INDEX(DP$39:DP$55,Prof_WW) -> 1 | DQ56: =INDEX(DQ$39:DQ$55,Prof_WW) -> 1 | DR56: =INDEX(DR$39:DR$55,Prof_WW) -> 1 | DS56: =INDEX(DS$39:DS$55,Prof_WW) -> 1 | DT56: =INDEX(DT$39:DT$55,Prof_WW) -> 1 | DU56: =INDEX(DU$39:DU$55,Prof_WW) -> 1 | DV56: =INDEX(DV$39:DV$55,Prof_WW) -> 1 | DW56: =INDEX(DW$39:DW$55,Prof_WW) -> 1 | DX56: =INDEX(DX$39:DX$55,Prof_WW) -> 1 | DY56: =INDEX(DY$39:DY$55,Prof_WW) -> 1 | DZ56: =INDEX(DZ$39:DZ$55,Prof_WW) -> 1 | EA56: =INDEX(EA$39:EA$55,Prof_WW) -> 1 | EB56: =INDEX(EB$39:EB$55,Prof_WW) -> 1 | EC56: =INDEX(EC$39:EC$55,Prof_WW) -> 1 | ED56: =INDEX(ED$39:ED$55,Prof_WW) -> 1 | EE56: =INDEX(EE$39:EE$55,Prof_WW) -> 1 | EF56: =INDEX(EF$39:EF$55,Prof_WW) -> 1 | EG56: =INDEX(EG$39:EG$55,Prof_WW) -> 1 | EH56: =INDEX(EH$39:EH$55,Prof_WW) -> 1 | EI56: =INDEX(EI$39:EI$55,Prof_WW) -> 1 | EJ56: =INDEX(EJ$39:EJ$55,Prof_WW) -> 1 | EK56: =INDEX(EK$39:EK$55,Prof_WW) -> 1 | EL56: =INDEX(EL$39:EL$55,Prof_WW) -> 1 | EM56: =INDEX(EM$39:EM$55,Prof_WW) -> 1 | EN56: =INDEX(EN$39:EN$55,Prof_WW) -> 1 | EO56: =INDEX(EO$39:EO$55,Prof_WW) -> 1 | EP56: =INDEX(EP$39:EP$55,Prof_WW) -> 1 | EQ56: =INDEX(EQ$39:EQ$55,Prof_WW) -> 1 | ER56: =INDEX(ER$39:ER$55,Prof_WW) -> 1 | ES56: =INDEX(ES$39:ES$55,Prof_WW) -> 1 | ET56: =INDEX(ET$39:ET$55,Prof_WW) -> 1 | EU56: =INDEX(EU$39:EU$55,Prof_WW) -> 1 | EV56: =INDEX(EV$39:EV$55,Prof_WW) -> 1 | EW56: =INDEX(EW$39:EW$55,Prof_WW) -> 1 | EX56: =INDEX(EX$39:EX$55,Prof_WW) -> 1 | EY56: =INDEX(EY$39:EY$55,Prof_WW) -> 1 | EZ56: =INDEX(EZ$39:EZ$55,Prof_WW) -> 1 | FA56: =INDEX(FA$39:FA$55,Prof_WW) -> 1 | FB56: =INDEX(FB$39:FB$55,Prof_WW) -> 1 | FC56: =INDEX(FC$39:FC$55,Prof_WW) -> 1 | FD56: =INDEX(FD$39:FD$55,Prof_WW) -> 1 | FE56: =INDEX(FE$39:FE$55,Prof_WW) -> 1 | FF56: =INDEX(FF$39:FF$55,Prof_WW) -> 1 | FG56: =INDEX(FG$39:FG$55,Prof_WW) -> 1 | FH56: =INDEX(FH$39:FH$55,Prof_WW) -> 1 | FI56: =INDEX(FI$39:FI$55,Prof_WW) -> 1 | FJ56: =INDEX(FJ$39:FJ$55,Prof_WW) -> 1 | FK56: =INDEX(FK$39:FK$55,Prof_WW) -> 1 | FL56: =INDEX(FL$39:FL$55,Prof_WW) -> 1 | FM56: =INDEX(FM$39:FM$55,Prof_WW) -> 1 | FN56: =INDEX(FN$39:FN$55,Prof_WW) -> 1
B58: Day of week | C58: 1 | D58: 2 | E58: 3 | F58: 4 | G58: 5 | H58: 6 | I58: 7 | J58: Max
B59: Total demand in day as % of maximum capacity | C59: =SUM(INDEX(Prof_Wk_Ar,(C$58-1)*24+1):INDEX(Prof_Wk_Ar,(C$58-1)*24+24)) -> 24 | D59: =SUM(INDEX(Prof_Wk_Ar,(D$58-1)*24+1):INDEX(Prof_Wk_Ar,(D$58-1)*24+24)) -> 24 | E59: =SUM(INDEX(Prof_Wk_Ar,(E$58-1)*24+1):INDEX(Prof_Wk_Ar,(E$58-1)*24+24)) -> 24 | F59: =SUM(INDEX(Prof_Wk_Ar,(F$58-1)*24+1):INDEX(Prof_Wk_Ar,(F$58-1)*24+24)) -> 24 | G59: =SUM(INDEX(Prof_Wk_Ar,(G$58-1)*24+1):INDEX(Prof_Wk_Ar,(G$58-1)*24+24)) -> 24 | H59: =SUM(INDEX(Prof_Wk_Ar,(H$58-1)*24+1):INDEX(Prof_Wk_Ar,(H$58-1)*24+24)) -> 24 | I59: =SUM(INDEX(Prof_Wk_Ar,(I$58-1)*24+1):INDEX(Prof_Wk_Ar,(I$58-1)*24+24)) -> 24 | J59: =MAX(C59:I59) -> 24
A62: Average capacity factor | B62: =AVERAGE(Prof_Mth_Ar)*AVERAGE(Prof_Wk_Ar) -> 0.625651468
A64: Network charges
A65: Electricity
AC66: 5 | AD66: 7
AB67: 0.6 | AC67: 0.8 | AD67: 0.8 | AE67: 0.95
Y68: Multipliers for hypothetical industrial for purposes of calculating bill | Z68: 1 | AA68: 1000 | AB68: =$AA68*Hrs_in_yr*AB67 -> 5259456 | AC68: =$AA68*AC$67*AC$66 -> 4000 | AD68: =$AA68*AD$67*AD$66 -> 5600 | AE68: =$AA68*AE$67 -> 950 | AF68: 0
F69: Distribution | T69: | | U69: Transmission | Z69: | | AA69: Summary
E70: Type | F70: Fixed | G70: Fixed | H70: Fixed | I70: Capacity | J70: Capacity | K70: Volume | L70: CPD | M70: CPD | N70: CPD | O70: AMD | P70: AMD | Q70: AMD | R70: Power factor | S70: Power factor | T70: | | U70: Fixed | V70: Fixed | W70: Capacity | X70: Volume | Y70: Volume | Z70: | | AA70: Fixed | AB70: Capacity | AC70: Volume | AD70: CPD - Win | AE70: CPD - Sum | AF70: AMD | AG70: Power factor | AH70: Bill - based on above factors - for checking purposes
F71: $/day | G71: $/day | H71: ($/annum) | I71: $/kVA/day | J71: $/kVA | K71: $/kWh | L71: $/PCD (kW) | M71: $/kW/mth | N71: $/kW/mth | O71: $/kVA/day | P71: $/kVA/day | Q71: $/kW/mth | R71: $/kVAR/day | S71: $/kVAR/mth | T71: | | U71: $/day | V71: $/yr | W71: $/kVA | X71: $/ADL (kW) | Y71: $/kWh | Z71: | | AA71: $/yr | AB71: $/kVA | AC71: $/kWh | AD71: $/kW/mth | AE71: $/kW/mth | AF71: $/kW/yr | AG71: $/kVAR | AH71: $k/yr
A72: Option lookup # | D72: kVA
A73: T T T T T T | B73: T T T T T T | C73: T T T T T T | D73: T T T T T T | E73: T T T T T T | F73: T T T T T T | G73: T T T T T T | H73: T T T T T T | I73: T T T T T T | J73: T T T T T T | K73: T T T T T T | L73: T T T T T T | M73: T T T T T T | N73: T T T T T T | O73: T T T T T T | P73: T T T T T T | Q73: T T T T T T | R73: T T T T T T | S73: T T T T T T | T73: T T T T T T | U73: T T T T T T | V73: T T T T T T | W73: T T T T T T | X73: T T T T T T | Y73: T T T T T T | Z73: T T T T T T | AA73: T T T T T T | AB73: T T T T T T | AC73: T T T T T T | AD73: T T T T T T | AE73: T T T T T T | AF73: T T T T T T | AG73: T T T T T T | AH73: T T T T T T
A74: =ROW()-ROW(A$73) -> 1 | B74: Example published Nwk tariffs
A75: =ROW()-ROW(A$73) -> 2 | B75: Vector tariff name: | F75: Daily - FIXD | I75: Capacity - CAPY | K75: Volume anytime - 24UC | O75: Demand - DAMD | P75: Excess demand - DEXA | R75: Power fator - PWRF | T75: | | Z75: |
A76: 3 | C76: Vec Zone sub | F76: 3.93 | H76: =F76*Days_in_yr -> 1435.3932 | I76: 0.1279 | J76: =I76*Days_in_yr -> 46.714196 | K76: 0.0059 | O76: 0.0243 | P76: 0.8 | R76: 0.2917 | T76: | | Y76: 0.02 | Z76: | | AA76: =SUM($H76,$V76) -> 1435.3932 | AB76: =SUM($J76,$W76) -> 46.714196 | AC76: =SUM($K76,$Y76) -> 0.0259 | AD76: =SUM($L76/Mths_in_yr,M76) -> 0 | AE76: =SUM($L76/Mths_in_yr,N76) -> 0 | AF76: =SUM($O76*Days_in_yr,$Q76*Mths_in_yr) -> 8.875332 | AG76: =SUM($R76*Days_in_yr,$S76*Mths_in_yr) -> 106.540508 | AH76: =SUMPRODUCT($AA76:$AG76,$Z$68:$AF$68)/1000 -> 192.801065
A77: 4 | C77: Vec Sub-Tx | F77: =F76 -> 3.93 | H77: =F77*Days_in_yr -> 1435.3932 | I77: 0.1023 | J77: =I77*Days_in_yr -> 37.364052 | K77: =K76 -> 0.0059 | O77: =O76 -> 0.0243 | P77: 0.8 | R77: =R76 -> 0.2917 | T77: | | Y77: =Y76 -> 0.02 | Z77: | | AA77: =SUM($H77,$V77) -> 1435.3932 | AB77: =SUM($J77,$W77) -> 37.364052 | AC77: =SUM($K77,$Y77) -> 0.0259 | AD77: =SUM($L77/Mths_in_yr,M77) -> 0 | AE77: =SUM($L77/Mths_in_yr,N77) -> 0 | AF77: =SUM($O77*Days_in_yr,$Q77*Mths_in_yr) -> 8.875332 | AG77: =SUM($R77*Days_in_yr,$S77*Mths_in_yr) -> 106.540508 | AH77: =SUMPRODUCT($AA77:$AG77,$Z$68:$AF$68)/1000 -> 183.450921
A78: 5 | T78: | | Z78: |
A79: 6 | B79: Powerco tariff name: | D79: Capacity from | H79: Indirect fixed | J79: Assets & maintenance | L79: Indirect variable | T79: | | W79: Connection assets | X79: Other assets | Z79: |
A80: 7 | C80: Pco W50 (>300 kVA) | D80: 300 | F80: =H80/Days_in_yr -> 19.71306538 | H80: 7200 | J80: 66.5 | L80: 19.9 | T80: | | W80: 5.14 | X80: 141.27 | Y80: =X80/Hrs_in_yr -> 0.01611611543 | Z80: | | AA80: =SUM($H80,$V80) -> 7200 | AB80: =SUM($J80,$W80) -> 71.64 | AC80: =SUM($K80,$Y80) -> 0.01611611543 | AD80: =SUM($L80/Mths_in_yr,M80) -> 1.658333333 | AE80: =SUM($L80/Mths_in_yr,N80) -> 1.658333333 | AF80: =SUM($O80*Days_in_yr,$Q80*Mths_in_yr) -> 0 | AG80: =SUM($R80*Days_in_yr,$S80*Mths_in_yr) -> 0 | AH80: =SUMPRODUCT($AA80:$AG80,$Z$68:$AF$68)/1000 -> 179.522
A81: 8 | C81: Pco W60 (>1,500 kVA) | D81: 1500 | F81: =H81/Days_in_yr -> 37.78337531 | H81: 13800 | J81: 25.57 | L81: 48.29 | T81: | | W81: 5 | X81: 136.32 | Y81: =X81/Hrs_in_yr -> 0.01555141825 | Z81: | | AA81: =SUM($H81,$V81) -> 13800 | AB81: =SUM($J81,$W81) -> 30.57 | AC81: =SUM($K81,$Y81) -> 0.01555141825 | AD81: =SUM($L81/Mths_in_yr,M81) -> 4.024166667 | AE81: =SUM($L81/Mths_in_yr,N81) -> 4.024166667 | AF81: =SUM($O81*Days_in_yr,$Q81*Mths_in_yr) -> 0 | AG81: =SUM($R81*Days_in_yr,$S81*Mths_in_yr) -> 0 | AH81: =SUMPRODUCT($AA81:$AG81,$Z$68:$AF$68)/1000 -> 164.794
A82: 9 | T82: | | Z82: |
A83: 10 | B83: Unison tariff name | G83: Dedicated transformers | K83: Consumption | M83: Peak demand -Winter E-H-MC-WOPD | N83: Peak demand - Summer E-H-MC-SOPD | Q83: Monthly demand E-H-MC-DMND | S83: Power factor E-H-MC-KVAR | T83: | | Z83: |
A84: 11 | C84: Unis F-H-MC8 | D84: 694 | F84: 21 | G84: 14.62 | H84: =SUM(F84:G84*Days_in_yr) -> 13009.8488 | K84: 0 | M84: 5.25 | N84: 2.5 | Q84: 2.25 | S84: 7.55 | T84: | | U84: 55 | V84: =U84*Days_in_yr -> 20088.2 | Z84: | | AA84: =SUM($H84,$V84) -> 33098.0488 | AB84: =SUM($J84,$W84) -> 0 | AC84: =SUM($K84,$Y84) -> 0 | AD84: =SUM($L84/Mths_in_yr,M84) -> 5.25 | AE84: =SUM($L84/Mths_in_yr,N84) -> 2.5 | AF84: =SUM($O84*Days_in_yr,$Q84*Mths_in_yr) -> 27 | AG84: =SUM($R84*Days_in_yr,$S84*Mths_in_yr) -> 90.6 | AH84: =SUMPRODUCT($AA84:$AG84,$Z$68:$AF$68)/1000 -> 93.7480488
A85: 12 | C85: Unis F-H-MC9 | D85: 867 | F85: 23 | G85: 16.05 | H85: =SUM(F85:G85*Days_in_yr) -> 14262.622 | K85: =K84 -> 0 | M85: =M84 -> 5.25 | N85: =N84 -> 2.5 | Q85: =Q84 -> 2.25 | S85: =S84 -> 7.55 | T85: | | U85: 65 | V85: =U85*Days_in_yr -> 23740.6 | Z85: | | AA85: =SUM($H85,$V85) -> 38003.222 | AB85: =SUM($J85,$W85) -> 0 | AC85: =SUM($K85,$Y85) -> 0 | AD85: =SUM($L85/Mths_in_yr,M85) -> 5.25 | AE85: =SUM($L85/Mths_in_yr,N85) -> 2.5 | AF85: =SUM($O85*Days_in_yr,$Q85*Mths_in_yr) -> 27 | AG85: =SUM($R85*Days_in_yr,$S85*Mths_in_yr) -> 90.6 | AH85: =SUMPRODUCT($AA85:$AG85,$Z$68:$AF$68)/1000 -> 98.653222
A86: 13
A87: 14 | B87: Bespoke tariff options to be evaluated
A88: 15 | C88: Spare A | AA88: =SUM($H88,$V88) -> 0 | AB88: =SUM($J88,$W88) -> 0 | AC88: =SUM($K88,$Y88) -> 0 | AD88: =SUM($L88/Mths_in_yr,M88) -> 0 | AE88: =SUM($L88/Mths_in_yr,N88) -> 0 | AF88: =SUM($O88*Days_in_yr,$Q88*Mths_in_yr) -> 0 | AG88: =SUM($R88*Days_in_yr,$S88*Mths_in_yr) -> 0 | AH88: =SUMPRODUCT($AA88:$AG88,$Z$68:$AF$68)/1000 -> 0
A89: 16 | C89: Spare B | AA89: 0 | AB89: 0 | AC89: 0 | AD89: 0 | AE89: 0 | AF89: 0 | AG89: 0 | AH89: 0
A90: 17 | C90: Spare C | AA90: 0 | AB90: 0 | AC90: 0 | AD90: 0 | AE90: 0 | AF90: 0 | AG90: 0 | AH90: 0
A91: 18 | C91: Spare D | AA91: 0 | AB91: 0 | AC91: 0 | AD91: 0 | AE91: 0 | AF91: 0 | AG91: 0 | AH91: 0
A92: 19 | C92: Spare E | AA92: 0 | AB92: 0 | AC92: 0 | AD92: 0 | AE92: 0 | AF92: 0 | AG92: 0 | AH92: 0
A93: 20 | C93: Spare F | AA93: 0 | AB93: 0 | AC93: 0 | AD93: 0 | AE93: 0 | AF93: 0 | AG93: 0 | AH93: 0
A94: 21 | C94: Spare G | AA94: 0 | AB94: 0 | AC94: 0 | AD94: 0 | AE94: 0 | AF94: 0 | AG94: 0 | AH94: 0
A95: 22 | C95: Spare H | AA95: 0 | AB95: 0 | AC95: 0 | AD95: 0 | AE95: 0 | AF95: 0 | AG95: 0 | AH95: 0
A96: 23 | C96: Spare I | AA96: 0 | AB96: 0 | AC96: 0 | AD96: 0 | AE96: 0 | AF96: 0 | AG96: 0 | AH96: 0
A97: 24 | C97: Spare J | AA97: 0 | AB97: 0 | AC97: 0 | AD97: 0 | AE97: 0 | AF97: 0 | AG97: 0 | AH97: 0
A98: 25 | C98: Spare K | AA98: 0 | AB98: 0 | AC98: 0 | AD98: 0 | AE98: 0 | AF98: 0 | AG98: 0 | AH98: 0
A99: 26 | C99: Spare L | AA99: 0 | AB99: 0 | AC99: 0 | AD99: 0 | AE99: 0 | AF99: 0 | AG99: 0 | AH99: 0
A100: 27 | C100: Spare M | AA100: 0 | AB100: 0 | AC100: 0 | AD100: 0 | AE100: 0 | AF100: 0 | AG100: 0 | AH100: 0
A101: 28 | C101: Spare N | AA101: 0 | AB101: 0 | AC101: 0 | AD101: 0 | AE101: 0 | AF101: 0 | AG101: 0 | AH101: 0
A102: B B B B B | B102: B B B B B | C102: B B B B B | D102: B B B B B | E102: B B B B B | F102: B B B B B | G102: B B B B B | H102: B B B B B | I102: B B B B B | J102: B B B B B | K102: B B B B B | L102: B B B B B | M102: B B B B B | N102: B B B B B | O102: B B B B B | P102: B B B B B | Q102: B B B B B | R102: B B B B B | S102: B B B B B | T102: B B B B B | U102: B B B B B | V102: B B B B B | W102: B B B B B | X102: B B B B B | Y102: B B B B B | Z102: B B B B B | AA102: B B B B B | AB102: B B B B B | AC102: B B B B B | AD102: B B B B B | AE102: B B B B B | AF102: B B B B B | AG102: B B B B B | AH102: B B B B B
A104: Gas - Only included Tx charges, as only smallest industrial process heat boilers (1Mth) would likely be Dx-connected
B105: Transmission
B106: GTC | D106: MPOC | H106: Fixed | I106: Total tariffs
B107: Capacity reservation fee | C107: Throughput fee | D107: Tariff 1 | E107: 307 | F107: Tariff 2 | G107: Total Maui tariff | H107: . | I107: Capacity | J107: Throughput | K107: Fixed
A108: T T T T T | B108: CRF ($/GJ.MDQ) | C108: TPF ($/GJ) | D108: $/GJ.km | E108: % of Maui pipeline | F108: $/GJ | G108: $/GJ | H108: $/day | I108: $/GJ.MDQ | J108: $/GJ | K108: $/day
A109: Tx. Whangarei | B109: 766 | C109: 0.82 | D109: 0.002623 | E109: 1 | F109: 0.11959 | G109: =SUM($D109*$E109*$E$107,$F109) -> 0.924851 | H109: 0 | I109: =$B109 -> 766 | J109: =SUM(C109,G109) -> 1.744851 | K109: =H109 -> 0
A110: Tx. Kinleith | B110: 519 | C110: =C109 -> 0.82 | D110: =D$109 -> 0.002623 | E110: 0.75 | F110: =F$109 -> 0.11959 | G110: =SUM($D110*$E110*$E$107,$F110) -> 0.72353575 | H110: 0 | I110: =$B110 -> 519 | J110: =SUM(C110,G110) -> 1.54353575 | K110: =H110 -> 0
A111: Tx. Palmerston Nth | B111: 504 | C111: =C110 -> 0.82 | D111: =D$109 -> 0.002623 | E111: 0.15 | F111: =F$109 -> 0.11959 | G111: =SUM($D111*$E111*$E$107,$F111) -> 0.24037915 | H111: 0 | I111: =$B111 -> 504 | J111: =SUM(C111,G111) -> 1.06037915 | K111: 0
A112: Tx. Belmont | B112: 624 | C112: =C111 -> 0.82 | D112: =D$109 -> 0.002623 | E112: 0.15 | F112: =F$109 -> 0.11959 | G112: =SUM($D112*$E112*$E$107,$F112) -> 0.24037915 | H112: 0 | I112: =$B112 -> 624 | J112: =SUM(C112,G112) -> 1.06037915 | K112: 0
A113: Spare A | G113: =SUM($D113*$E113*$E$107,$F113) -> 0 | I113: =$B113 -> 0 | J113: =SUM(C113,G113) -> 0 | K113: 0
A114: Spare B | G114: 0 | I114: 0 | J114: 0 | K114: 0
A115: Spare C | G115: 0 | I115: 0 | J115: 0 | K115: 0
A116: Spare D | G116: 0 | I116: 0 | J116: 0 | K116: 0
A117: Spare E | G117: 0 | I117: 0 | J117: 0 | K117: 0
A118: Spare F | G118: 0 | I118: 0 | J118: 0 | K118: 0
A119: Spare G | G119: 0 | I119: 0 | J119: 0 | K119: 0
A120: Spare H | G120: 0 | I120: 0 | J120: 0 | K120: 0
A121: Spare I | G121: 0 | I121: 0 | J121: 0 | K121: 0
A122: Spare J | G122: 0 | I122: 0 | J122: 0 | K122: 0
A123: Spare K | G123: 0 | I123: 0 | J123: 0 | K123: 0
A124: Spare L | G124: 0 | I124: 0 | J124: 0 | K124: 0
A125: Spare M | G125: 0 | I125: 0 | J125: 0 | K125: 0
A126: Spare N | G126: 0 | I126: 0 | J126: 0 | K126: 0
A127: B B B B B B | B127: B B B B B B | C127: B B B B B B | D127: B B B B B B | E127: B B B B B B | F127: B B B B B B | G127: B B B B B B | H127: B B B B B B | I127: B B B B B B
A132: Wholesale fuel flexibility costs
A133: 1) Flexibility cost premium
D134: Capacity factor
D135: 0 | E135: 0.01 | F135: 0.02 | G135: 0.03 | H135: 0.04 | I135: 0.05 | J135: 0.06 | K135: 0.07 | L135: 0.08 | M135: 0.09 | N135: 0.1 | O135: 0.11 | P135: 0.12 | Q135: 0.13 | R135: 0.14 | S135: 0.15 | T135: 0.16 | U135: 0.17 | V135: 0.18 | W135: 0.19 | X135: 0.2 | Y135: 0.21 | Z135: 0.22 | AA135: 0.23 | AB135: 0.24 | AC135: 0.25 | AD135: 0.26 | AE135: 0.27 | AF135: 0.28 | AG135: 0.29 | AH135: 0.3 | AI135: 0.31 | AJ135: 0.32 | AK135: 0.33 | AL135: 0.34 | AM135: 0.35 | AN135: 0.36 | AO135: 0.37 | AP135: 0.38 | AQ135: 0.39 | AR135: 0.4 | AS135: 0.41 | AT135: 0.42 | AU135: 0.43 | AV135: 0.44 | AW135: 0.45 | AX135: 0.46 | AY135: 0.47 | AZ135: 0.48 | BA135: 0.49 | BB135: 0.5 | BC135: 0.51 | BD135: 0.52 | BE135: 0.53 | BF135: 0.54 | BG135: 0.55 | BH135: 0.56 | BI135: 0.57 | BJ135: 0.58 | BK135: 0.59 | BL135: 0.6 | BM135: 0.61 | BN135: 0.62 | BO135: 0.63 | BP135: 0.64 | BQ135: 0.65 | BR135: 0.66 | BS135: 0.67 | BT135: 0.68 | BU135: 0.69 | BV135: 0.7 | BW135: 0.71 | BX135: 0.72 | BY135: 0.73 | BZ135: 0.74 | CA135: 0.75 | CB135: 0.76 | CC135: 0.77 | CD135: 0.78 | CE135: 0.79 | CF135: 0.8 | CG135: 0.81 | CH135: 0.82 | CI135: 0.83 | CJ135: 0.84 | CK135: 0.85 | CL135: 0.86 | CM135: 0.87 | CN135: 0.88 | CO135: 0.89 | CP135: 0.9 | CQ135: 0.91 | CR135: 0.92 | CS135: 0.93 | CT135: 0.94 | CU135: 0.95 | CV135: 0.96 | CW135: 0.97 | CX135: 0.98 | CY135: 0.99 | CZ135: 1
A136: Fixed cost proportion | B136: 0.4 | C136: Standard shape | D136: =IFERROR((1-$B$136)+$B$136/D135,E136*E136/F136) -> 80.01747573 | E136: =IFERROR((1-$B$136)+$B$136/E135,F136*F136/G136) -> 40.6 | F136: 20.6 | G136: 13.93333333 | H136: 10.6 | I136: 8.6 | J136: 7.266666667 | K136: 6.314285714 | L136: 5.6 | M136: 5.044444444 | N136: 4.6 | O136: 4.236363636 | P136: 3.933333333 | Q136: 3.676923077 | R136: 3.457142857 | S136: 3.266666667 | T136: 3.1 | U136: 2.952941176 | V136: 2.822222222 | W136: 2.705263158 | X136: 2.6 | Y136: 2.504761905 | Z136: 2.418181818 | AA136: 2.339130435 | AB136: 2.266666667 | AC136: 2.2 | AD136: 2.138461538 | AE136: 2.081481481 | AF136: 2.028571429 | AG136: 1.979310345 | AH136: 1.933333333 | AI136: 1.890322581 | AJ136: 1.85 | AK136: 1.812121212 | AL136: 1.776470588 | AM136: 1.742857143 | AN136: 1.711111111 | AO136: 1.681081081 | AP136: 1.652631579 | AQ136: 1.625641026 | AR136: 1.6 | AS136: 1.575609756 | AT136: 1.552380952 | AU136: 1.530232558 | AV136: 1.509090909 | AW136: 1.488888889 | AX136: 1.469565217 | AY136: 1.45106383 | AZ136: 1.433333333 | BA136: 1.416326531 | BB136: 1.4 | BC136: 1.384313725 | BD136: 1.369230769 | BE136: 1.354716981 | BF136: 1.340740741 | BG136: 1.327272727 | BH136: 1.314285714 | BI136: 1.301754386 | BJ136: 1.289655172 | BK136: 1.277966102 | BL136: 1.266666667 | BM136: 1.255737705 | BN136: 1.24516129 | BO136: 1.234920635 | BP136: 1.225 | BQ136: =IFERROR((1-$B$136)+$B$136/BQ135,BR136*BR136/BS136) -> 1.215384615 | BR136: 1.206060606 | BS136: 1.197014925 | BT136: 1.188235294 | BU136: 1.179710145 | BV136: 1.171428571 | BW136: 1.163380282 | BX136: 1.155555556 | BY136: 1.147945205 | BZ136: 1.140540541 | CA136: 1.133333333 | CB136: 1.126315789 | CC136: 1.119480519 | CD136: 1.112820513 | CE136: 1.106329114 | CF136: 1.1 | CG136: 1.09382716 | CH136: 1.087804878 | CI136: 1.081927711 | CJ136: 1.076190476 | CK136: 1.070588235 | CL136: 1.065116279 | CM136: 1.059770115 | CN136: 1.054545455 | CO136: 1.049438202 | CP136: 1.044444444 | CQ136: 1.03956044 | CR136: 1.034782609 | CS136: 1.030107527 | CT136: 1.025531915 | CU136: 1.021052632 | CV136: 1.016666667 | CW136: 1.012371134 | CX136: 1.008163265 | CY136: 1.004040404 | CZ136: 1
A137: Calibrating factor: | B137: =(F_Calib_Level-1)/(_xlfn.XLOOKUP(F_Calib_CF,Fuel_CF_Ar,Fuel_Standard_Ar,,-1)-1) -> 0.03125 | C137: Fuel shape to input into model | D137: =TREND($N$137:$P$137,$N$135:$P$135,$D$135:$M$135) -> 1.21635101 | E137: 1.205934343 | F137: 1.195517677 | G137: 1.18510101 | H137: 1.174684343 | I137: 1.164267677 | J137: 1.15385101 | K137: 1.143434343 | L137: 1.133017677 | M137: 1.12260101 | N137: =1+(N$136-1)*$B$137 -> 1.1125 | O137: 1.101136364 | P137: 1.091666667 | Q137: 1.083653846 | R137: 1.076785714 | S137: 1.070833333 | T137: 1.065625 | U137: 1.061029412 | V137: 1.056944444 | W137: 1.053289474 | X137: 1.05 | Y137: 1.04702381 | Z137: 1.044318182 | AA137: 1.041847826 | AB137: 1.039583333 | AC137: 1.0375 | AD137: 1.035576923 | AE137: 1.033796296 | AF137: 1.032142857 | AG137: 1.030603448 | AH137: 1.029166667 | AI137: 1.027822581 | AJ137: =1+(AJ$136-1)*$B$137 -> 1.0265625 | AK137: 1.025378788 | AL137: 1.024264706 | AM137: 1.023214286 | AN137: 1.022222222 | AO137: 1.021283784 | AP137: 1.020394737 | AQ137: 1.019551282 | AR137: 1.01875 | AS137: 1.017987805 | AT137: 1.017261905 | AU137: 1.016569767 | AV137: 1.015909091 | AW137: 1.015277778 | AX137: 1.014673913 | AY137: 1.014095745 | AZ137: 1.013541667 | BA137: 1.013010204 | BB137: 1.0125 | BC137: 1.012009804 | BD137: 1.011538462 | BE137: 1.011084906 | BF137: 1.010648148 | BG137: 1.010227273 | BH137: 1.009821429 | BI137: 1.009429825 | BJ137: 1.009051724 | BK137: 1.008686441 | BL137: 1.008333333 | BM137: 1.007991803 | BN137: 1.00766129 | BO137: 1.00734127 | BP137: =1+(BP$136-1)*$B$137 -> 1.00703125 | BQ137: 1.006730769 | BR137: 1.006439394 | BS137: 1.006156716 | BT137: 1.005882353 | BU137: 1.005615942 | BV137: 1.005357143 | BW137: 1.005105634 | BX137: 1.004861111 | BY137: 1.004623288 | BZ137: 1.004391892 | CA137: 1.004166667 | CB137: 1.003947368 | CC137: 1.003733766 | CD137: 1.003525641 | CE137: 1.003322785 | CF137: 1.003125 | CG137: 1.002932099 | CH137: 1.002743902 | CI137: 1.002560241 | CJ137: 1.002380952 | CK137: 1.002205882 | CL137: 1.002034884 | CM137: 1.001867816 | CN137: 1.001704545 | CO137: 1.001544944 | CP137: 1.001388889 | CQ137: 1.001236264 | CR137: 1.001086957 | CS137: 1.00094086 | CT137: 1.000797872 | CU137: 1.000657895 | CV137: 1.000520833 | CW137: 1.000386598 | CX137: 1.000255102 | CY137: 1.000126263 | CZ137: 1
A139: 2) Relationship with electricity price - for gas cost flex option
A140: Gas elec m | B140: 0.0488
A141: Gas elec c | B141: 5.7622

Sheet Ctrl
A1: This is the main tab where users specify the site characteristics, the non-fuel costs of the options (eg, electroboiler and network upgrade costs)
A2: Site characteristics
A3: Combustion fuel | B3: 1 | H3: =Other_fuel&" emissions factor (tCO2/GJ):" -> Gas emissions factor (tCO2/GJ): | I3: =CHOOSE(Other_Fuel_Option,CO2_Gas,CO2_Coal,CO2_Biomass) -> 0.053
A4: Heat load currently met by combustion boiler | D4: =INDEX(Other_fuels,Other_Fuel_Option) -> Gas | E4: Elec | I4: =Other_fuel&" (TJ)" -> Gas (TJ) | J4: Elec (GWh)
A5: Maximum heat load (MWth) | B5: 10 | C5: COP: | D5: 0.75 | E5: 0.99 | H5: Single-fuel annual requirement | I5: =Heat_load/COP_Other*GJ_MWh*Hrs_in_yr*Avg_CF/1000 -> 263.2469094 | J5: =Heat_load/COP_Elec*Hrs_in_yr*Avg_CF/1000 -> 55.39707689
A7: Operating profile
A8: Within year | F8: Average capacity factor | G8: =Avg_CF -> 0.625651468
A9: Within day/week
A11: Pipe and wire capacities for charging
A12: Nwk capacity margin | B12: 0.3
B13: =IF(Other_fuel="Gas","Gas","na") -> Gas | E13: Electricity (MW)
B14: GJ.MDQ | C14: scm/hr | E14: For capacity charge | F14: AMD | G14: CPD_Sum | H14: CPD_Win
A15: Capacities | B15: =IF(Other_fuel="Gas",Heat_load/GJ_MWh/COP_Other*Max_Day_Dem*(1+$B$12),"na") -> 115.5555556 | C15: =IF(Other_fuel="Gas",Gas_Cap/Max_Day_Dem/MJ_scm*1000,"na") -> 130.1301301 | E15: =Heat_load/COP_Elec*(1+$B$12) -> 13.13131313 | F15: =Heat_load/COP_Elec -> 10.1010101 | G15: =Max_Sum*Heat_load/COP_Elec -> 10.1010101 | H15: =Max_Win*Heat_load/COP_Elec -> 9.660957869
A17: Network prices
B18: =IF(Other_fuel="Gas","Gas","na") -> Gas | F18: Electricity
A19: Tariff option | B19: 2 | G19: 9
A21: Charge type | B21: =Assump!I107 -> Capacity | C21: =Assump!J107 -> Throughput | D21: Fixed | F21: =Assump!AA$70 -> Fixed | G21: =Assump!AB$70 -> Capacity | H21: =Assump!AC$70 -> Volume | I21: =Assump!AD$70 -> CPD - Win | J21: =Assump!AE$70 -> CPD - Sum | K21: =Assump!AF$70 -> AMD
A22: Unit | B22: =Assump!I108 -> $/GJ.MDQ | C22: =Assump!J108 -> $/GJ | D22: $/day | F22: =Assump!AA$71 -> $/yr | G22: =Assump!AB$71 -> $/kVA | H22: $/MWh | I22: =Assump!AD$71 -> $/kW/mth | J22: =Assump!AE$71 -> $/kW/mth | K22: =Assump!AF$71 -> $/kW/yr
A23: Price | B23: =IF(Other_fuel="Gas",INDEX(Assump!I$108:I$127,Loc_Gas),"na") -> 766 | C23: =IF(Other_fuel="Gas",INDEX(Assump!J$108:J$127,Loc_Gas),"na") -> 1.744851 | D23: =IF(Other_fuel="Gas",INDEX(Assump!K$108:K$127,Loc_Gas),"na") -> 0 | F23: =INDEX(Assump!AA$73:AA$102,Loc_Elec) -> 13800 | G23: =INDEX(Assump!AB$73:AB$102,Loc_Elec) -> 30.57 | H23: =INDEX(Assump!AC$73:AC$102,Loc_Elec)*1000 -> 15.55141825 | I23: =INDEX(Assump!AD$73:AD$102,Loc_Elec)*Assump!AC$66 -> 20.12083333 | J23: =INDEX(Assump!AE$73:AE$102,Loc_Elec)*Assump!AD$66 -> 28.16916667 | K23: =INDEX(Assump!AF$73:AF$102,Loc_Elec) -> 0
A25: Electricity and combustion fuel wholesale price scenarios
A26: Electricity parameters
A27: TWA elec price ($/MWh) | B27: 110
A28: Elec price shape scenario | B28: 2 | C28: ="='"&INDEX(ePrice!$F$5:$K$5,P_Off)&"'" -> ='Historical real'
A30: Combustion fuel parameters
A31: Approach to derive combustion fuel price | B31: 1
A33: =IF(AND(Other_fuel="Gas",Gas_price_option=2),"THE BELOW PARAMETERS ARE NOT RELEVANT FOR OPTION 2 FOR DERIVING THE GAS PRICE","Specify the parameters for the combustion fuel") -> Specify the parameters for the combustion fuel
A34: Carbon price ($/tCO2) | B34: 64 | C34: ($/GJ)
A35: ="Ex-carbon baseload wholesale "&LOWER(Other_fuel)&" price ($/GJ)" -> Ex-carbon baseload wholesale gas price ($/GJ) | B35: 20
A36: Calibrate cost of low capacity factor fuel
A37: Specified capacity factor | B37: 0.2
A38: Extent to which $/GJ cost of fuel will be greater than baseload cost at specified capacity factor | B38: 1.05
A40: ="Resultant "&Other_fuel&" price ($/GJ)" -> Resultant Gas price ($/GJ) | B40: Non-dual-fuel | C40: Dual-fuel
A41: Excluding carbon | B41: =Non_Flex_Other_Price -> 20 | C41: =Flex_Other_Fuel_In -> 10.0869883
A42: Including carbon price | B42: =IF(Other_fuel="Gas", CHOOSE(Gas_price_option,SUM(Non_Flex_Other_Price,C_Price*CO2_Gas),"Not used"), SUM(Non_Flex_Other_Price,C_Price*CO2_other)) -> 23.392 | C42: =IF(Other_fuel="Gas", CHOOSE(Gas_price_option,SUM(Flex_Other_Fuel_In,C_Price*CO2_Gas),"Not used"), SUM(Flex_Other_Fuel_In,C_Price*CO2_other)) -> 13.4789883
A45: Other non-fuel costs and financial evaluation specifications
A46: Electro heating capex ($m) | B46: 1
A47: Electro heating non-fuel opex ($m/yr) | B47: =Electro_capex*5% -> 0.05
A48: Electricity nwk upgrade costs - single fuel ($m) | B48: 3
A49: Electricity nwk upgrade costs - dual fuel ($m) | B49: 1
A51: Combustion boiler non-fuel opex ($m/yr) | B51: 0.05
A52: Trading function costs to enable dual fuel operation ($m/yr) | B52: 0.1
A54: Parameters for undertaking present value (PV) calculation
A55: Years over which to calculate PV | B55: 10
A56: Discount rate for present value calculation | B56: 0.06

Sheet ePrice
A1: This tab contains the hourly price shape projections for the different electricity price scenarios, noting that the prices are a sampled selection over the projected (or historical) weather years that preserve the shape of prices, but still capture the within-day and within-week chronology of prices that will affect industrial plant who need to make decisions on a whole-day or whole-week basis. Source spreadsheet: Sample_price_extract_02 | F1: Raw price data | M1: Display price data in different formats
F2: L | G2: Price scenario | K2: R
F3: L | G3: =COLUMN(G3)-COLUMN($F$3) -> 1 | H3: =COLUMN(H3)-COLUMN($F$3) -> 2 | I3: 3 | J3: 4 | K3: R
F4: L | G4: =AVERAGE(G$5:G$22182) -> 84.66262017 | H4: =AVERAGE(H$5:H$22182) -> 114.385985 | I4: =AVERAGE(I$5:I$22182) -> 92.65834589 | J4: =AVERAGE(J$5:J$22182) -> 112.911252 | K4: R | M4: Price duration curves | V4: Monthly prices | AB4: WD/WE | AL4: Within-week
A5: Seas | B5: WD/WE | C5: mth | D5: wkdy | E5: hr | F5: L | G5: Historical nom | H5: Historical real | I5: Low % renewable | J5: High % renewable | K5: R | P5: =G5 -> Historical nom | Q5: =H5 -> Historical real | R5: Low % renewable | S5: High % renewable | W5: =G5 -> Historical nom | X5: =H5 -> Historical real | Y5: Low % renewable | Z5: High % renewable | AG5: =G5 -> Historical nom | AH5: =H5 -> Historical real | AI5: Low % renewable | AJ5: High % renewable | AQ5: =G5 -> Historical nom | AR5: =I5 -> Low % renewable | AS5: =J5 -> High % renewable
A6: =INDEX(Seas_Ar,C6) -> Sum | B6: =INDEX(WDWE_Ar,D6) -> WD | C6: 1 | D6: 1 | E6: 1 | F6: L | G6: 111.69 | H6: 141.1773515 | I6: 151.9079395 | J6: 279.155527 | K6: R | N6: 1 | O6: =1-N6 -> 0 | P6: =_xlfn.PERCENTILE.INC(G$5:G$22182,$N6) -> 1388.795 | Q6: =_xlfn.PERCENTILE.INC(H$5:H$22182,$N6) -> 1905.756619 | R6: 10289.69038 | S6: 20160.00032 | V6: 1 | W6: =AVERAGEIFS(G$5:G$22182,$C$5:$C$22182,$V6) -> 70.68674769 | X6: =AVERAGEIFS(H$5:H$22182,$C$5:$C$22182,$V6) -> 99.62393395 | Y6: 54.29202589 | Z6: 64.5768096 | AB6: Sum | AC6: WD | AD6: Sum | AE6: WD | AF6: 1 | AG6: =AVERAGEIFS(G$5:G$22182,$A$5:$A$22182,$AB6,$B$5:$B$22182,$AC6,$E$5:$E$22182,$AF6) -> 60.61264444 | AH6: =AVERAGEIFS(H$5:H$22182,$A$5:$A$22182,$AB6,$B$5:$B$22182,$AC6,$E$5:$E$22182,$AF6) -> 82.6973839 | AI6: 43.41059113 | AJ6: 86.429819 | AL6: Sum | AM6: 1 | AN6: Sum | AO6: 1 | AP6: 1 | AQ6: =AVERAGEIFS(G$5:G$22182,$A$5:$A$22182,$AL6,$D$5:$D$22182,$AM6,$E$5:$E$22182,$AP6) -> 50.41271739 | AR6: =AVERAGEIFS(I$5:I$22182,$A$5:$A$22182,$AL6,$D$5:$D$22182,$AM6,$E$5:$E$22182,$AP6) -> 43.48017262 | AS6: =AVERAGEIFS(J$5:J$22182,$A$5:$A$22182,$AL6,$D$5:$D$22182,$AM6,$E$5:$E$22182,$AP6) -> 95.50690609
A7: =INDEX(Seas_Ar,C7) -> Sum | B7: =INDEX(WDWE_Ar,D7) -> WD | C7: 1 | D7: 1 | E7: 2 | F7: L | G7: 106.03 | H7: 134.0230511 | I7: 149.700158 | J7: 279.155527 | K7: R | M7: 0.0001 | N7: =MAX(0,N6-IF(M7<>"",M7,N5-N6)) -> 0.9999 | O7: =1-N7 -> 0.0001 | P7: =_xlfn.PERCENTILE.INC(G$5:G$22182,$N7) -> 1265.360725 | Q7: 1568.436365 | R7: 9990.000129 | S7: 10080.00016 | V7: 2 | W7: =AVERAGEIFS(G$5:G$22182,$C$5:$C$22182,$V7) -> 81.16294608 | X7: 113.6384929 | Y7: 65.82550168 | Z7: 79.6952335 | AB7: Sum | AC7: WD | AF7: 2 | AG7: =AVERAGEIFS(G$5:G$22182,$A$5:$A$22182,$AB7,$B$5:$B$22182,$AC7,$E$5:$E$22182,$AF7) -> 56.96773333 | AH7: 77.40988803 | AI7: 42.62249113 | AJ7: 86.429819 | AL7: Sum | AM7: 1 | AP7: 2 | AQ7: =AVERAGEIFS(G$5:G$22182,$A$5:$A$22182,$AL7,$D$5:$D$22182,$AM7,$E$5:$E$22182,$AP7) -> 48.00521739 | AR7: =AVERAGEIFS(I$5:I$22182,$A$5:$A$22182,$AL7,$D$5:$D$22182,$AM7,$E$5:$E$22182,$AP7) -> 41.51257719 | AS7: =AVERAGEIFS(J$5:J$22182,$A$5:$A$22182,$AL7,$D$5:$D$22182,$AM7,$E$5:$E$22182,$AP7) -> 95.50690609
A8: =INDEX(Seas_Ar,C8) -> Sum | B8: =INDEX(WDWE_Ar,D8) -> WD | C8: 1 | D8: 1 | E8: 3 | F8: L | G8: 95.785 | H8: 121.0732618 | I8: 131.9679078 | J8: 279.155527 | K8: R | N8: =MAX(0,N7-IF(M8<>"",M8,N6-N7)) -> 0.9998 | O8: 0.0002 | P8: 1153.006825 | Q8: 1464.39142 | R8: 9990.000129 | S8: 10080.00016 | V8: 3 | W8: 104.2783761 | X8: 138.8319472 | Y8: 93.55710363 | Z8: 135.1023879 | AB8: Sum | AC8: WD | AF8: 3 | AG8: 52.83613333 | AH8: 72.26411585 | AI8: 41.40673019 | AJ8: 86.429819 | AL8: Sum | AM8: 1 | AP8: 3 | AQ8: 44.58347826 | AR8: 41.29410022 | AS8: 95.50690609
A9: =INDEX(Seas_Ar,C9) -> Sum | B9: =INDEX(WDWE_Ar,D9) -> WD | C9: 1 | D9: 1 | E9: 4 | F9: L | G9: 85.485 | H9: 108.053952 | I9: 147.8619864 | J9: 279.155527 | K9: R | N9: 0.9997 | O9: 0.0003 | P9: 1131.717937 | Q9: 1145.69755 | R9: 5763.303596 | S9: 6020.835031 | V9: 4 | W9: 94.65674314 | X9: 128.8391103 | Y9: 96.16623865 | Z9: 122.2855648 | AB9: Sum | AC9: WD | AF9: 4 | AG9: 49.40233333 | AH9: 68.94760105 | AI9: 41.17855852 | AJ9: 86.429819 | AL9: Sum | AM9: 1 | AP9: 4 | AQ9: 42.10826087 | AR9: 42.07874938 | AS9: 95.50690609
A10: =INDEX(Seas_Ar,C10) -> Sum | B10: =INDEX(WDWE_Ar,D10) -> WD | C10: 1 | D10: 1 | E10: 5 | F10: L | G10: 88.72 | H10: 112.1430265 | I10: 149.700158 | J10: 279.155527 | K10: R | N10: 0.9996 | O10: 0.0004 | P10: 1114.9455 | Q10: 1066.508278 | R10: 3352.324295 | S10: 3292.961602 | V10: 5 | W10: 101.0356072 | X10: 133.2165393 | Y10: 110.3294803 | Z10: 157.7984535 | AB10: Sum | AC10: WD | AF10: 5 | AG10: 50.47171111 | AH10: 69.3008044 | AI10: 42.78006668 | AJ10: 86.429819 | AL10: Sum | AM10: 1 | AP10: 5 | AQ10: 45.24891304 | AR10: 40.65778051 | AS10: 95.50690609
A11: =INDEX(Seas_Ar,C11) -> Sum | B11: =INDEX(WDWE_Ar,D11) -> WD | C11: 1 | D11: 1 | E11: 6 | F11: L | G11: 97.945 | H11: 123.8035249 | I11: 153.0068456 | J11: 279.155527 | K11: R | N11: 0.9995 | O11: 0.0005 | P11: 1029.515125 | Q11: 935.4077593 | R11: 3178.934745 | S11: 3257.215387 | V11: 6 | W11: 115.161862 | X11: 149.2945436 | Y11: 154.2126531 | Z11: 186.7045135 | AB11: Sum | AC11: WD | AF11: 6 | AG11: 59.69064444 | AH11: 82.7952928 | AI11: 46.43915947 | AJ11: 85.93271819 | AL11: Sum | AM11: 1 | AP11: 6 | AQ11: 54.45586957 | AR11: 45.55005736 | AS11: 95.0105757
A12: =INDEX(Seas_Ar,C12) -> Sum | B12: =INDEX(WDWE_Ar,D12) -> WD | C12: 1 | D12: 1 | E12: 7 | F12: L | G12: 119.08 | H12: 150.5183904 | I12: 131.9679078 | J12: 97.9775985 | K12: R | M12: 0.00025 | N12: 0.99925 | O12: 0.00075 | P12: 862.5978125 | Q12: 792.0233779 | R12: 2997.000039 | S12: 3024.000049 | V12: 7 | W12: 110.0053079 | X12: 147.243475 | Y12: 177.4208899 | Z12: 193.0586639 | AB12: Sum | AC12: WD | AF12: 7 | AG12: 68.95864444 | AH12: 96.93642879 | AI12: 58.50184031 | AJ12: 56.34867946 | AL12: Sum | AM12: 1 | AP12: 7 | AQ12: 63.96630435 | AR12: 56.71236218 | AS12: 64.75830413
A13: =INDEX(Seas_Ar,C13) -> Sum | B13: =INDEX(WDWE_Ar,D13) -> WD | C13: 1 | D13: 1 | E13: 8 | F13: L | G13: 126.135 | H13: 159.4359856 | I13: 131.9679078 | J13: 43.26335885 | K13: R | N13: 0.999 | O13: 0.001 | P13: 747.215625 | Q13: 724.4417583 | R13: 2997.000039 | S13: 2943.690127 | V13: 8 | W13: 70.05503064 | X13: 96.27087861 | Y13: 138.6211621 | Z13: 175.3848631 | AB13: Sum | AC13: WD | AF13: 8 | AG13: 84.42604444 | AH13: 120.3665563 | AI13: 64.74119481 | AJ13: 52.69210309 | AL13: Sum | AM13: 1 | AP13: 8 | AQ13: 75.80728261 | AR13: 61.29082269 | AS13: 62.57532615
A14: =INDEX(Seas_Ar,C14) -> Sum | B14: =INDEX(WDWE_Ar,D14) -> WD | C14: 1 | D14: 1 | E14: 9 | F14: L | G14: 153.56 | H14: 194.1014782 | I14: 153.0068456 | J14: 43.26335885 | K14: R | M14: 0.001 | N14: 0.998 | O14: 0.002 | P14: 525.27625 | Q14: 587.2739008 | R14: 1292.858885 | S14: 1722.420028 | V14: 9 | W14: 63.52621032 | X14: 85.26871381 | Y14: 79.81670675 | Z14: 106.1586418 | AB14: Sum | AC14: WD | AF14: 9 | AG14: 94.31206667 | AH14: 130.8925969 | AI14: 62.17074569 | AJ14: 40.5191814 | AL14: Sum | AM14: 1 | AP14: 9 | AQ14: 89.18086957 | AR14: 59.13493709 | AS14: 46.76287419
A15: =INDEX(Seas_Ar,C15) -> Sum | B15: =INDEX(WDWE_Ar,D15) -> WD | C15: 1 | D15: 1 | E15: 10 | F15: L | G15: 171.28 | H15: 216.4997472 | I15: 150.7990489 | J15: 43.26335885 | K15: R | N15: 0.997 | O15: 0.003 | P15: 471.0205 | Q15: 552.6710712 | R15: 895.2291304 | S15: 769.9804676 | V15: 10 | W15: 62.00631849 | X15: 84.24319432 | Y15: 46.74676307 | Z15: 46.98407769 | AB15: Sum | AC15: WD | AF15: 10 | AG15: 95.23093333 | AH15: 126.4054953 | AI15: 59.76728472 | AJ15: 36.70777672 | AL15: Sum | AM15: 1 | AP15: 10 | AQ15: 102.5866304 | AR15: 57.82668149 | AS15: 45.1855733
A16: =INDEX(Seas_Ar,C16) -> Sum | B16: =INDEX(WDWE_Ar,D16) -> WD | C16: 1 | D16: 1 | E16: 11 | F16: L | G16: 180.41 | H16: 228.0401646 | I16: 150.7990489 | J16: 43.26335885 | K16: R | N16: 0.996 | O16: 0.004 | P16: 434.8035 | Q16: 510.1985262 | R16: 819.5396359 | S16: 705.6000113 | V16: 11 | W16: 68.44265696 | X16: 92.63069911 | Y16: 43.32887718 | Z16: 39.21573452 | AB16: Sum | AC16: WD | AF16: 11 | AG16: 90.86262222 | AH16: 122.7992377 | AI16: 57.50510477 | AJ16: 33.31802945 | AL16: Sum | AM16: 1 | AP16: 11 | AQ16: 88.35315217 | AR16: 54.78906962 | AS16: 41.92710323
A17: =INDEX(Seas_Ar,C17) -> Sum | B17: =INDEX(WDWE_Ar,D17) -> WD | C17: 1 | D17: 1 | E17: 12 | F17: L | G17: 175.275 | H17: 221.5494698 | I17: 151.9079395 | J17: 43.26335885 | K17: R | N17: 0.995 | O17: 0.005 | P17: 410.030625 | Q17: 485.8278944 | R17: 756.7325405 | S17: 705.6000113 | V17: 12 | W17: 71.70912007 | X17: 98.71010109 | Y17: 47.71920727 | Z17: 43.52501505 | AB17: Sum | AC17: WD | AF17: 12 | AG17: 92.76668889 | AH17: 125.0975776 | AI17: 56.76877512 | AJ17: 29.43687097 | AL17: Sum | AM17: 1 | AP17: 12 | AQ17: 94.91652174 | AR17: 54.18424036 | AS17: 38.85489488
A18: =INDEX(Seas_Ar,C18) -> Sum | B18: =INDEX(WDWE_Ar,D18) -> WD | C18: 1 | D18: 1 | E18: 13 | F18: L | G18: 174.87 | H18: 221.0375455 | I18: 151.9079395 | J18: 10.08000016 | K18: R | M18: 0.0025 | N18: 0.9925 | O18: 0.0075 | P18: 370.515625 | Q18: 446.4557987 | R18: 699.300009 | S18: 676.7207863 | AB18: Sum | AC18: WD | AF18: 13 | AG18: 96.23273333 | AH18: 125.8766713 | AI18: 55.11878225 | AJ18: 27.3161733 | AL18: Sum | AM18: 1 | AP18: 13 | AQ18: 106.5461957 | AR18: 52.44489418 | AS18: 35.81621301
A19: =INDEX(Seas_Ar,C19) -> Sum | B19: =INDEX(WDWE_Ar,D19) -> WD | C19: 1 | D19: 1 | E19: 14 | F19: L | G19: 187.02 | H19: 236.3952751 | I19: 149.700158 | J19: 10.08000016 | K19: R | N19: 0.99 | O19: 0.01 | P19: 342.435 | Q19: 429.0892635 | R19: 625.1142583 | S19: 549.7883812 | AB19: Sum | AC19: WD | AF19: 14 | AG19: 93.75548889 | AH19: 125.6442107 | AI19: 55.26041849 | AJ19: 27.79566764 | AL19: Sum | AM19: 1 | AP19: 14 | AQ19: 94.46195652 | AR19: 52.39277278 | AS19: 33.93563548
A20: =INDEX(Seas_Ar,C20) -> Sum | B20: =INDEX(WDWE_Ar,D20) -> WD | C20: 1 | D20: 1 | E20: 15 | F20: L | G20: 193.565 | H20: 244.668225 | I20: 131.9679078 | J20: 43.26335885 | K20: R | M20: 0.005 | N20: 0.985 | O20: 0.015 | P20: 308.625625 | Q20: 389.9591285 | R20: 532.3421547 | S20: 438.1574397 | AB20: Sum | AC20: WD | AF20: 15 | AG20: 91.20733333 | AH20: 120.9319182 | AI20: 55.79907938 | AJ20: 37.11254459 | AL20: Sum | AM20: 1 | AP20: 15 | AQ20: 92.78902174 | AR20: 52.79693368 | AS20: 45.12114894
A21: =INDEX(Seas_Ar,C21) -> Sum | B21: =INDEX(WDWE_Ar,D21) -> WD | C21: 1 | D21: 1 | E21: 16 | F21: L | G21: 186.53 | H21: 235.7759099 | I21: 162.3175178 | J21: 43.26335885 | K21: R | N21: 0.98 | O21: 0.02 | P21: 292.275 | Q21: 364.3286695 | R21: 446.1933651 | S21: 368.8725579 | AB21: Sum | AC21: WD | AF21: 16 | AG21: 94.54231111 | AH21: 124.3170042 | AI21: 59.50541345 | AJ21: 41.78039121 | AL21: Sum | AM21: 1 | AP21: 16 | AQ21: 97.08054348 | AR21: 57.97370793 | AS21: 52.82336447
A22: =INDEX(Seas_Ar,C22) -> Sum | B22: =INDEX(WDWE_Ar,D22) -> WD | C22: 1 | D22: 1 | E22: 17 | F22: L | G22: 165.295 | H22: 208.9346434 | I22: 153.0068456 | J22: 165.5337639 | K22: R | N22: 0.975 | O22: 0.025 | P22: 274.361875 | Q22: =_xlfn.PERCENTILE.INC(H$5:H$22182,$N22) -> 338.1217297 | R22: =_xlfn.PERCENTILE.INC(I$5:I$22182,$N22) -> 379.3302864 | S22: =_xlfn.PERCENTILE.INC(J$5:J$22182,$N22) -> 317.5300911 | AB22: Sum | AC22: WD | AF22: 17 | AG22: 94.6644 | AH22: =AVERAGEIFS(H$5:H$22182,$A$5:$A$22182,$AB22,$B$5:$B$22182,$AC22,$E$5:$E$22182,$AF22) -> 125.3537614 | AI22: =AVERAGEIFS(I$5:I$22182,$A$5:$A$22182,$AB22,$B$5:$B$22182,$AC22,$E$5:$E$22182,$AF22) -> 62.92874234 | AJ22: =AVERAGEIFS(J$5:J$22182,$A$5:$A$22182,$AB22,$B$5:$B$22182,$AC22,$E$5:$E$22182,$AF22) -> 67.67604611 | AL22: Sum | AM22: 1 | AP22: 17 | AQ22: 101.465 | AR22: =AVERAGEIFS(I$5:I$22182,$A$5:$A$22182,$AL22,$D$5:$D$22182,$AM22,$E$5:$E$22182,$AP22) -> 61.60442134 | AS22: =AVERAGEIFS(J$5:J$22182,$A$5:$A$22182,$AL22,$D$5:$D$22182,$AM22,$E$5:$E$22182,$AP22) -> 72.57885035
A23: =INDEX(Seas_Ar,C23) -> Sum | B23: =INDEX(WDWE_Ar,D23) -> WD | C23: 1 | D23: 1 | E23: 18 | F23: L | G23: 153.105 | H23: 193.5263533 | I23: 162.3175178 | J23: 165.5337639 | K23: R | N23: 0.97 | O23: 0.03 | P23: 262.1375 | Q23: 319.1417606 | R23: 352.0775672 | S23: 287.9780419 | AB23: Sum | AC23: WD | AF23: 18 | AG23: 92.17477778 | AH23: 122.8502867 | AI23: 65.28140959 | AJ23: 71.8231823 | AL23: Sum | AM23: 1 | AP23: 18 | AQ23: 101.2028261 | AR23: 65.28399921 | AS23: 74.52253746
A24: =INDEX(Seas_Ar,C24) -> Sum | B24: =INDEX(WDWE_Ar,D24) -> WD | C24: 1 | D24: 1 | E24: 19 | F24: L | G24: 140.86 | H24: 178.0485427 | I24: 153.0068456 | J24: 165.5337639 | K24: R | N24: 0.965 | O24: 0.035 | P24: 253.219375 | Q24: 307.4817622 | R24: 315.833848 | S24: 283.6310495 | AB24: Sum | AC24: WD | AF24: 19 | AG24: 83.88111111 | AH24: 115.0070926 | AI24: 68.44792892 | AJ24: 72.41360134 | AL24: Sum | AM24: 1 | AP24: 19 | AQ24: 88.65793478 | AR24: 75.57000793 | AS24: 75.30132672
A25: =INDEX(Seas_Ar,C25) -> Sum | B25: =INDEX(WDWE_Ar,D25) -> WD | C25: 1 | D25: 1 | E25: 20 | F25: L | G25: 118.295 | H25: 149.526142 | I25: 153.0068456 | J25: 192.9916899 | K25: R | N25: 0.96 | O25: 0.04 | P25: 245.685 | Q25: 299.1913251 | R25: 281.0087222 | S25: 283.5403332 | AB25: Sum | AC25: WD | AF25: 20 | AG25: 76.58628889 | AH25: 105.3149222 | AI25: 66.6983023 | AJ25: 75.09022211 | AL25: Sum | AM25: 1 | AP25: 20 | AQ25: 78.6926087 | AR25: 65.97200624 | AS25: 75.97975477
A26: =INDEX(Seas_Ar,C26) -> Sum | B26: =INDEX(WDWE_Ar,D26) -> WD | C26: 1 | D26: 1 | E26: 21 | F26: L | G26: 137.29 | H26: 173.5360246 | I26: 153.0068456 | J26: 192.9916899 | K26: R | N26: 0.955 | O26: 0.045 | P26: 236.703125 | Q26: 289.7079423 | R26: 259.150597 | S26: 281.675527 | AB26: Sum | AC26: WD | AF26: 21 | AG26: 79.73966667 | AH26: 107.5695425 | AI26: 68.724896 | AJ26: 84.38684951 | AL26: Sum | AM26: 1 | AP26: 21 | AQ26: 81.81815217 | AR26: 68.65823073 | AS26: 83.84719434
A27: =INDEX(Seas_Ar,C27) -> Sum | B27: =INDEX(WDWE_Ar,D27) -> WD | C27: 1 | D27: 1 | E27: 22 | F27: L | G27: 115.935 | H27: 146.5430768 | I27: 162.3175178 | J27: 192.9916899 | K27: R | N27: 0.95 | O27: 0.05 | P27: 227.93125 | Q27: 280.1659394 | R27: 235.8339404 | S27: 281.675527 | AB27: Sum | AC27: WD | AF27: 22 | AG27: 82.60695556 | AH27: 109.8785039 | AI27: 66.63365594 | AJ27: 78.16260635 | AL27: Sum | AM27: 1 | AP27: 22 | AQ27: 82.52543478 | AR27: 66.42633406 | AS27: 80.57974105
A28: =INDEX(Seas_Ar,C28) -> Sum | B28: =INDEX(WDWE_Ar,D28) -> WD | C28: 1 | D28: 1 | E28: 23 | F28: L | G28: 124.465 | H28: 157.3250878 | I28: 154.5253147 | J28: 165.5337639 | K28: R | M28: 0.01 | N28: 0.94 | O28: 0.06 | P28: 212.3525 | Q28: 262.4825 | R28: 204.4653308 | S28: 281.675527 | AB28: Sum | AC28: WD | AF28: 23 | AG28: 75.25762222 | AH28: 98.85574201 | AI28: 61.95926823 | AJ28: 73.59820307 | AL28: Sum | AM28: 1 | AP28: 23 | AQ28: 68.97326087 | AR28: 61.54817342 | AS28: 77.47290958
A29: =INDEX(Seas_Ar,C29) -> Sum | B29: =INDEX(WDWE_Ar,D29) -> WD | C29: 1 | D29: 1 | E29: 24 | F29: L | G29: 124.485 | H29: 157.350368 | I29: 153.0068456 | J29: 165.5337639 | K29: R | N29: 0.93 | O29: 0.07 | P29: 202.4475 | Q29: 248.9501619 | R29: 195.5842213 | S29: 281.675527 | AB29: Sum | AC29: WD | AF29: 24 | AG29: 66.77197778 | AH29: 90.09738356 | AI29: 53.06981105 | AJ29: 71.87273107 | AL29: Sum | AM29: 1 | AP29: 24 | AQ29: 64.64663043 | AR29: 51.26498881 | AS29: 76.20940352
A30: =INDEX(Seas_Ar,C30) -> Sum | B30: =INDEX(WDWE_Ar,D30) -> WD | C30: 1 | D30: 2 | E30: 1 | F30: L | G30: 112.985 | H30: 142.8142453 | I30: 127.6422283 | J30: 209.5631972 | K30: R | N30: 0.92 | O30: 0.08 | P30: 192.19 | Q30: 236.0433025 | R30: 182.1676584 | S30: 281.675527 | AB30: Sum | AC30: WE | AE30: WE | AF30: 1 | AG30: 60.00537037 | AH30: 83.60846732 | AI30: 38.60308718 | AJ30: 74.788001 | AL30: Sum | AM30: 2 | AO30: =AO6+1 -> 2 | AP30: 1 | AQ30: 60.74208333 | AR30: 44.99059016 | AS30: 78.29955078
A31: =INDEX(Seas_Ar,C31) -> Sum | B31: =INDEX(WDWE_Ar,D31) -> WD | C31: 1 | D31: 2 | E31: 2 | F31: L | G31: 91.585 | H31: 115.764417 | I31: 127.6422283 | J31: 209.5631972 | K31: R | N31: 0.91 | O31: 0.09 | P31: 183.5925 | Q31: 226.2190748 | R31: 164.9249085 | S31: 280.2844897 | AB31: Sum | AC31: WE | AF31: 2 | AG31: 54.2982716 | AH31: 78.23522142 | AI31: 35.65332364 | AJ31: 74.788001 | AL31: Sum | AM31: 2 | AP31: 2 | AQ31: 55.77145833 | AR31: 44.71586509 | AS31: 78.29955078
A32: =INDEX(Seas_Ar,C32) -> Sum | B32: =INDEX(WDWE_Ar,D32) -> WD | C32: 1 | D32: 2 | E32: 3 | F32: L | G32: 99.395 | H32: 125.6363404 | I32: 127.6422283 | J32: 209.5631972 | K32: R | N32: 0.9 | O32: 0.1 | P32: 173.135 | Q32: 214.9852567 | R32: 150.1696893 | S32: 279.7099147 | AB32: Sum | AC32: WE | AF32: 3 | AG32: 49.56401235 | AH32: 71.72411996 | AI32: 35.45623688 | AJ32: 74.788001 | AL32: Sum | AM32: 2 | AP32: 3 | AQ32: 52.41572917 | AR32: 42.89851753 | AS32: 78.29955078
A33: =INDEX(Seas_Ar,C33) -> Sum | B33: =INDEX(WDWE_Ar,D33) -> WD | C33: 1 | D33: 2 | E33: 4 | F33: L | G33: 119.32 | H33: 150.8217529 | I33: 127.6422283 | J33: 209.5631972 | K33: R | N33: 0.89 | O33: 0.11 | P33: 164.49125 | Q33: 206.4064582 | R33: 139.4778808 | S33: 279.155527 | AB33: Sum | AC33: WE | AF33: 4 | AG33: 45.3754321 | AH33: 69.81614328 | AI33: 35.04245359 | AJ33: 74.788001 | AL33: Sum | AM33: 2 | AP33: 4 | AQ33: 48.53739583 | AR33: 42.29828491 | AS33: 78.29955078
A34: =INDEX(Seas_Ar,C34) -> Sum | B34: =INDEX(WDWE_Ar,D34) -> WD | C34: 1 | D34: 2 | E34: 5 | F34: L | G34: 102.155 | H34: 129.1250098 | I34: 127.6422283 | J34: 209.5631972 | K34: R | N34: 0.88 | O34: 0.12 | P34: 156.46 | Q34: 198.0078032 | R34: 128.3115641 | S34: 279.155527 | AB34: Sum | AC34: WE | AF34: 5 | AG34: 44.93765432 | AH34: 68.19865941 | AI34: 35.4550037 | AJ34: 74.788001 | AL34: Sum | AM34: 2 | AP34: 5 | AQ34: 49.10020833 | AR34: 45.13232341 | AS34: 78.29955078
A35: =INDEX(Seas_Ar,C35) -> Sum | B35: =INDEX(WDWE_Ar,D35) -> WD | C35: 1 | D35: 2 | E35: 6 | F35: L | G35: 110.365 | H35: 139.5025374 | I35: 127.6422283 | J35: 209.5631972 | K35: R | N35: 0.87 | O35: 0.13 | P35: 149.37625 | Q35: 190.4152451 | R35: 120.3770035 | S35: 279.155527 | AB35: Sum | AC35: WE | AF35: 6 | AG35: 52.55425926 | AH35: 74.19913023 | AI35: 36.9353737 | AJ35: 72.2235742 | AL35: Sum | AM35: 2 | AP35: 6 | AQ35: 56.58979167 | AR35: 48.80801879 | AS35: 77.7669908
A36: =INDEX(Seas_Ar,C36) -> Sum | B36: =INDEX(WDWE_Ar,D36) -> WD | C36: 1 | D36: 2 | E36: 7 | F36: L | G36: 144.27 | H36: 182.3588191 | I36: 127.6422283 | J36: 61.95168007 | K36: R | N36: 0.86 | O36: 0.14 | P36: 142.5575 | Q36: 183.387255 | R36: 113.1767124 | S36: 277.9056168 | AB36: Sum | AC36: WE | AF36: 7 | AG36: 55.39216049 | AH36: 79.36239127 | AI36: 38.49566376 | AJ36: 27.57278266 | AL36: Sum | AM36: 2 | AP36: 7 | AQ36: 67.40145833 | AR36: 59.78432308 | AS36: 48.71538051
A37: =INDEX(Seas_Ar,C37) -> Sum | B37: =INDEX(WDWE_Ar,D37) -> WD | C37: 1 | D37: 2 | E37: 8 | F37: L | G37: 136.425 | H37: 172.4426554 | I37: 162.0877521 | J37: 10.08000016 | K37: R | N37: 0.85 | O37: 0.15 | P37: 136.43625 | Q37: 178.0254274 | R37: 111.1387514 | S37: 271.5753779 | AB37: Sum | AC37: WE | AF37: 8 | AG37: 55.15796296 | AH37: 81.83225339 | AI37: 41.49180037 | AJ37: 21.44464041 | AL37: Sum | AM37: 2 | AP37: 8 | AQ37: 81.39885417 | AR37: 67.06599304 | AS37: 43.40658049
A38: =INDEX(Seas_Ar,C38) -> Sum | B38: =INDEX(WDWE_Ar,D38) -> WD | C38: 1 | D38: 2 | E38: 9 | F38: L | G38: 155.94 | H38: 197.1098236 | I38: 150.9588926 | J38: 10.08000016 | K38: R | N38: 0.84 | O38: 0.16 | P38: 131.035 | Q38: 172.4426554 | R38: 109.8500405 | S38: 254.8526459 | AB38: Sum | AC38: WE | AF38: 9 | AG38: 59.93777778 | AH38: 92.98587421 | AI38: 44.66627722 | AJ38: 19.15672918 | AL38: Sum | AM38: 2 | AP38: 9 | AQ38: 91.55635417 | AR38: 62.76071915 | AS38: 30.62052031
A39: =INDEX(Seas_Ar,C39) -> Sum | B39: =INDEX(WDWE_Ar,D39) -> WD | C39: 1 | D39: 2 | E39: 10 | F39: L | G39: 198.06 | H39: 250.3499529 | I39: 128.3115641 | J39: 10.08000016 | K39: R | N39: 0.83 | O39: 0.17 | P39: 126.4 | Q39: 167.9724966 | R39: 107.8245678 | S39: 239.9544069 | AB39: Sum | AC39: WE | AF39: 10 | AG39: 66.17154321 | AH39: 104.3673209 | AI39: 44.30454056 | AJ39: 17.87918248 | AL39: Sum | AM39: 2 | AP39: 10 | AQ39: 91.45416667 | AR39: 61.20123838 | AS39: 28.80801045
A40: =INDEX(Seas_Ar,C40) -> Sum | B40: =INDEX(WDWE_Ar,D40) -> WD | C40: 1 | D40: 2 | E40: 11 | F40: L | G40: 214.27 | H40: 270.8395658 | I40: 128.3115641 | J40: 10.08000016 | K40: R | N40: 0.82 | O40: 0.18 | P40: 122.4775 | Q40: 163.614347 | R40: 105.2846107 | S40: 229.7937649 | AB40: Sum | AC40: WE | AF40: 11 | AG40: 67.51438272 | AH40: 103.1543883 | AI40: 43.06097081 | AJ40: 17.27276471 | AL40: Sum | AM40: 2 | AP40: 11 | AQ40: 87.6965625 | AR40: 59.85945622 | AS40: 26.9690403
A41: =INDEX(Seas_Ar,C41) -> Sum | B41: =INDEX(WDWE_Ar,D41) -> WD | C41: 1 | D41: 2 | E41: 12 | F41: L | G41: 189.975 | H41: 240.1304267 | I41: 128.3115641 | J41: 10.08000016 | K41: R | N41: 0.81 | O41: 0.19 | P41: 118.90375 | Q41: 159.5672927 | R41: 102.9069935 | S41: 217.3147198 | AB41: Sum | AC41: WE | AF41: 12 | AG41: 64.58469136 | AH41: 98.70294734 | AI41: 42.72353053 | AJ41: 15.80755597 | AL41: Sum | AM41: 2 | AP41: 12 | AQ41: 91.6965625 | AR41: 58.83568972 | AS41: 21.63504004
A42: =INDEX(Seas_Ar,C42) -> Sum | B42: =INDEX(WDWE_Ar,D42) -> WD | C42: 1 | D42: 2 | E42: 13 | F42: L | G42: 187.145 | H42: 236.5532765 | I42: 128.3115641 | J42: 10.08000016 | K42: R | N42: 0.8 | O42: 0.2 | P42: 115.83 | Q42: 155.6484078 | R42: 100.6592434 | S42: 205.0574359 | AB42: Sum | AC42: WE | AF42: 13 | AG42: 61.62524691 | AH42: 95.24215349 | AI42: 41.62167059 | AJ42: 15.17463136 | AL42: Sum | AM42: 2 | AP42: 13 | AQ42: 92.49802083 | AR42: 56.9300972 | AS42: 21.94038019
A43: =INDEX(Seas_Ar,C43) -> Sum | B43: =INDEX(WDWE_Ar,D43) -> WD | C43: 1 | D43: 2 | E43: 14 | F43: L | G43: 225.8 | H43: 285.4136089 | I43: 128.3115641 | J43: 10.08000016 | K43: R | N43: 0.79 | O43: 0.21 | P43: 112.67375 | Q43: 152.0212151 | R43: 98.23167119 | S43: 194.1609582 | AB43: Sum | AC43: WE | AF43: 14 | AG43: 58.89969136 | AH43: 90.52493196 | AI43: 41.00229063 | AJ43: 14.25399147 | AL43: Sum | AM43: 2 | AP43: 14 | AQ43: 94.03260417 | AR43: 56.59501586 | AS43: 22.06680025
A44: =INDEX(Seas_Ar,C44) -> Sum | B44: =INDEX(WDWE_Ar,D44) -> WD | C44: 1 | D44: 2 | E44: 15 | F44: L | G44: 223.71 | H44: 282.7718266 | I44: 128.3115641 | J44: 10.08000016 | K44: R | N44: 0.78 | O44: 0.22 | P44: 109.0775 | Q44: 148.3742644 | R44: 96.19370834 | S44: 185.1595254 | AB44: Sum | AC44: WE | AF44: 15 | AG44: 59.09283951 | AH44: 88.10961844 | AI44: 41.59404407 | AJ44: 18.51895138 | AL44: Sum | AM44: 2 | AP44: 15 | AQ44: 91.20875 | AR44: 57.45519681 | AS44: 29.43087031
A45: =INDEX(Seas_Ar,C45) -> Sum | B45: =INDEX(WDWE_Ar,D45) -> WD | C45: 1 | D45: 2 | E45: 16 | F45: L | G45: 229.365 | H45: 289.9198069 | I45: 128.3115641 | J45: 10.08000016 | K45: R | N45: 0.77 | O45: 0.23 | P45: 105.9175 | Q45: 144.9179097 | R45: 93.52138788 | S45: 175.7145702 | AB45: Sum | AC45: WE | AF45: 16 | AG45: 59.50493827 | AH45: 91.19031419 | AI45: 44.83783427 | AJ45: 26.36007168 | AL45: Sum | AM45: 2 | AP45: 16 | AQ45: 100.4665625 | AR45: 60.19724333 | AS45: 33.92718041
A46: =INDEX(Seas_Ar,C46) -> Sum | B46: =INDEX(WDWE_Ar,D46) -> WD | C46: 1 | D46: 2 | E46: 17 | F46: L | G46: 236.7 | H46: 299.1913251 | I46: 150.9588926 | J46: 145.061286 | K46: R | N46: 0.76 | O46: 0.24 | P46: 102.785 | Q46: 141.5181905 | R46: 91.88802454 | S46: 166.5619282 | AB46: Sum | AC46: WE | AF46: 17 | AG46: 62.5258642 | AH46: 95.20877168 | AI46: 49.50871417 | AJ46: 47.71112951 | AL46: Sum | AM46: 2 | AP46: 17 | AQ46: 95.85 | AR46: 65.15748652 | AS46: 58.95015082
A47: =INDEX(Seas_Ar,C47) -> Sum | B47: =INDEX(WDWE_Ar,D47) -> WD | C47: 1 | D47: 2 | E47: 18 | F47: L | G47: 168.985 | H47: 213.5988427 | I47: 150.9588926 | J47: 145.061286 | K47: R | N47: 0.75 | O47: 0.25 | P47: 100.24125 | Q47: 137.8512816 | R47: 89.48043085 | S47: 156.2400025 | AB47: Sum | AC47: WE | AF47: 18 | AG47: 65.77228395 | AH47: 110.3078265 | AI47: 52.87201434 | AJ47: 50.85360089 | AL47: Sum | AM47: 2 | AP47: 18 | AQ47: 96.258125 | AR47: 66.88055329 | AS47: 65.22789111
A48: =INDEX(Seas_Ar,C48) -> Sum | B48: =INDEX(WDWE_Ar,D48) -> WD | C48: 1 | D48: 2 | E48: 19 | F48: L | G48: 142.185 | H48: 179.7233568 | I48: 150.9588926 | J48: 145.061286 | K48: R | N48: 0.74 | O48: 0.26 | P48: 98.09 | Q48: 134.8142199 | R48: 87.76214961 | S48: 151.4822412 | AB48: Sum | AC48: WE | AF48: 19 | AG48: 65.21481481 | AH48: 101.1493675 | AI48: 53.92910395 | AJ48: 52.87905865 | AL48: Sum | AM48: 2 | AP48: 19 | AQ48: 92.36125 | AR48: 67.71180452 | AS48: 65.44398097
A49: =INDEX(Seas_Ar,C49) -> Sum | B49: =INDEX(WDWE_Ar,D49) -> WD | C49: 1 | D49: 2 | E49: 20 | F49: L | G49: 138.615 | H49: 175.2108388 | I49: 150.9588926 | J49: 145.061286 | K49: R | N49: 0.73 | O49: 0.27 | P49: 95.93625 | Q49: 131.9941039 | R49: 86.02389172 | S49: 145.6459279 | AB49: Sum | AC49: WE | AF49: 20 | AG49: 62.81506173 | AH49: 91.70489447 | AI49: 54.06970409 | AJ49: 52.07614305 | AL49: Sum | AM49: 2 | AP49: 20 | AQ49: 78.856875 | AR49: 69.43466293 | AS49: 68.98374074
A50: =INDEX(Seas_Ar,C50) -> Sum | B50: =INDEX(WDWE_Ar,D50) -> WD | C50: 1 | D50: 2 | E50: 21 | F50: L | G50: 144.35 | H50: 182.4599399 | I50: 162.0877521 | J50: 149.0932861 | K50: R | N50: 0.72 | O50: 0.28 | P50: 93.5 | Q50: 129.6968844 | R50: 84.96495414 | S50: 140.1624053 | AB50: Sum | AC50: WE | AF50: 21 | AG50: 63.80919753 | AH50: 95.81275631 | AI50: 56.62961094 | AJ50: 57.25502343 | AL50: Sum | AM50: 2 | AP50: 21 | AQ50: 83.8703125 | AR50: 70.53293882 | AS50: 77.57295112
A51: =INDEX(Seas_Ar,C51) -> Sum | B51: =INDEX(WDWE_Ar,D51) -> WD | C51: 1 | D51: 2 | E51: 22 | F51: L | G51: 141.255 | H51: 178.5478269 | I51: 150.9588926 | J51: 149.0932861 | K51: R | N51: 0.71 | O51: 0.29 | P51: 91.64 | Q51: 127.3202312 | R51: 83.39152646 | S51: 134.4974348 | AB51: Sum | AC51: WE | AF51: 22 | AG51: 65.52209877 | AH51: 101.2788267 | AI51: 53.96980417 | AJ51: 54.52993855 | AL51: Sum | AM51: 2 | AP51: 22 | AQ51: 88.30583333 | AR51: 68.6054932 | AS51: 73.08525096
A52: =INDEX(Seas_Ar,C52) -> Sum | B52: =INDEX(WDWE_Ar,D52) -> WD | C52: 1 | D52: 2 | E52: 23 | F52: L | G52: 153.295 | H52: 193.7665154 | I52: 150.9588926 | J52: 145.061286 | K52: R | N52: 0.7 | O52: 0.3 | P52: 89.795 | Q52: 125.2445877 | R52: 82.07284865 | S52: 129.8304052 | AB52: Sum | AC52: WE | AF52: 23 | AG52: 58.76222222 | AH52: 88.76581581 | AI52: 50.39757742 | AJ52: 51.70156527 | AL52: Sum | AM52: 2 | AP52: 23 | AQ52: 81.30833333 | AR52: 63.62006714 | AS52: 67.48770128
A53: =INDEX(Seas_Ar,C53) -> Sum | B53: =INDEX(WDWE_Ar,D53) -> WD | C53: 1 | D53: 2 | E53: 24 | F53: L | G53: 150.785 | H53: 190.5938486 | I53: 150.9588926 | J53: 145.061286 | K53: R | N53: 0.69 | O53: 0.31 | P53: 88.0375 | Q53: 122.9144426 | R53: 80.8990244 | S53: 124.0747183 | AB53: Sum | AC53: WE | AF53: 24 | AG53: 55.00339506 | AH53: 81.51334322 | AI53: 46.82276068 | AJ53: 50.5830585 | AL53: Sum | AM53: 2 | AP53: 24 | AQ53: 70.10927083 | AR53: 56.88264455 | AS53: 66.03324113
A54: =INDEX(Seas_Ar,C54) -> Sum | B54: =INDEX(WDWE_Ar,D54) -> WD | C54: 1 | D54: 3 | E54: 1 | F54: L | G54: 144.69 | H54: 182.8897036 | I54: 119.9898922 | J54: 271.5753779 | K54: R | N54: 0.68 | O54: 0.32 | P54: 86.44 | Q54: 120.9003346 | R54: 79.61031346 | S54: 117.5731213 | AB54: Win | AC54: WD | AD54: Win | AE54: WD | AF54: 1 | AG54: 85.9836875 | AH54: 116.5959475 | AI54: 83.9809984 | AJ54: 138.6355348 | AL54: Sum | AM54: 3 | AO54: =AO30+1 -> 3 | AP54: 1 | AQ54: 64.13554348 | AR54: 43.86283326 | AS54: 79.001125
A55: =INDEX(Seas_Ar,C55) -> Sum | B55: =INDEX(WDWE_Ar,D55) -> WD | C55: 1 | D55: 3 | E55: 2 | F55: L | G55: 128.03 | H55: 161.8312858 | I55: 119.9898922 | J55: 271.5753779 | K55: R | N55: 0.67 | O55: 0.33 | P55: 84.845 | Q55: 119.1624191 | R55: 78.62129796 | S55: 113.2286437 | AB55: Win | AC55: WD | AF55: 2 | AG55: 82.15440625 | AH55: 110.3001141 | AI55: 82.58845497 | AJ55: 138.6355348 | AL55: Sum | AM55: 3 | AP55: 2 | AQ55: 60.88771739 | AR55: 43.97315757 | AS55: 79.001125
A56: =INDEX(Seas_Ar,C56) -> Sum | B56: =INDEX(WDWE_Ar,D56) -> WD | C56: 1 | D56: 3 | E56: 3 | F56: L | G56: 112.73 | H56: 142.4919226 | I56: 119.9898922 | J56: 271.5753779 | K56: R | N56: 0.66 | O56: 0.34 | P56: 83.285 | Q56: 117.4935982 | R56: 77.66225887 | S56: 109.3680018 | AB56: Win | AC56: WD | AF56: 3 | AG56: 76.96159375 | AH56: 107.1287374 | AI56: 77.36393441 | AJ56: 138.6355348 | AL56: Sum | AM56: 3 | AP56: 3 | AQ56: 57.14619565 | AR56: 42.9090052 | AS56: 79.001125
A57: =INDEX(Seas_Ar,C57) -> Sum | B57: =INDEX(WDWE_Ar,D57) -> WD | C57: 1 | D57: 3 | E57: 4 | F57: L | G57: 113.445 | H57: 143.3956902 | I57: 120.7791031 | J57: 271.5753779 | K57: R | N57: 0.65 | O57: 0.35 | P57: 81.83 | Q57: 115.7644157 | R57: 76.47345403 | S57: 106.3440017 | AB57: Win | AC57: WD | AF57: 4 | AG57: 70.72496875 | AH57: 96.5174657 | AI57: 72.81654853 | AJ57: 138.6355348 | AL57: Sum | AM57: 3 | AP57: 4 | AQ57: 55.25728261 | AR57: 42.12717914 | AS57: 79.001125
A58: =INDEX(Seas_Ar,C58) -> Sum | B58: =INDEX(WDWE_Ar,D58) -> WD | C58: 1 | D58: 3 | E58: 5 | F58: L | G58: 117.79 | H58: 148.8878166 | I58: 120.7791031 | J58: 271.5753779 | K58: R | N58: 0.64 | O58: 0.36 | P58: 80.585 | Q58: 113.765255 | R58: 75.5044228 | S58: 102.9873598 | AB58: Win | AC58: WD | AF58: 5 | AG58: 67.20934375 | AH58: 90.98331174 | AI58: 79.7216994 | AJ58: 138.6355348 | AL58: Sum | AM58: 3 | AP58: 5 | AQ58: 56.7275 | AR58: 43.30143846 | AS58: 79.001125
A59: =INDEX(Seas_Ar,C59) -> Sum | B59: =INDEX(WDWE_Ar,D59) -> WD | C59: 1 | D59: 3 | E59: 6 | F59: L | G59: 154.01 | H59: 194.670283 | I59: 120.7791031 | J59: 271.5753779 | K59: R | N59: 0.63 | O59: 0.37 | P59: 79.3225 | Q59: 112.2337994 | R59: 74.30561821 | S59: 99.33336167 | AB59: Win | AC59: WD | AF59: 6 | AG59: 67.76740625 | AH59: 94.17464305 | AI59: 90.1847889 | AJ59: 138.4723018 | AL59: Sum | AM59: 3 | AP59: 6 | AQ59: 63.84293478 | AR59: 47.40211652 | AS59: 78.24118051
A60: =INDEX(Seas_Ar,C60) -> Sum | B60: =INDEX(WDWE_Ar,D60) -> WD | C60: 1 | D60: 3 | E60: 7 | F60: L | G60: 163.92 | H60: 207.1966287 | I60: 120.7791031 | J60: 230.1768099 | K60: R | N60: 0.62 | O60: 0.38 | P60: 78.04 | Q60: 110.5779214 | R60: 73.21671186 | S60: 96.7579194 | AB60: Win | AC60: WD | AF60: 7 | AG60: 77.08884375 | AH60: 106.7942297 | AI60: 146.7418631 | AJ60: 165.2180702 | AL60: Sum | AM60: 3 | AP60: 7 | AQ60: 71.42184783 | AR60: 58.90603564 | AS60: 52.0358099
A61: =INDEX(Seas_Ar,C61) -> Sum | B61: =INDEX(WDWE_Ar,D61) -> WD | C61: 1 | D61: 3 | E61: 8 | F61: L | G61: 165.43 | H61: 209.1052848 | I61: 142.0877676 | J61: 219.6936005 | K61: R | N61: 0.61 | O61: 0.39 | P61: 76.9125 | Q61: 108.8444127 | R61: 73.0568682 | S61: 92.47391933 | AB61: Win | AC61: WD | AF61: 8 | AG61: 94.22821875 | AH61: 130.2279932 | AI61: 227.0996753 | AJ61: 212.9872536 | AL61: Sum | AM61: 3 | AP61: 8 | AQ61: 87.96728261 | AR61: 66.50929457 | AS61: 46.73876894
A62: =INDEX(Seas_Ar,C62) -> Sum | B62: =INDEX(WDWE_Ar,D62) -> WD | C62: 1 | D62: 3 | E62: 9 | F62: L | G62: 140.67 | H62: 177.8083807 | I62: 121.5583219 | J62: 194.9976001 | K62: R | N62: 0.6 | O62: 0.4 | P62: 75.58 | Q62: 107.3919682 | R62: 72.77714941 | S62: 90.03456114 | AB62: Win | AC62: WD | AF62: 9 | AG62: 125.1594375 | AH62: 151.8905436 | AI62: 181.1872587 | AJ62: 176.5185692 | AL62: Sum | AM62: 3 | AP62: 9 | AQ62: 95.75478261 | AR62: 64.62835156 | AS62: 35.9621534
A63: =INDEX(Seas_Ar,C63) -> Sum | B63: =INDEX(WDWE_Ar,D63) -> WD | C63: 1 | D63: 3 | E63: 10 | F63: L | G63: 157.11 | H63: 198.5887161 | I63: 120.7791031 | J63: 155.221928 | K63: R | N63: 0.59 | O63: 0.41 | P63: 74.4675 | Q63: 106.0797407 | R63: 72.68724307 | S63: 86.88959832 | AB63: Win | AC63: WD | AF63: 10 | AG63: 131.064 | AH63: 158.7693721 | AI63: 158.9480198 | AJ63: 155.4443135 | AL63: Sum | AM63: 3 | AP63: 10 | AQ63: 97.49663043 | AR63: 61.5449159 | AS63: 28.61777788
A64: =INDEX(Seas_Ar,C64) -> Sum | B64: =INDEX(WDWE_Ar,D64) -> WD | C64: 1 | D64: 3 | E64: 11 | F64: L | G64: 140.76 | H64: 177.9221416 | I64: 120.7791031 | J64: 155.221928 | K64: R | N64: 0.58 | O64: 0.42 | P64: 73.3175 | Q64: 104.6468881 | R64: 72.49743063 | S64: 84.36959828 | AB64: Win | AC64: WD | AF64: 11 | AG64: 111.696875 | AH64: 147.454568 | AI64: 150.2240021 | AJ64: 144.8705188 | AL64: Sum | AM64: 3 | AP64: 11 | AQ64: 96.90228261 | AR64: 59.69111957 | AS64: 24.96092934
A65: =INDEX(Seas_Ar,C65) -> Sum | B65: =INDEX(WDWE_Ar,D65) -> WD | C65: 1 | D65: 3 | E65: 12 | F65: L | G65: 156.75 | H65: 198.1336722 | I65: 121.5583219 | J65: 155.221928 | K65: R | N65: 0.57 | O65: 0.43 | P65: 72.115 | Q65: 103.322655 | R65: 72.31511229 | S65: 81.45647885 | AB65: Win | AC65: WD | AF65: 12 | AG65: 109.0475625 | AH65: 142.7135903 | AI65: 142.1916671 | AJ65: 126.4099436 | AL65: Sum | AM65: 3 | AP65: 12 | AQ65: 92.78478261 | AR65: 58.49970331 | AS65: 22.65545797
A66: =INDEX(Seas_Ar,C66) -> Sum | B66: =INDEX(WDWE_Ar,D66) -> WD | C66: 1 | D66: 3 | E66: 13 | F66: L | G66: 175.415 | H66: 221.7264313 | I66: 120.7791031 | J66: 149.9904055 | K66: R | N66: 0.56 | O66: 0.44 | P66: 71.27 | Q66: 102.0380053 | R66: 72.21771185 | S66: 78.65424003 | AB66: Win | AC66: WD | AF66: 13 | AG66: 105.3318438 | AH66: 138.9747245 | AI66: 137.8982152 | AJ66: 114.2707254 | AL66: Sum | AM66: 3 | AP66: 13 | AQ66: 96.37652174 | AR66: 57.68790727 | AS66: 19.09918992
A67: =INDEX(Seas_Ar,C67) -> Sum | B67: =INDEX(WDWE_Ar,D67) -> WD | C67: 1 | D67: 3 | E67: 14 | F67: L | G67: 238.545 | H67: 301.5234248 | I67: 120.7791031 | J67: 138.2572859 | K67: R | N67: 0.55 | O67: 0.45 | P67: 70.36 | Q67: 100.6304937 | R67: 72.21771185 | S67: 75.26735936 | AB67: Win | AC67: WD | AF67: 14 | AG67: 103.9325937 | AH67: 138.0979549 | AI67: 136.6060087 | AJ67: 118.5727433 | AL67: Sum | AM67: 3 | AP67: 14 | AQ67: 97.49336957 | AR67: 57.296126 | AS67: 19.90778127
A68: =INDEX(Seas_Ar,C68) -> Sum | B68: =INDEX(WDWE_Ar,D68) -> WD | C68: 1 | D68: 3 | E68: 15 | F68: L | G68: 175.025 | H68: 221.2334672 | I68: 121.5583219 | J68: 155.221928 | K68: R | N68: 0.54 | O68: 0.46 | P68: 69.4675 | Q68: 99.17540297 | R68: 71.29363378 | S68: 72.44496393 | AB68: Win | AC68: WD | AF68: 15 | AG68: 101.03425 | AH68: 135.8582147 | AI68: 139.5647346 | AJ68: 149.6118987 | AL68: Sum | AM68: 3 | AP68: 15 | AQ68: 95.91597826 | AR68: 58.36918217 | AS68: 28.62018809
A69: =INDEX(Seas_Ar,C69) -> Sum | B69: =INDEX(WDWE_Ar,D69) -> WD | C69: 1 | D69: 3 | E69: 16 | F69: L | G69: 170.61 | H69: 215.6528601 | I69: 121.5583219 | J69: 155.221928 | K69: R | N69: 0.53 | O69: 0.47 | P69: 68.57375 | Q69: 97.85446936 | R69: 70.28964152 | S69: 69.77376235 | AB69: Win | AC69: WD | AF69: 16 | AG69: 95.528125 | AH69: 125.3291617 | AI69: 149.3097298 | AJ69: 171.8421424 | AL69: Sum | AM69: 3 | AP69: 16 | AQ69: 99.45717391 | AR69: 62.0826385 | AS69: 30.28338818
A70: =INDEX(Seas_Ar,C70) -> Sum | B70: =INDEX(WDWE_Ar,D70) -> WD | C70: 1 | D70: 3 | E70: 17 | F70: L | G70: 174.655 | H70: 220.7657832 | I70: 148.6911583 | J70: 155.221928 | K70: R | N70: 0.52 | O70: 0.48 | P70: 67.64 | Q70: 96.42007143 | R70: 69.47046181 | S70: 66.83040415 | AB70: Win | AC70: WD | AF70: 17 | AG70: 100.4484375 | AH70: 130.7995102 | AI70: 175.4554952 | AJ70: 241.9162878 | AL70: Sum | AM70: 3 | AP70: 17 | AQ70: 95.52423913 | AR70: 65.35306087 | AS70: 57.41348963
A71: =INDEX(Seas_Ar,C71) -> Sum | B71: =INDEX(WDWE_Ar,D71) -> WD | C71: 1 | D71: 3 | E71: 18 | F71: L | G71: 161.36 | H71: 203.9607614 | I71: 148.6911583 | J71: 155.221928 | K71: R | N71: 0.51 | O71: =1-N71 -> 0.49 | P71: =_xlfn.PERCENTILE.INC(G$5:G$22182,$N71) -> 66.675 | Q71: 94.70949549 | R71: 68.44648718 | S71: 64.33056073 | AB71: Win | AC71: WD | AF71: 18 | AG71: =AVERAGEIFS(G$5:G$22182,$A$5:$A$22182,$AB71,$B$5:$B$22182,$AC71,$E$5:$E$22182,$AF71) -> 108.0382188 | AH71: 136.8551336 | AI71: 433.0887957 | AJ71: 518.1359468 | AL71: Sum | AM71: 3 | AP71: 18 | AQ71: =AVERAGEIFS(G$5:G$22182,$A$5:$A$22182,$AL71,$D$5:$D$22182,$AM71,$E$5:$E$22182,$AP71) -> 92.82858696 | AR71: 67.0869773 | AS71: 61.40341646
A72: =INDEX(Seas_Ar,C72) -> Sum | B72: =INDEX(WDWE_Ar,D72) -> WD | C72: 1 | D72: 3 | E72: 19 | F72: L | G72: 149.05 | H72: 188.4007901 | I72: 148.6911583 | J72: 155.221928 | K72: R | N72: =MAX(0,N71-IF(M72<>"",M72,N70-N71)) -> 0.5 | O72: 0.5 | P72: 65.77 | Q72: 93.35338629 | R72: 67.442493 | S72: 61.56864284 | AB72: Win | AC72: WD | AF72: 19 | AG72: 133.1802188 | AH72: 172.5050016 | AI72: 625.117953 | AJ72: 578.90115 | AL72: Sum | AM72: 3 | AP72: 19 | AQ72: 84.82641304 | AR72: 67.59603301 | AS72: 61.6582651
A73: =INDEX(Seas_Ar,C73) -> Sum | B73: =INDEX(WDWE_Ar,D73) -> WD | C73: 1 | D73: 3 | E73: 20 | F73: L | G73: 123.27 | H73: 155.8145951 | I73: 148.6911583 | J73: 155.221928 | K73: R | N73: 0.49 | O73: 0.51 | P73: 64.87875 | Q73: 92.08453256 | R73: 67.09284452 | S73: 59.41151957 | AB73: Win | AC73: WD | AF73: 20 | AG73: 149.7090313 | AH73: 191.4778004 | AI73: 262.6802481 | AJ73: 348.5117209 | AL73: Sum | AM73: 3 | AP73: 20 | AQ73: 80.77141304 | AR73: 67.77997909 | AS73: 64.4035317
A74: =INDEX(Seas_Ar,C74) -> Sum | B74: =INDEX(WDWE_Ar,D74) -> WD | C74: 1 | D74: 3 | E74: 21 | F74: L | G74: 116.76 | H74: 147.5858856 | I74: 148.6911583 | J74: 155.221928 | K74: R | N74: 0.48 | O74: 0.52 | P74: 63.91 | Q74: 90.85528822 | R74: 66.49343842 | S74: 57.0931203 | AB74: Win | AC74: WD | AF74: 21 | AG74: 118.49825 | AH74: 156.4844711 | AI74: 193.1034554 | AJ74: 255.1835194 | AL74: Sum | AM74: 3 | AP74: 21 | AQ74: 81.13532609 | AR74: 71.08862379 | AS74: 79.96946242
A75: =INDEX(Seas_Ar,C75) -> Sum | B75: =INDEX(WDWE_Ar,D75) -> WD | C75: 1 | D75: 3 | E75: 22 | F75: L | G75: 95.335 | H75: 120.504457 | I75: 154.0757677 | J75: 155.221928 | K75: R | N75: 0.47 | O75: 0.53 | P75: 62.93625 | Q75: 89.78458031 | R75: 65.3445945 | S75: 55.73736193 | AB75: Win | AC75: WD | AF75: 22 | AG75: 113.6281562 | AH75: 149.3860482 | AI75: 164.3430569 | AJ75: 234.9476055 | AL75: Sum | AM75: 3 | AP75: 22 | AQ75: 82.19434783 | AR75: 67.81537859 | AS75: 70.50587599
A76: =INDEX(Seas_Ar,C76) -> Sum | B76: =INDEX(WDWE_Ar,D76) -> WD | C76: 1 | D76: 3 | E76: 23 | F76: L | G76: 100.17 | H76: 126.6159486 | I76: 148.6911583 | J76: 155.221928 | K76: R | N76: 0.46 | O76: 0.54 | P76: 62.1025 | Q76: 88.7376544 | R76: 63.93600082 | S76: 53.37360163 | AB76: Win | AC76: WD | AF76: 23 | AG76: 113.5597813 | AH76: 146.7141695 | AI76: 134.9678365 | AJ76: 234.8711235 | AL76: Sum | AM76: 3 | AP76: 23 | AQ76: 77.09380435 | AR76: 63.95120285 | AS76: 65.49874506
A77: =INDEX(Seas_Ar,C77) -> Sum | B77: =INDEX(WDWE_Ar,D77) -> WD | C77: 1 | D77: 3 | E77: 24 | F77: L | G77: 120.745 | H77: 152.6229681 | I77: 148.6911583 | J77: 155.221928 | K77: R | N77: 0.45 | O77: 0.55 | P77: 61.26875 | Q77: 87.51075523 | R77: 62.7571805 | S77: 50.65200081 | AB77: Win | AC77: WD | AF77: 24 | AG77: 95.34965625 | AH77: 123.9906241 | AI77: 99.44651764 | AJ77: 234.8237476 | AL77: Sum | AM77: 3 | AP77: 24 | AQ77: 66.92434783 | AR77: 53.97445055 | AS77: 61.93415041
A78: =INDEX(Seas_Ar,C78) -> Sum | B78: =INDEX(WDWE_Ar,D78) -> WD | C78: 1 | D78: 4 | E78: 1 | F78: L | G78: 78.36 | H78: 99.04787595 | I78: 75.97395403 | J78: 132.6628827 | K78: R | N78: 0.44 | O78: 0.56 | P78: 60.67 | Q78: 86.2201443 | R78: 61.74819217 | S78: 48.83760155 | AB78: Win | AC78: WE | AE78: WE | AF78: 1 | AG78: 94.19782258 | AH78: 120.0815513 | AI78: 66.83616226 | AJ78: 109.6804821 | AL78: Sum | AM78: 4 | AO78: =AO54+1 -> 4 | AP78: 1 | AQ78: 67.53127907 | AR78: 42.95909155 | AS78: 93.26227169
A79: =INDEX(Seas_Ar,C79) -> Sum | B79: =INDEX(WDWE_Ar,D79) -> WD | C79: 1 | D79: 4 | E79: 2 | F79: L | G79: 92.43 | H79: 116.8325061 | I79: 75.97395403 | J79: 132.6628827 | K79: R | N79: 0.43 | O79: 0.57 | P79: 59.92125 | Q79: 85.00142227 | R79: 60.88905155 | S79: 46.49904182 | AB79: Win | AC79: WE | AF79: 2 | AG79: 89.99596774 | AH79: 115.702694 | AI79: 66.08626768 | AJ79: 109.6804821 | AL79: Sum | AM79: 4 | AP79: 2 | AQ79: 63.91988372 | AR79: 42.04465803 | AS79: 93.26227169
A80: =INDEX(Seas_Ar,C80) -> Sum | B80: =INDEX(WDWE_Ar,D80) -> WD | C80: 1 | D80: 4 | E80: 3 | F80: L | G80: 88.845 | H80: 112.3010278 | I80: 10.13984975 | J80: 132.6628827 | K80: R | N80: 0.42 | O80: 0.58 | P80: 59.0275 | Q80: 83.90170593 | R80: 59.64030153 | S80: 44.78039995 | AB80: Win | AC80: WE | AF80: 3 | AG80: 81.06580645 | AH80: 108.7561098 | AI80: 64.97254384 | AJ80: 109.6804821 | AL80: Sum | AM80: 4 | AP80: 3 | AQ80: 59.56325581 | AR80: 39.30623616 | AS80: 93.26227169
A81: =INDEX(Seas_Ar,C81) -> Sum | B81: =INDEX(WDWE_Ar,D81) -> WD | C81: 1 | D81: 4 | E81: 4 | F81: L | G81: 89.1 | H81: 112.6233505 | I81: 75.97395403 | J81: 132.6628827 | K81: R | N81: 0.41 | O81: 0.59 | P81: 58.19875 | Q81: 82.77987538 | R81: 58.55139136 | S81: 43.29360147 | AB81: Win | AC81: WE | AF81: 4 | AG81: 75.72806452 | AH81: 103.0839832 | AI81: 62.68177251 | AJ81: 109.6804821 | AL81: Sum | AM81: 4 | AP81: 4 | AQ81: 54.16383721 | AR81: 39.75462451 | AS81: 93.26227169
A82: =INDEX(Seas_Ar,C82) -> Sum | B82: =INDEX(WDWE_Ar,D82) -> WD | C82: 1 | D82: 4 | E82: 5 | F82: L | G82: 97.075 | H82: 122.7038356 | I82: 75.97395403 | J82: 132.6628827 | K82: R | N82: 0.4 | O82: 0.6 | P82: 57.395 | Q82: 81.66502379 | R82: 57.29264921 | S82: 41.66064252 | AB82: Win | AC82: WE | AF82: 5 | AG82: 71.56306452 | AH82: 97.68346469 | AI82: 64.12113816 | AJ82: 109.6804821 | AL82: Sum | AM82: 4 | AP82: 5 | AQ82: 53.74627907 | AR82: 43.05875905 | AS82: 93.26227169
A83: =INDEX(Seas_Ar,C83) -> Sum | B83: =INDEX(WDWE_Ar,D83) -> WD | C83: 1 | D83: 4 | E83: 6 | F83: L | G83: 130.865 | H83: 165.4147561 | I83: 21.07890065 | J83: 132.6628827 | K83: R | N83: 0.39 | O83: 0.61 | P83: 56.44 | Q83: 80.53355614 | R83: 56.12382103 | S83: 39.3422394 | AB83: Win | AC83: WE | AF83: 6 | AG83: 70.70024194 | AH83: 97.45285389 | AI83: 67.80954282 | AJ83: 103.774903 | AL83: Sum | AM83: 4 | AP83: 6 | AQ83: 66.11034884 | AR83: 44.80166582 | AS83: 93.06489122
A84: =INDEX(Seas_Ar,C84) -> Sum | B84: =INDEX(WDWE_Ar,D84) -> WD | C84: 1 | D84: 4 | E84: 7 | F84: L | G84: 180.72 | H84: 228.4320079 | I84: 96.39350911 | J84: 128.3990393 | K84: R | N84: 0.38 | O84: 0.62 | P84: 55.5525 | Q84: 79.4478349 | R84: 54.95498903 | S84: 37.11456029 | AB84: Win | AC84: WE | AF84: 7 | AG84: 74.42040323 | AH84: 103.2680414 | AI84: 87.44762809 | AJ84: 87.03153429 | AL84: Sum | AM84: 4 | AP84: 7 | AQ84: 74.41953488 | AR84: 58.8857072 | AS84: 57.87092207
A85: =INDEX(Seas_Ar,C85) -> Sum | B85: =INDEX(WDWE_Ar,D85) -> WD | C85: 1 | D85: 4 | E85: 8 | F85: L | G85: 185.83 | H85: 234.8911024 | I85: 110.4594311 | J85: 132.6628827 | K85: R | N85: 0.37 | O85: 0.63 | P85: 54.755 | Q85: 78.35961042 | R85: 54.05838743 | S85: 36.01584012 | AB85: Win | AC85: WE | AF85: 8 | AG85: 81.21741935 | AH85: 115.0314538 | AI85: 111.554465 | AJ85: 103.8140843 | AL85: Sum | AM85: 4 | AP85: 8 | AQ85: 95.22616279 | AR85: 66.03134515 | AS85: 55.15682323
A86: =INDEX(Seas_Ar,C86) -> Sum | B86: =INDEX(WDWE_Ar,D86) -> WD | C86: 1 | D86: 4 | E86: 9 | F86: L | G86: 203.655 | H86: 257.4220926 | I86: 96.39350911 | J86: 62.20368008 | K86: R | N86: 0.36 | O86: 0.64 | P86: 53.76 | Q86: =_xlfn.PERCENTILE.INC(H$5:H$22182,$N86) -> 77.34085195 | R86: =_xlfn.PERCENTILE.INC(I$5:I$22182,$N86) -> 53.10684053 | S86: =_xlfn.PERCENTILE.INC(J$5:J$22182,$N86) -> 33.9393587 | AB86: Win | AC86: WE | AF86: 9 | AG86: 81.44645161 | AH86: =AVERAGEIFS(H$5:H$22182,$A$5:$A$22182,$AB86,$B$5:$B$22182,$AC86,$E$5:$E$22182,$AF86) -> 126.6353371 | AI86: =AVERAGEIFS(I$5:I$22182,$A$5:$A$22182,$AB86,$B$5:$B$22182,$AC86,$E$5:$E$22182,$AF86) -> 112.2373299 | AJ86: =AVERAGEIFS(J$5:J$22182,$A$5:$A$22182,$AB86,$B$5:$B$22182,$AC86,$E$5:$E$22182,$AF86) -> 94.2436113 | AL86: Sum | AM86: 4 | AP86: 9 | AQ86: 104.9039535 | AR86: =AVERAGEIFS(I$5:I$22182,$A$5:$A$22182,$AL86,$D$5:$D$22182,$AM86,$E$5:$E$22182,$AP86) -> 62.55575435 | AS86: =AVERAGEIFS(J$5:J$22182,$A$5:$A$22182,$AL86,$D$5:$D$22182,$AM86,$E$5:$E$22182,$AP86) -> 45.39914856
A87: =INDEX(Seas_Ar,C87) -> Sum | B87: =INDEX(WDWE_Ar,D87) -> WD | C87: 1 | D87: 4 | E87: 10 | F87: L | G87: 168.85 | H87: 213.4282013 | I87: 96.39350911 | J87: 73.18079964 | K87: R | N87: 0.35 | O87: 0.65 | P87: 52.73625 | Q87: 76.13835 | R87: 52.14780143 | S87: 31.5705602 | AB87: Win | AC87: WE | AF87: 10 | AG87: 93.3775 | AH87: 161.6961981 | AI87: 108.1190326 | AJ87: 86.69645572 | AL87: Sum | AM87: 4 | AP87: 10 | AQ87: 93.96034884 | AR87: 60.67298784 | AS87: 42.12830579
A88: =INDEX(Seas_Ar,C88) -> Sum | B88: =INDEX(WDWE_Ar,D88) -> WD | C88: 1 | D88: 4 | E88: 11 | F88: L | G88: 170.055 | H88: 214.9513342 | I88: 81.92799319 | J88: 62.20368008 | K88: R | N88: 0.34 | O88: 0.66 | P88: 51.645 | Q88: 75.0671494 | R88: 51.28866081 | S88: 29.71584002 | AB88: Win | AC88: WE | AF88: 11 | AG88: 104.896371 | AH88: 151.3374694 | AI88: 102.7353893 | AJ88: 77.51894049 | AL88: Sum | AM88: 4 | AP88: 11 | AQ88: 93.29081395 | AR88: 57.9789407 | AS88: 35.94832815
A89: =INDEX(Seas_Ar,C89) -> Sum | B89: =INDEX(WDWE_Ar,D89) -> WD | C89: 1 | D89: 4 | E89: 12 | F89: L | G89: 196.72 | H89: 248.6561786 | I89: 96.39350911 | J89: 62.20368008 | K89: R | N89: 0.33 | O89: 0.67 | P89: 50.68875 | Q89: 74.049529 | R89: 50.34960217 | S89: 27.86111983 | AB89: Win | AC89: WE | AF89: 12 | AG89: 103.241371 | AH89: 144.4067961 | AI89: 96.53723854 | AJ89: 67.00371152 | AL89: Sum | AM89: 4 | AP89: 12 | AQ89: 91.79802326 | AR89: 57.33632796 | AS89: 32.97379044
A90: =INDEX(Seas_Ar,C90) -> Sum | B90: =INDEX(WDWE_Ar,D90) -> WD | C90: 1 | D90: 4 | E90: 13 | F90: L | G90: 251.175 | H90: 317.4878796 | I90: 96.39350911 | J90: 62.20368008 | K90: R | N90: 0.32 | O90: 0.68 | P90: 49.725 | Q90: 72.9556128 | R90: 49.06089124 | S90: 25.71408064 | AB90: Win | AC90: WE | AF90: 13 | AG90: 105.0797581 | AH90: 132.2461267 | AI90: 91.64503837 | AJ90: 51.43287583 | AL90: Sum | AM90: 4 | AP90: 13 | AQ90: 96.40348837 | AR90: 55.75395834 | AS90: 27.74977145
A91: =INDEX(Seas_Ar,C91) -> Sum | B91: =INDEX(WDWE_Ar,D91) -> WD | C91: 1 | D91: 4 | E91: 14 | F91: L | G91: 262.935 | H91: 332.352645 | I91: 96.39350911 | J91: 62.20368008 | K91: R | N91: 0.31 | O91: 0.69 | P91: 48.71 | Q91: 71.69326956 | R91: 48.05189909 | S91: 23.77116036 | AB91: Win | AC91: WE | AF91: 14 | AG91: 99.83798387 | AH91: 127.1360859 | AI91: 89.0353922 | AJ91: 51.39450667 | AL91: Sum | AM91: 4 | AP91: 14 | AQ91: 91.71709302 | AR91: 56.76132231 | AS91: 32.19223852
A92: =INDEX(Seas_Ar,C92) -> Sum | B92: =INDEX(WDWE_Ar,D92) -> WD | C92: 1 | D92: 4 | E92: 15 | F92: L | G92: 243.175 | H92: 307.3757942 | I92: 96.39350911 | J92: 102.0499195 | K92: R | N92: 0.3 | O92: 0.7 | P92: 47.9225 | Q92: 70.52985399 | R92: 46.97797522 | S92: 21.97439958 | AB92: Win | AC92: WE | AF92: 15 | AG92: 87.79927419 | AH92: 125.9620196 | AI92: 93.12452477 | AJ92: 81.01832588 | AL92: Sum | AM92: 4 | AP92: 15 | AQ92: 88.91488372 | AR92: 57.06892129 | AS92: 44.32879298
A93: =INDEX(Seas_Ar,C93) -> Sum | B93: =INDEX(WDWE_Ar,D93) -> WD | C93: 1 | D93: 4 | E93: 16 | F93: L | G93: 245.075 | H93: 309.7774145 | I93: 96.39350911 | J93: 159.6268832 | K93: R | N93: 0.29 | O93: 0.71 | P93: 47.03875 | Q93: 69.36245847 | R93: 45.99396151 | S93: 20.22047979 | AB93: Win | AC93: WE | AF93: 16 | AG93: 82.56266129 | AH93: 118.2200348 | AI93: 101.9711542 | AJ93: 105.2002472 | AL93: Sum | AM93: 4 | AP93: 16 | AQ93: 90.64337209 | AR93: 60.08892142 | AS93: 48.43932407
A94: =INDEX(Seas_Ar,C94) -> Sum | B94: =INDEX(WDWE_Ar,D94) -> WD | C94: 1 | D94: 4 | E94: 17 | F94: L | G94: 257.785 | H94: 325.8429901 | I94: 106.8730247 | J94: 194.5540776 | K94: R | N94: 0.28 | O94: 0.72 | P94: 46.11 | Q94: 68.05445051 | R94: 44.84510997 | S94: 18.38592007 | AB94: Win | AC94: WE | AF94: 17 | AG94: 85.99814516 | AH94: 124.9086526 | AI94: 131.6773853 | AJ94: 160.8836313 | AL94: Sum | AM94: 4 | AP94: 17 | AQ94: 94.81674419 | AR94: 63.02342582 | AS94: 82.63795152
A95: =INDEX(Seas_Ar,C95) -> Sum | B95: =INDEX(WDWE_Ar,D95) -> WD | C95: 1 | D95: 4 | E95: 18 | F95: L | G95: 254.55 | H95: 321.7539156 | I95: 109.7801108 | J95: 241.8595264 | K95: R | N95: 0.27 | O95: 0.73 | P95: 45.08125 | Q95: 66.79520841 | R95: 43.96848692 | S95: 16.71011965 | AB95: Win | AC95: WE | AF95: 18 | AG95: 95.05459677 | AH95: 130.4344734 | AI95: 295.8035822 | AJ95: 238.6879024 | AL95: Sum | AM95: 4 | AP95: 18 | AQ95: 89.12581395 | AR95: 65.74581698 | AS95: 88.66907373
A96: =INDEX(Seas_Ar,C96) -> Sum | B96: =INDEX(WDWE_Ar,D96) -> WD | C96: 1 | D96: 4 | E96: 19 | F96: L | G96: 258.955 | H96: 327.3218826 | I96: 109.7801108 | J96: 241.8595264 | K96: R | N96: 0.26 | O96: 0.74 | P96: 44.03 | Q96: 65.53989639 | R96: 43.04691071 | S96: 13.82976049 | AB96: Win | AC96: WE | AF96: 19 | AG96: 121.2226613 | AH96: 156.2426387 | AI96: 517.6648896 | AJ96: 283.9180021 | AL96: Sum | AM96: 4 | AP96: 19 | AQ96: 81.39406977 | AR96: 67.28404439 | AS96: 89.00171361
A97: =INDEX(Seas_Ar,C97) -> Sum | B97: =INDEX(WDWE_Ar,D97) -> WD | C97: 1 | D97: 4 | E97: 20 | F97: L | G97: 185.805 | H97: 234.8595022 | I97: 109.7801108 | J97: 252.9172878 | K97: R | N97: 0.25 | O97: 0.75 | P97: 42.845 | Q97: 64.22861939 | R97: 41.66828962 | S97: 11.85408042 | AB97: Win | AC97: WE | AF97: 20 | AG97: 130.1549194 | AH97: 172.113002 | AI97: 163.5590226 | AJ97: 226.2880382 | AL97: Sum | AM97: 4 | AP97: 20 | AQ97: 76.97848837 | AR97: 65.6445231 | AS97: 91.56578395
A98: =INDEX(Seas_Ar,C98) -> Sum | B98: =INDEX(WDWE_Ar,D98) -> WD | C98: 1 | D98: 4 | E98: 21 | F98: L | G98: 136.865 | H98: 172.9988201 | I98: 109.7801108 | J98: 252.9172878 | K98: R | N98: 0.24 | O98: 0.76 | P98: 41.65 | Q98: 63.02465273 | R98: 40.65930129 | S98: 10.75536025 | AB98: Win | AC98: WE | AF98: 21 | AG98: 108.4883871 | AH98: 151.6215433 | AI98: 144.8190707 | AJ98: 176.0637859 | AL98: Sum | AM98: 4 | AP98: 21 | AQ98: 81.55069767 | AR98: 66.77827185 | AS98: 97.3856946
A99: =INDEX(Seas_Ar,C99) -> Sum | B99: =INDEX(WDWE_Ar,D99) -> WD | C99: 1 | D99: 4 | E99: 22 | F99: L | G99: 138.835 | H99: 175.4889211 | I99: 96.39350911 | J99: 252.9172878 | K99: R | N99: 0.23 | O99: 0.77 | P99: 40.54 | Q99: 61.77741993 | R99: 39.56039899 | S99: 10.23119978 | AB99: Win | AC99: WE | AF99: 22 | AG99: 105.0593548 | AH99: 146.5608531 | AI99: 124.9328466 | AJ99: 161.947234 | AL99: Sum | AM99: 4 | AP99: 22 | AQ99: 84.58790698 | AR99: 66.07014352 | AS99: 90.66280353
A100: =INDEX(Seas_Ar,C100) -> Sum | B100: =INDEX(WDWE_Ar,D100) -> WD | C100: 1 | D100: 4 | E100: 23 | F100: L | G100: 208.825 | H100: 263.9570278 | I100: 96.39350911 | J100: 241.8595264 | K100: R | N100: 0.22 | O100: 0.78 | P100: 39.2475 | Q100: 60.63386811 | R100: 38.36160202 | S100: 10.08000016 | AB100: Win | AC100: WE | AF100: 23 | AG100: 104.3231452 | AH100: 147.4181217 | AI100: 105.9739217 | AJ100: 160.7712879 | AL100: Sum | AM100: 4 | AP100: 23 | AQ100: 76.83162791 | AR100: 60.91855593 | AS100: 86.97844659
A101: =INDEX(Seas_Ar,C101) -> Sum | B101: =INDEX(WDWE_Ar,D101) -> WD | C101: 1 | D101: 4 | E101: 24 | F101: L | G101: 172.68 | H101: 218.2693622 | I101: 75.97395403 | J101: 241.8595264 | K101: R | N101: 0.21 | O101: 0.79 | P101: 37.83 | Q101: 59.4903655 | R101: 37.02793506 | S101: 10.08000016 | AB101: Win | AC101: WE | AF101: 24 | AG101: 92.21233871 | AH101: 126.3983311 | AI101: 83.30854396 | AJ101: 160.7308055 | AL101: Sum | AM101: 4 | AP101: 24 | AQ101: 64.79604651 | AR101: 53.1026586 | AS101: 85.6570289
A102: =INDEX(Seas_Ar,C102) -> Sum | B102: =INDEX(WDWE_Ar,D102) -> WD | C102: 1 | D102: 5 | E102: 1 | F102: L | G102: 107.715 | H102: 136.1529091 | I102: 9.990000129 | J102: 253.1591979 | K102: R | N102: 0.2 | O102: 0.8 | P102: 36.495 | Q102: 58.35851001 | R102: 35.48448091 | S102: 10.08000016 | AL102: Sum | AM102: 5 | AO102: =AO78+1 -> 5 | AP102: 1 | AQ102: 60.69428571 | AR102: 41.49560642 | AS102: 86.92104106
A103: =INDEX(Seas_Ar,C103) -> Sum | B103: =INDEX(WDWE_Ar,D103) -> WD | C103: 1 | D103: 5 | E103: 2 | F103: L | G103: 104.875 | H103: 132.5631188 | I103: 9.990000129 | J103: 253.1591979 | K103: R | N103: 0.19 | O103: 0.81 | P103: 35.45625 | Q103: 57.11275202 | R103: 33.69626998 | S103: 10.08000016 | AL103: Sum | AM103: 5 | AP103: 2 | AQ103: 56.74 | AR103: 40.55797346 | AS103: 86.92104106
A104: =INDEX(Seas_Ar,C104) -> Sum | B104: =INDEX(WDWE_Ar,D104) -> WD | C104: 1 | D104: 5 | E104: 3 | F104: L | G104: 110.625 | H104: 139.8311802 | I104: 10.13984975 | J104: 253.1591979 | K104: R | N104: 0.18 | O104: 0.82 | P104: 34.3375 | Q104: 55.83441607 | R104: 31.67828949 | S104: 10.08000016 | AL104: Sum | AM104: 5 | AP104: 3 | AQ104: 50.74738095 | AR104: 40.33034399 | AS104: 86.92104106
A105: =INDEX(Seas_Ar,C105) -> Sum | B105: =INDEX(WDWE_Ar,D105) -> WD | C105: 1 | D105: 5 | E105: 4 | F105: L | G105: 101.21 | H105: 127.9305197 | I105: 9.990000129 | J105: 253.1591979 | K105: R | N105: 0.17 | O105: 0.83 | P105: 33.2125 | Q105: 54.43122507 | R105: 29.90256825 | S105: 10.08000016 | AL105: Sum | AM105: 5 | AP105: 4 | AQ105: 47.09214286 | AR105: 39.33181964 | AS105: 86.92104106
A106: =INDEX(Seas_Ar,C106) -> Sum | B106: =INDEX(WDWE_Ar,D106) -> WD | C106: 1 | D106: 5 | E106: 5 | F106: L | G106: 99.97 | H106: 126.3631465 | I106: 74.59532913 | J106: 253.1591979 | K106: R | N106: 0.16 | O106: 0.84 | P106: 32.01 | Q106: 53.28432595 | R106: 27.37259997 | S106: 10.08000016 | AL106: Sum | AM106: 5 | AP106: 5 | AQ106: 47.5552381 | AR106: 41.55982777 | AS106: 86.92104106
A107: =INDEX(Seas_Ar,C107) -> Sum | B107: =INDEX(WDWE_Ar,D107) -> WD | C107: 1 | D107: 5 | E107: 6 | F107: L | G107: 113.73 | H107: 143.7559333 | I107: 74.59532913 | J107: 253.1591979 | K107: R | N107: 0.15 | O107: 0.85 | P107: 31.02125 | Q107: 51.48641884 | R107: 24.97499985 | S107: 10.08000016 | AL107: Sum | AM107: 5 | AP107: 6 | AQ107: 57.8475 | AR107: 45.32748455 | AS107: 86.44464108
A108: =INDEX(Seas_Ar,C108) -> Sum | B108: =INDEX(WDWE_Ar,D108) -> WD | C108: 1 | D108: 5 | E108: 7 | F108: L | G108: 173.24 | H108: 218.9772081 | I108: 97.28261851 | J108: 194.7355256 | K108: R | N108: 0.14 | O108: 0.86 | P108: 30.045 | Q108: 49.65473447 | R108: 22.69727961 | S108: 10.08000016 | AL108: Sum | AM108: 5 | AP108: 7 | AQ108: 67.91738095 | AR108: 58.16035364 | AS108: 59.02704092
A109: =INDEX(Seas_Ar,C109) -> Sum | B109: =INDEX(WDWE_Ar,D109) -> WD | C109: 1 | D109: 5 | E109: 8 | F109: L | G109: 220.555 | H109: 278.7838729 | I109: 111.1387514 | J109: 131.1105695 | K109: R | N109: 0.13 | O109: 0.87 | P109: 28.67875 | Q109: 47.6070373 | R109: 21.16881081 | S109: 10.08000016 | AL109: Sum | AM109: 5 | AP109: 8 | AQ109: 82.38952381 | AR109: 62.60590312 | AS109: 56.47656091
A110: =INDEX(Seas_Ar,C110) -> Sum | B110: =INDEX(WDWE_Ar,D110) -> WD | C110: 1 | D110: 5 | E110: 9 | F110: L | G110: 240.365 | H110: 303.8239242 | I110: 97.28261851 | J110: 128.5300842 | K110: R | N110: 0.12 | O110: 0.88 | P110: 27.2 | Q110: 45.08806273 | R110: 18.60138108 | S110: 10.08000016 | AL110: Sum | AM110: 5 | AP110: 9 | AQ110: 90.65714286 | AR110: 61.73558441 | AS110: 44.98848056
A111: =INDEX(Seas_Ar,C111) -> Sum | B111: =INDEX(WDWE_Ar,D111) -> WD | C111: 1 | D111: 5 | E111: 10 | F111: L | G111: 236.815 | H111: 299.3366864 | I111: 97.28261851 | J111: 128.5300842 | K111: R | N111: 0.11 | O111: 0.89 | P111: 25.45875 | Q111: 42.77893726 | R111: 15.72425997 | S111: 10.08000016 | AL111: Sum | AM111: 5 | AP111: 10 | AQ111: 90.31035714 | AR111: 57.37970624 | AS111: 39.76176085
A112: =INDEX(Seas_Ar,C112) -> Sum | B112: =INDEX(WDWE_Ar,D112) -> WD | C112: 1 | D112: 5 | E112: 11 | F112: L | G112: 224.605 | H112: 283.9031161 | I112: 97.28261851 | J112: 124.2460842 | K112: R | N112: 0.1 | O112: 0.9 | P112: 23.415 | Q112: 39.6615745 | R112: 13.13685026 | S112: 10.08000016 | AL112: Sum | AM112: 5 | AP112: 11 | AQ112: 88.12857143 | AR112: 54.90979813 | AS112: 37.60512103
A113: =INDEX(Seas_Ar,C113) -> Sum | B113: =INDEX(WDWE_Ar,D113) -> WD | C113: 1 | D113: 5 | E113: 12 | F113: L | G113: 200.81 | H113: 253.8259823 | I113: 90.30960269 | J113: 120.5366438 | K113: R | N113: 0.09 | O113: 0.91 | P113: 21.05625 | Q113: 36.12251465 | R113: 11.17880972 | S113: 10.08000016 | AL113: Sum | AM113: 5 | AP113: 12 | AQ113: 92.60702381 | AR113: 54.76042342 | AS113: 31.84440062
A114: =INDEX(Seas_Ar,C114) -> Sum | B114: =INDEX(WDWE_Ar,D114) -> WD | C114: 1 | D114: 5 | E114: 13 | F114: L | G114: 196.945 | H114: 248.940581 | I114: 74.59532913 | J114: 95.56847908 | K114: R | N114: 0.08 | O114: 0.92 | P114: 18.755 | Q114: 32.4820752 | R114: 10.65933021 | S114: 10.08000016 | AL114: Sum | AM114: 5 | AP114: 13 | AQ114: 88.87297619 | AR114: 52.51314916 | AS114: 32.70600088
A115: =INDEX(Seas_Ar,C115) -> Sum | B115: =INDEX(WDWE_Ar,D115) -> WD | C115: 1 | D115: 5 | E115: 14 | F115: L | G115: 206.86 | H115: 261.4732468 | I115: 90.30960269 | J115: 95.56847908 | K115: R | N115: 0.07 | O115: 0.93 | P115: 15.8225 | Q115: 28.19229876 | R115: 10.13984975 | S115: 10.08000016 | AL115: Sum | AM115: 5 | AP115: 14 | AQ115: 90.65809524 | AR115: 53.10969511 | AS115: 31.75608047
A116: =INDEX(Seas_Ar,C116) -> Sum | B116: =INDEX(WDWE_Ar,D116) -> WD | C116: 1 | D116: 5 | E116: 15 | F116: L | G116: 212.85 | H116: 269.0446707 | I116: 97.28261851 | J116: 128.5300842 | K116: R | N116: 0.06 | O116: 0.94 | P116: 12.9 | Q116: 23.96190221 | R116: 9.990000129 | S116: 10.08000016 | AL116: Sum | AM116: 5 | AP116: 15 | AQ116: 86.66333333 | AR116: 53.07948735 | AS116: 39.03336088
A117: =INDEX(Seas_Ar,C117) -> Sum | B117: =INDEX(WDWE_Ar,D117) -> WD | C117: 1 | D117: 5 | E117: 16 | F117: L | G117: 236.675 | H117: 299.1597249 | I117: 97.28261851 | J117: 128.5300842 | K117: R | N117: 0.05 | O117: 0.95 | P117: 10.4125 | Q117: 19.01382183 | R117: 9.990000129 | S117: 10.08000016 | AL117: Sum | AM117: 5 | AP117: 16 | AQ117: 83.60059524 | AR117: 56.97225688 | AS117: 44.43528108
A118: =INDEX(Seas_Ar,C118) -> Sum | B118: =INDEX(WDWE_Ar,D118) -> WD | C118: 1 | D118: 5 | E118: 17 | F118: L | G118: 222.53 | H118: 281.280294 | I118: 97.28261851 | J118: 208.6761677 | K118: R | N118: 0.04 | O118: 0.96 | P118: 6.865 | Q118: 13.84762772 | R118: 9.990000129 | S118: 10.08000016 | AL118: Sum | AM118: 5 | AP118: 17 | AQ118: 84.76345238 | AR118: 59.07990911 | AS118: 68.20056143
A119: =INDEX(Seas_Ar,C119) -> Sum | B119: =INDEX(WDWE_Ar,D119) -> WD | C119: 1 | D119: 5 | E119: 18 | F119: L | G119: 205.645 | H119: 259.9374738 | I119: 106.253642 | J119: 208.6761677 | K119: R | N119: 0.03 | O119: 0.97 | P119: 3.905 | Q119: 8.190572113 | R119: 9.990000129 | S119: 10.08000016 | AL119: Sum | AM119: 5 | AP119: 18 | AQ119: 80.02571429 | AR119: 60.9979893 | AS119: 70.56936176
A120: =INDEX(Seas_Ar,C120) -> Sum | B120: =INDEX(WDWE_Ar,D120) -> WD | C120: 1 | D120: 5 | E120: 19 | F120: L | G120: 137.225 | H120: 173.4538639 | I120: 109.7801108 | J120: 208.6761677 | K120: R | N120: 0.02 | O120: 0.98 | P120: 1.0375 | Q120: 2.93933455 | R120: 9.990000129 | S120: 7.398720273 | AL120: Sum | AM120: 5 | AP120: 19 | AQ120: 70.46869048 | AR120: 63.61346664 | AS120: 72.01272159
A121: =INDEX(Seas_Ar,C121) -> Sum | B121: =INDEX(WDWE_Ar,D121) -> WD | C121: 1 | D121: 5 | E121: 20 | F121: L | G121: 120.63 | H121: 152.4776069 | I121: 113.0268608 | J121: 238.9363171 | K121: R | N121: 0.01 | O121: 0.99 | P121: 0.26 | Q121: 0.2710932132 | R121: 9.840150508 | S121: 0.1965600072 | AL121: Sum | AM121: 5 | AP121: 20 | AQ121: 66.69916667 | AR121: 64.26067568 | AS121: 75.93144125
A122: =INDEX(Seas_Ar,C122) -> Sum | B122: =INDEX(WDWE_Ar,D122) -> WD | C122: 1 | D122: 5 | E122: 21 | F122: L | G122: 112.82 | H122: 142.6056836 | I122: 121.9179625 | J122: 279.155527 | K122: R | N122: 0 | O122: 1 | P122: 0.005 | Q122: 0.01 | R122: 0.009989999905 | S122: 0.01007999994 | AL122: Sum | AM122: 5 | AP122: 21 | AQ122: 69.3597619 | AR122: 66.13570334 | AS122: 84.29496206
A123: =INDEX(Seas_Ar,C123) -> Sum | B123: =INDEX(WDWE_Ar,D123) -> WD | C123: 1 | D123: 5 | E123: 22 | F123: L | G123: 128.84 | H123: 162.8551345 | I123: 109.6502435 | J123: 208.6761677 | K123: R | AL123: Sum | AM123: 5 | AP123: 22 | AQ123: 74.60702381 | AR123: 63.88985616 | AS123: 76.90608206
A124: =INDEX(Seas_Ar,C124) -> Sum | B124: =INDEX(WDWE_Ar,D124) -> WD | C124: 1 | D124: 5 | E124: 23 | F124: L | G124: 140.325 | H124: 177.372297 | I124: 109.6502435 | J124: 208.6761677 | K124: R | AL124: Sum | AM124: 5 | AP124: 23 | AQ124: 71.60285714 | AR124: 59.39530751 | AS124: 71.5099217
A125: =INDEX(Seas_Ar,C125) -> Sum | B125: =INDEX(WDWE_Ar,D125) -> WD | C125: 1 | D125: 5 | E125: 24 | F125: L | G125: 197.55 | H125: 249.7053075 | I125: 97.28261851 | J125: 208.6761677 | K125: R | AL125: Sum | AM125: 5 | AP125: 24 | AQ125: 67.14178571 | AR125: 49.66457184 | AS125: 70.56936176
A126: =INDEX(Seas_Ar,C126) -> Sum | B126: =INDEX(WDWE_Ar,D126) -> WE | C126: 1 | D126: 6 | E126: 1 | F126: L | G126: 128.865 | H126: 162.8867347 | I126: 79.70021981 | J126: 198.3038389 | K126: R | AL126: Sum | AM126: 6 | AO126: =AO102+1 -> 6 | AP126: 1 | AQ126: 66.02195122 | AR126: 37.29437599 | AS126: 68.8613978
A127: =INDEX(Seas_Ar,C127) -> Sum | B127: =INDEX(WDWE_Ar,D127) -> WE | C127: 1 | D127: 6 | E127: 2 | F127: L | G127: 118.905 | H127: 150.2971885 | I127: 79.70021981 | J127: 198.3038389 | K127: R | AL127: Sum | AM127: 6 | AP127: 2 | AQ127: 59.18939024 | AR127: 35.59242108 | AS127: 68.8613978
A128: =INDEX(Seas_Ar,C128) -> Sum | B128: =INDEX(WDWE_Ar,D128) -> WE | C128: 1 | D128: 6 | E128: 3 | F128: L | G128: 97.04 | H128: 122.6595952 | I128: 79.70021981 | J128: 198.3038389 | K128: R | AL128: Sum | AM128: 6 | AP128: 3 | AQ128: 53.22134146 | AR128: 35.07610858 | AS128: 68.8613978
A129: =INDEX(Seas_Ar,C129) -> Sum | B129: =INDEX(WDWE_Ar,D129) -> WE | C129: 1 | D129: 6 | E129: 4 | F129: L | G129: 97.375 | H129: 123.0830388 | I129: 79.70021981 | J129: 198.3038389 | K129: R | AL129: Sum | AM129: 6 | AP129: 4 | AQ129: 48.21829268 | AR129: 35.05149911 | AS129: 68.8613978
A130: =INDEX(Seas_Ar,C130) -> Sum | B130: =INDEX(WDWE_Ar,D130) -> WE | C130: 1 | D130: 6 | E130: 5 | F130: L | G130: 96.47 | H130: 121.9391091 | I130: 79.70021981 | J130: 198.3038389 | K130: R | AL130: Sum | AM130: 6 | AP130: 5 | AQ130: 48.47695122 | AR130: 35.98227475 | AS130: 68.8613978
A131: =INDEX(Seas_Ar,C131) -> Sum | B131: =INDEX(WDWE_Ar,D131) -> WE | C131: 1 | D131: 6 | E131: 6 | F131: L | G131: 98.13 | H131: 124.0373669 | I131: 79.70021981 | J131: 198.3038389 | K131: R | AL131: Sum | AM131: 6 | AP131: 6 | AQ131: 58.40439024 | AR131: 36.57728886 | AS131: 65.45829117
A132: =INDEX(Seas_Ar,C132) -> Sum | B132: =INDEX(WDWE_Ar,D132) -> WE | C132: 1 | D132: 6 | E132: 7 | F132: L | G132: 95.2 | H132: 120.3338156 | I132: 79.70021981 | J132: 126.9777633 | K132: R | AL132: Sum | AM132: 6 | AP132: 7 | AQ132: 62.23865854 | AR132: 38.89838026 | AS132: 27.36867567
A133: =INDEX(Seas_Ar,C133) -> Sum | B133: =INDEX(WDWE_Ar,D133) -> WE | C133: 1 | D133: 6 | E133: 8 | F133: L | G133: 99.45 | H133: 125.7058609 | I133: 79.70021981 | J133: 111.8880018 | K133: R | AL133: Sum | AM133: 6 | AP133: 8 | AQ133: 62.34487805 | AR133: 42.84540466 | AS133: 22.87496242
A134: =INDEX(Seas_Ar,C134) -> Sum | B134: =INDEX(WDWE_Ar,D134) -> WE | C134: 1 | D134: 6 | E134: 9 | F134: L | G134: 116.72 | H134: 147.5353252 | I134: 101.1287747 | J134: 111.8880018 | K134: R | AL134: Sum | AM134: 6 | AP134: 9 | AQ134: 66.82890244 | AR134: 46.07193118 | AS134: 21.47384227
A135: =INDEX(Seas_Ar,C135) -> Sum | B135: =INDEX(WDWE_Ar,D135) -> WE | C135: 1 | D135: 6 | E135: 10 | F135: L | G135: 144.015 | H135: 182.0364964 | I135: 101.1287747 | J135: 111.8880018 | K135: R | AL135: Sum | AM135: 6 | AP135: 10 | AQ135: =AVERAGEIFS(G$5:G$22182,$A$5:$A$22182,$AL135,$D$5:$D$22182,$AM135,$E$5:$E$22182,$AP135) -> 73.81414634 | AR135: 46.05122022 | AS135: 19.18174856
A136: =INDEX(Seas_Ar,C136) -> Sum | B136: =INDEX(WDWE_Ar,D136) -> WE | C136: 1 | D136: 6 | E136: 11 | F136: L | G136: 132.345 | H136: 167.2854919 | I136: 101.1287747 | J136: 88.71408358 | K136: R | AL136: Sum | AM136: 6 | AP136: 11 | AQ136: 75.27231707 | AR136: 46.07680476 | AS136: 18.29200421
A137: =INDEX(Seas_Ar,C137) -> Sum | B137: =INDEX(WDWE_Ar,D137) -> WE | C137: 1 | D137: 6 | E137: 12 | F137: L | G137: 110.44 | H137: 139.5973382 | I137: 85.95396202 | J137: 88.71408358 | K137: R | AL137: Sum | AM137: 6 | AP137: 12 | AQ137: 70.10390244 | AR137: 45.15163291 | AS137: 16.78713406
A138: =INDEX(Seas_Ar,C138) -> Sum | B138: =INDEX(WDWE_Ar,D138) -> WE | C138: 1 | D138: 6 | E138: 13 | F138: L | G138: 92.38 | H138: 116.7693055 | I138: 85.95396202 | J138: 88.71408358 | K138: R | AL138: Sum | AM138: 6 | AP138: 13 | AQ138: 66.08243902 | AR138: 44.04055005 | AS138: 16.58209201
A139: =INDEX(Seas_Ar,C139) -> Sum | B139: =INDEX(WDWE_Ar,D139) -> WE | C139: 1 | D139: 6 | E139: 14 | F139: L | G139: 99.18 | H139: 125.3645781 | I139: 85.95396202 | J139: 88.71408358 | K139: R | AL139: Sum | AM139: 6 | AP139: 14 | AQ139: 63.8402439 | AR139: 43.3561134 | AS139: 16.23297982
A140: =INDEX(Seas_Ar,C140) -> Sum | B140: =INDEX(WDWE_Ar,D140) -> WE | C140: 1 | D140: 6 | E140: 15 | F140: L | G140: 102.495 | H140: 129.5547734 | I140: 85.95396202 | J140: 111.8880018 | K140: R | AL140: Sum | AM140: 6 | AP140: 15 | AQ140: 62.88731707 | AR140: 43.85268957 | AS140: 20.44568224
A141: =INDEX(Seas_Ar,C141) -> Sum | B141: =INDEX(WDWE_Ar,D141) -> WE | C141: 1 | D141: 6 | E141: 16 | F141: L | G141: 105.215 | H141: 132.9928824 | I141: 103.1067904 | J141: 121.1515244 | K141: R | AL141: Sum | AM141: 6 | AP141: 16 | AQ141: 62.51878049 | AR141: 47.47101905 | AS141: 28.63826391
A142: =INDEX(Seas_Ar,C142) -> Sum | B142: =INDEX(WDWE_Ar,D142) -> WE | C142: 1 | D142: 6 | E142: 17 | F142: L | G142: 113.745 | H142: 143.7748934 | I142: 103.1067904 | J142: 194.3524807 | K142: R | AL142: Sum | AM142: 6 | AP142: 17 | AQ142: 64.82634146 | AR142: 52.31470699 | AS142: 50.38328254
A143: =INDEX(Seas_Ar,C143) -> Sum | B143: =INDEX(WDWE_Ar,D143) -> WE | C143: 1 | D143: 6 | E143: 18 | F143: L | G143: 124.625 | H143: 157.5273295 | I143: 103.1067904 | J143: 194.3524807 | K143: R | AL143: Sum | AM143: 6 | AP143: 18 | AQ143: 67.07487805 | AR143: 55.19938056 | AS143: 54.13451786
A144: =INDEX(Seas_Ar,C144) -> Sum | B144: =INDEX(WDWE_Ar,D144) -> WE | C144: 1 | D144: 6 | E144: 19 | F144: L | G144: 113.57 | H144: 143.5536916 | I144: 103.1067904 | J144: 194.3524807 | K144: R | AL144: Sum | AM144: 6 | AP144: 19 | AQ144: 65.7895122 | AR144: 56.14331332 | AS144: 54.55468173
A145: =INDEX(Seas_Ar,C145) -> Sum | B145: =INDEX(WDWE_Ar,D145) -> WE | C145: 1 | D145: 6 | E145: 20 | F145: L | G145: 93.595 | H145: 118.3050785 | I145: 103.1067904 | J145: 218.4840035 | K145: R | AL145: Sum | AM145: 6 | AP145: 20 | AQ145: 63.41987805 | AR145: 56.94421941 | AS145: 55.590955
A146: =INDEX(Seas_Ar,C146) -> Sum | B146: =INDEX(WDWE_Ar,D146) -> WE | C146: 1 | D146: 6 | E146: 21 | F146: L | G146: 114.06 | H146: 144.1730568 | I146: 103.1067904 | J146: 252.6652878 | K146: R | AL146: Sum | AM146: 6 | AP146: 21 | AQ146: 63.8147561 | AR146: 58.54140101 | AS146: 59.58853573
A147: =INDEX(Seas_Ar,C147) -> Sum | B147: =INDEX(WDWE_Ar,D147) -> WE | C147: 1 | D147: 6 | E147: 22 | F147: L | G147: 137.67 | H147: 174.0163487 | I147: 106.253642 | J147: 244.0871978 | K147: R | AL147: Sum | AM147: 6 | AP147: 22 | AQ147: 64.94390244 | AR147: 56.72054091 | AS147: 56.41308936
A148: =INDEX(Seas_Ar,C148) -> Sum | B148: =INDEX(WDWE_Ar,D148) -> WE | C148: 1 | D148: 6 | E148: 23 | F148: L | G148: 88.83 | H148: 112.2820676 | I148: 103.1067904 | J148: 194.3524807 | K148: R | AL148: Sum | AM148: 6 | AP148: 23 | AQ148: 59.67170732 | AR148: 53.3346615 | AS148: 53.86653729
A149: =INDEX(Seas_Ar,C149) -> Sum | B149: =INDEX(WDWE_Ar,D149) -> WE | C149: 1 | D149: 6 | E149: 24 | F149: L | G149: 76.62 | H149: 96.84849739 | I149: 103.1067904 | J149: 194.3524807 | K149: R | AL149: Sum | AM149: 6 | AP149: 24 | AQ149: 57.28207317 | AR149: 50.81523208 | AS149: 53.60027777
A150: =INDEX(Seas_Ar,C150) -> Sum | B150: =INDEX(WDWE_Ar,D150) -> WE | C150: 1 | D150: 7 | E150: 1 | F150: L | G150: 72.83 | H150: 92.05789696 | I150: 87.02289173 | J150: 255.2659296 | K150: R | AL150: Sum | AM150: 7 | AO150: =AO126+1 -> 7 | AP150: 1 | AQ150: 53.838375 | AR150: =AVERAGEIFS(I$5:I$22182,$A$5:$A$22182,$AL150,$D$5:$D$22182,$AM150,$E$5:$E$22182,$AP150) -> 39.94451616 | AS150: =AVERAGEIFS(J$5:J$22182,$A$5:$A$22182,$AL150,$D$5:$D$22182,$AM150,$E$5:$E$22182,$AP150) -> 80.86276928
A151: =INDEX(Seas_Ar,C151) -> Sum | B151: =INDEX(WDWE_Ar,D151) -> WE | C151: 1 | D151: 7 | E151: 2 | F151: L | G151: 82.735 | H151: 104.5779226 | I151: 82.2576574 | J151: 255.2659296 | K151: R | AL151: Sum | AM151: 7 | AP151: 2 | AQ151: 49.284875 | AR151: 35.71574876 | AS151: 80.86276928
A152: =INDEX(Seas_Ar,C152) -> Sum | B152: =INDEX(WDWE_Ar,D152) -> WE | C152: 1 | D152: 7 | E152: 3 | F152: L | G152: 83.38 | H152: 105.3932095 | I152: 82.2576574 | J152: 255.2659296 | K152: R | AL152: Sum | AM152: 7 | AP152: 3 | AQ152: 45.81525 | AR152: 35.84586839 | AS152: 80.86276928
A153: =INDEX(Seas_Ar,C153) -> Sum | B153: =INDEX(WDWE_Ar,D153) -> WE | C153: 1 | D153: 7 | E153: 4 | F153: L | G153: 83.26 | H153: 105.2415282 | I153: 82.2576574 | J153: 255.2659296 | K153: R | AL153: Sum | AM153: 7 | AP153: 4 | AQ153: 42.4615 | AR153: 35.03318193 | AS153: 80.86276928
A154: =INDEX(Seas_Ar,C154) -> Sum | B154: =INDEX(WDWE_Ar,D154) -> WE | C154: 1 | D154: 7 | E154: 5 | F154: L | G154: 69.93 | H154: 88.39226602 | I154: 84.78513384 | J154: 255.2659296 | K154: R | AL154: Sum | AM154: 7 | AP154: 5 | AQ154: 41.309875 | AR154: 34.91455086 | AS154: 80.86276928
A155: =INDEX(Seas_Ar,C155) -> Sum | B155: =INDEX(WDWE_Ar,D155) -> WE | C155: 1 | D155: 7 | E155: 6 | F155: L | G155: 75.36 | H155: 95.25584395 | I155: 84.78513384 | J155: 255.2659296 | K155: R | AL155: Sum | AM155: 7 | AP155: 6 | AQ155: 46.557875 | AR155: 37.30241066 | AS155: 79.15798931
A156: =INDEX(Seas_Ar,C156) -> Sum | B156: =INDEX(WDWE_Ar,D156) -> WE | C156: 1 | D156: 7 | E156: 7 | F156: L | G156: 87.35 | H156: 110.4113319 | I156: 91.40850118 | J156: 123.5908826 | K156: R | AL156: Sum | AM156: 7 | AP156: 7 | AQ156: 48.3745 | AR156: 38.08287935 | AS156: 27.78199233
A157: =INDEX(Seas_Ar,C157) -> Sum | B157: =INDEX(WDWE_Ar,D157) -> WE | C157: 1 | D157: 7 | E157: 8 | F157: L | G157: 87.285 | H157: 110.3291712 | I157: 91.40850118 | J157: 119.8915244 | K157: R | AL157: Sum | AM157: 7 | AP157: 8 | AQ157: 47.791375 | AR157: 40.10435598 | AS157: 19.97856036
A158: =INDEX(Seas_Ar,C158) -> Sum | B158: =INDEX(WDWE_Ar,D158) -> WE | C158: 1 | D158: 7 | E158: 9 | F158: L | G158: 101.61 | H158: 128.436124 | I158: 99.75014976 | J158: 10.08000016 | K158: R | AL158: Sum | AM158: 7 | AP158: 9 | AQ158: 52.874375 | AR158: 43.22548191 | AS158: 16.78168826
A159: =INDEX(Seas_Ar,C159) -> Sum | B159: =INDEX(WDWE_Ar,D159) -> WE | C159: 1 | D159: 7 | E159: 10 | F159: L | G159: 102.345 | H159: 129.3651718 | I159: 89.07084481 | J159: 10.08000016 | K159: R | AL159: Sum | AM159: 7 | AP159: 10 | AQ159: 58.337875 | AR159: 42.51419392 | AS159: 16.54405225
A160: =INDEX(Seas_Ar,C160) -> Sum | B160: =INDEX(WDWE_Ar,D160) -> WE | C160: 1 | D160: 7 | E160: 11 | F160: L | G160: 101.075 | H160: 127.7598783 | I160: 89.07084481 | J160: 10.08000016 | K160: R | AL160: Sum | AM160: 7 | AP160: 11 | AQ160: 59.5625 | AR160: 39.96974102 | AS160: 16.22804423
A161: =INDEX(Seas_Ar,C161) -> Sum | B161: =INDEX(WDWE_Ar,D161) -> WE | C161: 1 | D161: 7 | E161: 12 | F161: L | G161: 106.27 | H161: 134.3264137 | I161: 75.97395403 | J161: 10.08000016 | K161: R | AL161: Sum | AM161: 7 | AP161: 12 | AQ161: 58.9275 | AR161: 40.2347256 | AS161: 14.80348843
A162: =INDEX(Seas_Ar,C162) -> Sum | B162: =INDEX(WDWE_Ar,D162) -> WE | C162: 1 | D162: 7 | E162: 13 | F162: L | G162: 106.685 | H162: 134.8509781 | I162: 75.97395403 | J162: 10.08000016 | K162: R | AL162: Sum | AM162: 7 | AP162: 13 | AQ162: 57.056625 | AR162: 39.14231915 | AS162: 13.73198419
A163: =INDEX(Seas_Ar,C163) -> Sum | B163: =INDEX(WDWE_Ar,D163) -> WE | C163: 1 | D163: 7 | E163: 14 | F163: L | G163: 98.835 | H163: 124.9284944 | I163: 75.97395403 | J163: 9.928800544 | K163: R | AL163: Sum | AM163: 7 | AP163: 14 | AQ163: 53.835625 | AR163: 38.58962229 | AS163: 12.2255284
A164: =INDEX(Seas_Ar,C164) -> Sum | B164: =INDEX(WDWE_Ar,D164) -> WE | C164: 1 | D164: 7 | E164: 15 | F164: L | G164: 113.51 | H164: 143.4778509 | I164: 75.97395403 | J164: 10.08000016 | K164: R | AL164: Sum | AM164: 7 | AP164: 15 | AQ164: 55.2035 | AR164: 39.27893244 | AS164: 16.54405225
A165: =INDEX(Seas_Ar,C165) -> Sum | B165: =INDEX(WDWE_Ar,D165) -> WE | C165: 1 | D165: 7 | E165: 16 | F165: L | G165: 112.955 | H165: 142.776325 | I165: 84.78513384 | J165: 10.08000016 | K165: R | AL165: Sum | AM165: 7 | AP165: 16 | AQ165: 56.41575 | AR165: 42.13881988 | AS165: 24.02492465
A166: =INDEX(Seas_Ar,C166) -> Sum | B166: =INDEX(WDWE_Ar,D166) -> WE | C166: 1 | D166: 7 | E166: 17 | F166: L | G166: 110.655 | H166: 139.8691005 | I166: 91.40850118 | J166: 114.1358452 | K166: R | AL166: Sum | AM166: 7 | AP166: 17 | AQ166: 60.167875 | AR166: 46.63257154 | AS166: 44.97217264
A167: =INDEX(Seas_Ar,C167) -> Sum | B167: =INDEX(WDWE_Ar,D167) -> WE | C167: 1 | D167: 7 | E167: 18 | F167: L | G167: 125.78 | H167: 158.9872618 | I167: 91.40850118 | J167: 114.1358452 | K167: R | AL167: Sum | AM167: 7 | AP167: 18 | AQ167: 64.437125 | AR167: 50.48646397 | AS167: 47.49066098
A168: =INDEX(Seas_Ar,C168) -> Sum | B168: =INDEX(WDWE_Ar,D168) -> WE | C168: 1 | D168: 7 | E168: 19 | F168: L | G168: 127.985 | H168: 161.7744054 | I168: 91.40850118 | J168: 114.1358452 | K168: R | AL168: Sum | AM168: 7 | AP168: 19 | AQ168: 64.62575 | AR168: 51.65953935 | AS168: 51.161545
A169: =INDEX(Seas_Ar,C169) -> Sum | B169: =INDEX(WDWE_Ar,D169) -> WE | C169: 1 | D169: 7 | E169: 20 | F169: L | G169: 127.415 | H169: 161.0539193 | I169: 91.40850118 | J169: 114.1358452 | K169: R | AL169: Sum | AM169: 7 | AP169: 20 | AQ169: 62.195125 | AR169: 51.12332587 | AS169: 48.47346081
A170: =INDEX(Seas_Ar,C170) -> Sum | B170: =INDEX(WDWE_Ar,D170) -> WE | C170: 1 | D170: 7 | E170: 21 | F170: L | G170: 120.205 | H170: 151.9404024 | I170: 91.40850118 | J170: 129.5985695 | K170: R | AL170: Sum | AM170: 7 | AP170: 21 | AQ170: 63.8035 | AR170: 54.67002613 | AS170: 54.86317333
A171: =INDEX(Seas_Ar,C171) -> Sum | B171: =INDEX(WDWE_Ar,D171) -> WE | C171: 1 | D171: 7 | E171: 22 | F171: L | G171: 124.81 | H171: 157.7611715 | I171: 91.40850118 | J171: 134.7796889 | K171: R | AL171: Sum | AM171: 7 | AP171: 22 | AQ171: 66.11475 | AR171: 51.150299 | AS171: 52.59970897
A172: =INDEX(Seas_Ar,C172) -> Sum | B172: =INDEX(WDWE_Ar,D172) -> WE | C172: 1 | D172: 7 | E172: 23 | F172: L | G172: 120.085 | H172: 151.7887211 | I172: 91.40850118 | J172: 129.5985695 | K172: R | AL172: Sum | AM172: 7 | AP172: 23 | AQ172: 57.83 | AR172: 47.38706623 | AS172: 49.48246894
A173: =INDEX(Seas_Ar,C173) -> Sum | B173: =INDEX(WDWE_Ar,D173) -> WE | C173: 1 | D173: 7 | E173: 24 | F173: L | G173: 114.305 | H173: 144.4827394 | I173: 60.53939926 | J173: 114.1358452 | K173: R | AL173: Sum | AM173: 7 | AP173: 24 | AQ173: 52.66775 | AR173: 42.7304775 | AS173: 47.49040874
A174: =INDEX(Seas_Ar,C174) -> Sum | B174: =INDEX(WDWE_Ar,D174) -> WD | C174: 1 | D174: 1 | E174: 1 | F174: L | G174: 91.58 | H174: 110.409179 | I174: 92.20770424 | J174: 85.26671768 | K174: R | AL174: Win | AM174: 1 | AN174: Win | AO174: 1 | AP174: 1 | AQ174: 85.28636364 | AR174: 73.47856999 | AS174: 125.0307958
A175: =INDEX(Seas_Ar,C175) -> Sum | B175: =INDEX(WDWE_Ar,D175) -> WD | C175: 1 | D175: 1 | E175: 2 | F175: L | G175: 91.55 | H175: 113.5370091 | I175: 92.20770424 | J175: 85.26671768 | K175: R | AL175: Win | AM175: 1 | AP175: 2 | AQ175: 77.94318182 | AR175: 70.75584079 | AS175: 125.0307958
A176: =INDEX(Seas_Ar,C176) -> Sum | B176: =INDEX(WDWE_Ar,D176) -> WD | C176: 1 | D176: 1 | E176: 3 | F176: L | G176: 106.69 | H176: 108.6517899 | I176: 92.20770424 | J176: 85.26671768 | K176: R | AL176: Win | AM176: 1 | AP176: 3 | AQ176: 70.19045455 | AR176: 66.97689608 | AS176: 125.0307958
A177: =INDEX(Seas_Ar,C177) -> Sum | B177: =INDEX(WDWE_Ar,D177) -> WD | C177: 1 | D177: 1 | E177: 4 | F177: L | G177: 117.05 | H177: 127.3300951 | I177: 93.50639968 | J177: 85.26671768 | K177: R | AL177: Win | AM177: 1 | AP177: 4 | AQ177: 64.37939394 | AR177: 63.28604495 | AS177: 125.0307958
A178: =INDEX(Seas_Ar,C178) -> Sum | B178: =INDEX(WDWE_Ar,D178) -> WD | C178: 1 | D178: 1 | E178: 5 | F178: L | G178: 128.25 | H178: 129.3293267 | I178: 93.50639968 | J178: 85.26671768 | K178: R | AL178: Win | AM178: 1 | AP178: 5 | AQ178: 61.12318182 | AR178: 69.63241979 | AS178: 125.0307958
A179: =INDEX(Seas_Ar,C179) -> Sum | B179: =INDEX(WDWE_Ar,D179) -> WD | C179: 1 | D179: 1 | E179: 6 | F179: L | G179: 119.705 | H179: 122.0821121 | I179: 93.50639968 | J179: 82.71647887 | K179: R | AL179: Win | AM179: 1 | AP179: 6 | AQ179: 59.71681818 | AR179: 75.89160917 | AS179: 124.8377489
A180: =INDEX(Seas_Ar,C180) -> Sum | B180: =INDEX(WDWE_Ar,D180) -> WD | C180: 1 | D180: 1 | E180: 7 | F180: L | G180: 138.45 | H180: 130.6030308 | I180: 93.50639968 | J180: 10.08000016 | K180: R | AL180: Win | AM180: 1 | AP180: 7 | AQ180: 71.14878788 | AR180: 134.4802354 | AS180: 149.4723513
A181: =INDEX(Seas_Ar,C181) -> Sum | B181: =INDEX(WDWE_Ar,D181) -> WD | C181: 1 | D181: 1 | E181: 8 | F181: L | G181: 147.525 | H181: 134.8433366 | I181: 111.1387514 | J181: 10.08000016 | K181: R | AL181: Win | AM181: 1 | AP181: 8 | AQ181: 86.52212121 | AR181: 193.4811746 | AS181: 187.1629985
A182: =INDEX(Seas_Ar,C182) -> Sum | B182: =INDEX(WDWE_Ar,D182) -> WD | C182: 1 | D182: 1 | E182: 9 | F182: L | G182: 153.16 | H182: 153.102448 | I182: 111.1387514 | J182: 9.928800544 | K182: R | AL182: Win | AM182: 1 | AP182: 9 | AQ182: 102.1259091 | AR182: 173.0395162 | AS182: 165.5175745
A183: =INDEX(Seas_Ar,C183) -> Sum | B183: =INDEX(WDWE_Ar,D183) -> WD | C183: 1 | D183: 1 | E183: 10 | F183: L | G183: 166.425 | H183: 181.0836294 | I183: 110.4594311 | J183: 9.928800544 | K183: R | AL183: Win | AM183: 1 | AP183: 10 | AQ183: 109.6931818 | AR183: 149.5033795 | AS183: 141.4804392
A184: =INDEX(Seas_Ar,C184) -> Sum | B184: =INDEX(WDWE_Ar,D184) -> WD | C184: 1 | D184: 1 | E184: 11 | F184: L | G184: 154.615 | H184: 170.869813 | I184: 111.1387514 | J184: 9.928800544 | K184: R | AL184: Win | AM184: 1 | AP184: 11 | AQ184: 107.3534848 | AR184: 138.6899621 | AS184: 130.5167588
A185: =INDEX(Seas_Ar,C185) -> Sum | B185: =INDEX(WDWE_Ar,D185) -> WD | C185: 1 | D185: 1 | E185: 12 | F185: L | G185: 147.14 | H185: 204.2924514 | I185: 111.1387514 | J185: 0.01007999994 | K185: R | AL185: Win | AM185: 1 | AP185: 12 | AQ185: 119.1086364 | AR185: 135.1846805 | AS185: 110.4994052
A186: =INDEX(Seas_Ar,C186) -> Sum | B186: =INDEX(WDWE_Ar,D186) -> WD | C186: 1 | D186: 1 | E186: 13 | F186: L | G186: 114.125 | H186: 191.0636647 | I186: 94.46543878 | J186: 0.01007999994 | K186: R | AL186: Win | AM186: 1 | AP186: 13 | AQ186: 110.7069697 | AR186: 125.46653 | AS186: 99.7635956
A187: =INDEX(Seas_Ar,C187) -> Sum | B187: =INDEX(WDWE_Ar,D187) -> WD | C187: 1 | D187: 1 | E187: 14 | F187: L | G187: 128.69 | H187: 176.8916921 | I187: 111.1387514 | J187: 0.01007999994 | K187: R | AL187: Win | AM187: 1 | AP187: 14 | AQ187: 108.8812121 | AR187: 125.913659 | AS187: 104.6484238
A188: =INDEX(Seas_Ar,C188) -> Sum | B188: =INDEX(WDWE_Ar,D188) -> WD | C188: 1 | D188: 1 | E188: 15 | F188: L | G188: 118.61 | H188: 171.5389107 | I188: 111.1387514 | J188: 0.01007999994 | K188: R | AL188: Win | AM188: 1 | AP188: 15 | AQ188: 102.6716667 | AR188: 128.9148973 | AS188: 130.5140092
A189: =INDEX(Seas_Ar,C189) -> Sum | B189: =INDEX(WDWE_Ar,D189) -> WD | C189: 1 | D189: 1 | E189: 16 | F189: L | G189: 137.335 | H189: 197.1742195 | I189: 111.1387514 | J189: 10.08000016 | K189: R | AL189: Win | AM189: 1 | AP189: 16 | AQ189: 96.2919697 | AR189: 138.3288073 | AS189: 156.6407584
A190: =INDEX(Seas_Ar,C190) -> Sum | B190: =INDEX(WDWE_Ar,D190) -> WD | C190: 1 | D190: 1 | E190: 17 | F190: L | G190: 108.955 | H190: 214.2402411 | I190: 111.1387514 | J190: 10.08000016 | K190: R | AL190: Win | AM190: 1 | AP190: 17 | AQ190: 104.2530303 | AR190: 172.4482913 | AS190: 219.6902425
A191: =INDEX(Seas_Ar,C191) -> Sum | B191: =INDEX(WDWE_Ar,D191) -> WD | C191: 1 | D191: 1 | E191: 18 | F191: L | G191: 90.37 | H191: 199.3508023 | I191: 111.1387514 | J191: 10.08000016 | K191: R | AL191: Win | AM191: 1 | AP191: 18 | AQ191: 115.709697 | AR191: 557.03938 | AS191: 320.2544304
A192: =INDEX(Seas_Ar,C192) -> Sum | B192: =INDEX(WDWE_Ar,D192) -> WD | C192: 1 | D192: 1 | E192: 19 | F192: L | G192: 96.975 | H192: 185.4126108 | I192: 111.1387514 | J192: 10.08000016 | K192: R | AL192: Win | AM192: 1 | AP192: 19 | AQ192: 136.0563636 | AR192: 593.7611052 | AS192: 306.7286002
A193: =INDEX(Seas_Ar,C193) -> Sum | B193: =INDEX(WDWE_Ar,D193) -> WD | C193: 1 | D193: 1 | E193: 20 | F193: L | G193: 99.16 | H193: 176.2870858 | I193: 111.1387514 | J193: 10.08000016 | K193: R | AL193: Win | AM193: 1 | AP193: 20 | AQ193: 156.084697 | AR193: 255.7782093 | AS193: 253.9393349
A194: =INDEX(Seas_Ar,C194) -> Sum | B194: =INDEX(WDWE_Ar,D194) -> WD | C194: 1 | D194: 1 | E194: 21 | F194: L | G194: 96.48 | H194: 175.7147251 | I194: 111.1387514 | J194: 83.76479981 | K194: R | AL194: Win | AM194: 1 | AP194: 21 | AQ194: 114.8748485 | AR194: 193.1499923 | AS194: 228.781179
A195: =INDEX(Seas_Ar,C195) -> Sum | B195: =INDEX(WDWE_Ar,D195) -> WD | C195: 1 | D195: 1 | E195: 22 | F195: L | G195: 115.48 | H195: 207.4444658 | I195: 111.1387514 | J195: 89.57088206 | K195: R | AL195: Win | AM195: 1 | AP195: 22 | AQ195: 108.1771212 | AR195: 162.1310429 | AS195: 217.1384754
A196: =INDEX(Seas_Ar,C196) -> Sum | B196: =INDEX(WDWE_Ar,D196) -> WD | C196: 1 | D196: 1 | E196: 23 | F196: L | G196: 91.325 | H196: 217.480931 | I196: 111.1387514 | J196: 85.26671768 | K196: R | AL196: Win | AM196: 1 | AP196: 23 | AQ196: 109.0587879 | AR196: 127.2940954 | AS196: 217.1384754
A197: =INDEX(Seas_Ar,C197) -> Sum | B197: =INDEX(WDWE_Ar,D197) -> WD | C197: 1 | D197: 1 | E197: 24 | F197: L | G197: 85.21 | H197: 183.3005193 | I197: 89.01089962 | J197: 83.76479981 | K197: R | AL197: Win | AM197: 1 | AP197: 24 | AQ197: 90.67636364 | AR197: 89.08839923 | AS197: 216.9087739
A198: =INDEX(Seas_Ar,C198) -> Sum | B198: =INDEX(WDWE_Ar,D198) -> WD | C198: 1 | D198: 2 | E198: 1 | F198: L | G198: 63.61 | H198: 162.7116581 | I198: 75.97395403 | J198: 195.6528093 | K198: R | AL198: Win | AM198: 2 | AO198: =AO174+1 -> 2 | AP198: 1 | AQ198: 81.99348485 | AR198: 112.9336223 | AS198: 145.9260253
A199: =INDEX(Seas_Ar,C199) -> Sum | B199: =INDEX(WDWE_Ar,D199) -> WD | C199: 1 | D199: 2 | E199: 2 | F199: L | G199: 62.335 | H199: 176.5450511 | I199: 75.97395403 | J199: 195.6528093 | K199: R | AL199: Win | AM199: 2 | AP199: 2 | AQ199: =AVERAGEIFS(G$5:G$22182,$A$5:$A$22182,$AL199,$D$5:$D$22182,$AM199,$E$5:$E$22182,$AP199) -> 76.13530303 | AR199: 112.9729766 | AS199: 145.9260253
A200: =INDEX(Seas_Ar,C200) -> Sum | B200: =INDEX(WDWE_Ar,D200) -> WD | C200: 1 | D200: 2 | E200: 3 | F200: L | G200: 60.955 | H200: 155.803023 | I200: 75.97395403 | J200: 195.6528093 | K200: R | AL200: Win | AM200: 2 | AP200: 3 | AQ200: 75.24348485 | AR200: 107.3104626 | AS200: 145.9260253
... 4300 more rows

Sheet Calc
A1: This tab has the hourly projection of electricity and gas prices, and the evaluation of whether gas or electricity is least-cost operation for different time periods
A2: Num of hours in sample | D2: =COUNT(Prof_Ar) -> 22176 | E2: Electricity costs ($/MWh) | I2: =Other_fuel&" costs ($/GJ)" -> Gas costs ($/GJ) | K2: Useful ($/MWh_use) | M2: Compare
A3: Price scenario offset: | B3: =_xlfn.XMATCH(Sc_EPrice_Shp,ePrice!$F$3:$K$3) -> 3 | C3: Price factor: | D3: =Ctrl!$B$27/INDEX(ePrice!$F$4:$K$4,P_Off) -> 0.9616562732 | F3: Network | K3: =LEFT(K4,1) -> E | L3: =LEFT(L4,1) -> G | M3: Least cost option for different decision timeframes | Q3: Daily gas totals
A4: mth | B4: wkdy | C4: hr | D4: Demand profile | E4: Wholesale | F4: Nwk variable | G4: Nwk CPD | H4: Nwk Tot. | I4: Wholesale | J4: Network | K4: Electricity | L4: =Other_fuel -> Gas | M4: Hourly | N4: Daily | O4: Weekly | P4: | | Q4: Hourly | R4: Daily | S4: Weekly
A5: 1 | B5: 1 | C5: 1 | D5: =INDEX(Assump!$C$30:$N$30,$A5)*INDEX(Assump!$C$56:$FN$56,($B5-1)*Hrs_in_dy+$C5) -> 0.6404783353 | E5: =INDEX(ePrice!$F6:$K6,P_Off)*EPrice_Fac -> 135.7640857 | F5: =Nwk_Elec_Var -> 15.55141825 | H5: =SUM($F5:$G5) -> 15.55141825 | I5: =IF(Other_fuel="Gas", CHOOSE(Gas_price_option,Other_fuel_price_wholesale_flex,Gas_elec_m*$E5+Gas_elec_c), Other_fuel_price_wholesale_flex) -> 13.4789883 | J5: =IF(Other_fuel="Gas",Nwk_Gas_Var,0) -> 1.744851 | K5: =SUM(E5,H5)/COP_Elec -> 152.8439434 | L5: =SUM(I5:J5)*GJ_MWh/COP_Other -> 73.07442866 | M5: =IF(K5<L5,ID_E,ID_O) -> G | N5: =IF($C5=1,IF(SUM($D5:$D28)=0,".",IF(SUMPRODUCT($K5:$K28,$D5:$D28)<SUMPRODUCT($L5:$L28,$D5:$D28),ID_E,ID_O)),N4) -> G | O5: =IF(SUM($B5:$C5)=2,IF(SUMPRODUCT($K5:$K172,$D5:$D172)<SUMPRODUCT($L5:$L172,$D5:$D172),ID_E,ID_O),O4) -> G | P5: | | Q5: =IF($C5=1,SUMIFS($D5:$D28,M5:M28,ID_O),".") -> 15.37148005 | R5: =IF($C5=1,SUMIFS($D5:$D28,N5:N28,ID_O),".") -> 15.37148005 | S5: =IF($C5=1,SUMIFS($D5:$D28,O5:O28,ID_O),".") -> 15.37148005
A6: 1 | B6: 1 | C6: 2 | D6: =INDEX(Assump!$C$30:$N$30,$A6)*INDEX(Assump!$C$56:$FN$56,($B6-1)*Hrs_in_dy+$C6) -> 0.6404783353 | E6: =INDEX(ePrice!$F7:$K7,P_Off)*EPrice_Fac -> 128.8841079 | F6: 15.55141825 | H6: =SUM($F6:$G6) -> 15.55141825 | I6: 13.4789883 | J6: 1.744851 | K6: =SUM(E6,H6)/COP_Elec -> 145.8944708 | L6: =SUM(I6:J6)*GJ_MWh/COP_Other -> 73.07442866 | M6: G | N6: G | O6: G | P6: | | Q6: . | R6: . | S6: .
A7: 1 | B7: 1 | C7: 3 | D7: =INDEX(Assump!$C$30:$N$30,$A7)*INDEX(Assump!$C$56:$FN$56,($B7-1)*Hrs_in_dy+$C7) -> 0.6404783353 | E7: =INDEX(ePrice!$F8:$K8,P_Off)*EPrice_Fac -> 116.4308618 | F7: 15.55141825 | H7: 15.55141825 | I7: 13.4789883 | J7: 1.744851 | K7: 133.3154344 | L7: 73.07442866 | M7: G | N7: G | O7: G | P7: | | Q7: . | R7: . | S7: .
A8: 1 | B8: 1 | C8: 4 | D8: =INDEX(Assump!$C$30:$N$30,$A8)*INDEX(Assump!$C$56:$FN$56,($B8-1)*Hrs_in_dy+$C8) -> 0.6404783353 | E8: =INDEX(ePrice!$F9:$K9,P_Off)*EPrice_Fac -> 103.9107607 | F8: 15.55141825 | H8: 15.55141825 | I8: 13.4789883 | J8: 1.744851 | K8: 120.6688677 | L8: 73.07442866 | M8: G | N8: G | O8: G | P8: | | Q8: . | R8: . | S8: .
A9: 1 | B9: 1 | C9: 5 | D9: =INDEX(Assump!$C$30:$N$30,$A9)*INDEX(Assump!$C$56:$FN$56,($B9-1)*Hrs_in_dy+$C9) -> 0.6404783353 | E9: =INDEX(ePrice!$F10:$K10,P_Off)*EPrice_Fac -> 107.8430449 | F9: 15.55141825 | H9: 15.55141825 | I9: 13.4789883 | J9: 1.744851 | K9: 124.6408719 | L9: 73.07442866 | M9: G | N9: G | O9: G | P9: | | Q9: . | R9: . | S9: .
A10: 1 | B10: 1 | C10: 6 | D10: =INDEX(Assump!$C$30:$N$30,$A10)*INDEX(Assump!$C$56:$FN$56,($B10-1)*Hrs_in_dy+$C10) -> 0.6404783353 | E10: =INDEX(ePrice!$F11:$K11,P_Off)*EPrice_Fac -> 119.0564363 | F10: 15.55141825 | H10: 15.55141825 | I10: 13.4789883 | J10: 1.744851 | K10: 135.9675299 | L10: 73.07442866 | M10: G | N10: G | O10: G | P10: | | Q10: . | R10: . | S10: .
A11: 1 | B11: 1 | C11: 7 | D11: =INDEX(Assump!$C$30:$N$30,$A11)*INDEX(Assump!$C$56:$FN$56,($B11-1)*Hrs_in_dy+$C11) -> 0.6404783353 | E11: =INDEX(ePrice!$F12:$K12,P_Off)*EPrice_Fac -> 144.7469543 | F11: 15.55141825 | H11: 15.55141825 | I11: 13.4789883 | J11: 1.744851 | K11: 161.917548 | L11: 73.07442866 | M11: G | N11: G | O11: G | P11: | | Q11: . | R11: . | S11: .
A12: 1 | B12: 1 | C12: 8 | D12: =INDEX(Assump!$C$30:$N$30,$A12)*INDEX(Assump!$C$56:$FN$56,($B12-1)*Hrs_in_dy+$C12) -> 0.6404783353 | E12: =INDEX(ePrice!$F13:$K13,P_Off)*EPrice_Fac -> 153.3226157 | F12: 15.55141825 | H12: 15.55141825 | I12: 13.4789883 | J12: 1.744851 | K12: 170.5798323 | L12: 73.07442866 | M12: G | N12: G | O12: G | P12: | | Q12: . | R12: . | S12: .
A13: 1 | B13: 1 | C13: 9 | D13: =INDEX(Assump!$C$30:$N$30,$A13)*INDEX(Assump!$C$56:$FN$56,($B13-1)*Hrs_in_dy+$C13) -> 0.6404783353 | E13: =INDEX(ePrice!$F14:$K14,P_Off)*EPrice_Fac -> 186.6589041 | F13: 15.55141825 | H13: 15.55141825 | I13: 13.4789883 | J13: 1.744851 | K13: 204.2528509 | L13: 73.07442866 | M13: G | N13: G | O13: G | P13: | | Q13: . | R13: . | S13: .
A14: 1 | B14: 1 | C14: 10 | D14: =INDEX(Assump!$C$30:$N$30,$A14)*INDEX(Assump!$C$56:$FN$56,($B14-1)*Hrs_in_dy+$C14) -> 0.6404783353 | E14: =INDEX(ePrice!$F15:$K15,P_Off)*EPrice_Fac -> 208.1983401 | F14: 15.55141825 | H14: 15.55141825 | I14: 13.4789883 | J14: 1.744851 | K14: 226.0098569 | L14: 73.07442866 | M14: G | N14: G | O14: G | P14: | | Q14: . | R14: . | S14: .
A15: 1 | B15: 1 | C15: 11 | D15: =INDEX(Assump!$C$30:$N$30,$A15)*INDEX(Assump!$C$56:$FN$56,($B15-1)*Hrs_in_dy+$C15) -> 0.6404783353 | E15: =INDEX(ePrice!$F16:$K16,P_Off)*EPrice_Fac -> 219.2962549 | F15: 15.55141825 | H15: 15.55141825 | I15: 13.4789883 | J15: 1.744851 | K15: 237.2198718 | L15: 73.07442866 | M15: G | N15: G | O15: G | P15: | | Q15: . | R15: . | S15: .
A16: 1 | B16: 1 | C16: 12 | D16: =INDEX(Assump!$C$30:$N$30,$A16)*INDEX(Assump!$C$56:$FN$56,($B16-1)*Hrs_in_dy+$C16) -> 0.6404783353 | E16: =INDEX(ePrice!$F17:$K17,P_Off)*EPrice_Fac -> 213.0544375 | F16: 15.55141825 | H16: 15.55141825 | I16: 13.4789883 | J16: 1.744851 | K16: 230.9150058 | L16: 73.07442866 | M16: G | N16: G | O16: G | P16: | | Q16: . | R16: . | S16: .
A17: 1 | B17: 1 | C17: 13 | D17: =INDEX(Assump!$C$30:$N$30,$A17)*INDEX(Assump!$C$56:$FN$56,($B17-1)*Hrs_in_dy+$C17) -> 0.6404783353 | E17: =INDEX(ePrice!$F18:$K18,P_Off)*EPrice_Fac -> 212.5621423 | F17: 15.55141825 | H17: 15.55141825 | I17: 13.4789883 | J17: 1.744851 | K17: 230.4177379 | L17: 73.07442866 | M17: G | N17: G | O17: G | P17: | | Q17: . | R17: . | S17: .
A18: 1 | B18: 1 | C18: 14 | D18: =INDEX(Assump!$C$30:$N$30,$A18)*INDEX(Assump!$C$56:$FN$56,($B18-1)*Hrs_in_dy+$C18) -> 0.6404783353 | E18: =INDEX(ePrice!$F19:$K19,P_Off)*EPrice_Fac -> 227.3309993 | F18: 15.55141825 | H18: 15.55141825 | I18: 13.4789883 | J18: 1.744851 | K18: 245.3357753 | L18: 73.07442866 | M18: G | N18: G | O18: G | P18: | | Q18: . | R18: . | S18: .
A19: 1 | B19: 1 | C19: 15 | D19: =INDEX(Assump!$C$30:$N$30,$A19)*INDEX(Assump!$C$56:$FN$56,($B19-1)*Hrs_in_dy+$C19) -> 0.6404783353 | E19: =INDEX(ePrice!$F20:$K20,P_Off)*EPrice_Fac -> 235.2867334 | F19: 15.55141825 | H19: 15.55141825 | I19: 13.4789883 | J19: 1.744851 | K19: 253.3718703 | L19: 73.07442866 | M19: G | N19: G | O19: G | P19: | | Q19: . | R19: . | S19: .
A20: 1 | B20: 1 | C20: 16 | D20: =INDEX(Assump!$C$30:$N$30,$A20)*INDEX(Assump!$C$56:$FN$56,($B20-1)*Hrs_in_dy+$C20) -> 0.6404783353 | E20: =INDEX(ePrice!$F21:$K21,P_Off)*EPrice_Fac -> 226.7353828 | F20: 15.55141825 | H20: 15.55141825 | I20: 13.4789883 | J20: 1.744851 | K20: 244.7341425 | L20: 73.07442866 | M20: G | N20: G | O20: G | P20: | | Q20: . | R20: . | S20: .
A21: 1 | B21: 1 | C21: 17 | D21: =INDEX(Assump!$C$30:$N$30,$A21)*INDEX(Assump!$C$56:$FN$56,($B21-1)*Hrs_in_dy+$C21) -> 0.6404783353 | E21: =INDEX(ePrice!$F22:$K22,P_Off)*EPrice_Fac -> 200.9233105 | F21: 15.55141825 | H21: 15.55141825 | I21: 13.4789883 | J21: 1.744851 | K21: 218.6613422 | L21: 73.07442866 | M21: G | N21: G | O21: G | P21: | | Q21: . | R21: . | S21: .
A22: 1 | B22: 1 | C22: 18 | D22: =INDEX(Assump!$C$30:$N$30,$A22)*INDEX(Assump!$C$56:$FN$56,($B22-1)*Hrs_in_dy+$C22) -> 0.6404783353 | E22: =INDEX(ePrice!$F23:$K23,P_Off)*EPrice_Fac -> 186.1058317 | F22: 15.55141825 | H22: 15.55141825 | I22: 13.4789883 | J22: 1.744851 | K22: 203.6941919 | L22: 73.07442866 | M22: G | N22: G | O22: G | P22: | | Q22: . | R22: . | S22: .
A23: 1 | B23: 1 | C23: 19 | D23: =INDEX(Assump!$C$30:$N$30,$A23)*INDEX(Assump!$C$56:$FN$56,($B23-1)*Hrs_in_dy+$C23) -> 0.6404783353 | E23: =INDEX(ePrice!$F24:$K24,P_Off)*EPrice_Fac -> 171.221498 | F23: 15.55141825 | H23: 15.55141825 | I23: 13.4789883 | J23: 1.744851 | K23: 188.6595114 | L23: 73.07442866 | M23: G | N23: G | O23: G | P23: | | Q23: . | R23: . | S23: .
A24: 1 | B24: 1 | C24: 20 | D24: =INDEX(Assump!$C$30:$N$30,$A24)*INDEX(Assump!$C$56:$FN$56,($B24-1)*Hrs_in_dy+$C24) -> 0.6404783353 | E24: =INDEX(ePrice!$F25:$K25,P_Off)*EPrice_Fac -> 143.7927524 | F24: 15.55141825 | H24: 15.55141825 | I24: 13.4789883 | J24: 1.744851 | K24: 160.9537078 | L24: 73.07442866 | M24: G | N24: G | O24: G | P24: | | Q24: . | R24: . | S24: .
A25: 1 | B25: 1 | C25: 21 | D25: =INDEX(Assump!$C$30:$N$30,$A25)*INDEX(Assump!$C$56:$FN$56,($B25-1)*Hrs_in_dy+$C25) -> 0.6404783353 | E25: =INDEX(ePrice!$F26:$K26,P_Off)*EPrice_Fac -> 166.8820067 | F25: 15.55141825 | H25: 15.55141825 | I25: 13.4789883 | J25: 1.744851 | K25: 184.2761868 | L25: 73.07442866 | M25: G | N25: G | O25: G | P25: | | Q25: . | R25: . | S25: .
A26: 1 | B26: 1 | C26: 22 | D26: =INDEX(Assump!$C$30:$N$30,$A26)*INDEX(Assump!$C$56:$FN$56,($B26-1)*Hrs_in_dy+$C26) -> 0.6404783353 | E26: =INDEX(ePrice!$F27:$K27,P_Off)*EPrice_Fac -> 140.9240691 | F26: 15.55141825 | H26: 15.55141825 | I26: 13.4789883 | J26: 1.744851 | K26: 158.0560478 | L26: 73.07442866 | M26: G | N26: G | O26: G | P26: | | Q26: . | R26: . | S26: .
A27: 1 | B27: 1 | C27: 23 | D27: =INDEX(Assump!$C$30:$N$30,$A27)*INDEX(Assump!$C$56:$FN$56,($B27-1)*Hrs_in_dy+$C27) -> 0.6404783353 | E27: =INDEX(ePrice!$F28:$K28,P_Off)*EPrice_Fac -> 151.2926576 | F27: 15.55141825 | H27: 15.55141825 | I27: 13.4789883 | J27: 1.744851 | K27: 168.5293696 | L27: 73.07442866 | M27: G | N27: G | O27: G | P27: | | Q27: . | R27: . | S27: .
A28: 1 | B28: 1 | C28: 24 | D28: =INDEX(Assump!$C$30:$N$30,$A28)*INDEX(Assump!$C$56:$FN$56,($B28-1)*Hrs_in_dy+$C28) -> 0.6404783353 | E28: =INDEX(ePrice!$F29:$K29,P_Off)*EPrice_Fac -> 151.3169685 | F28: 15.55141825 | H28: 15.55141825 | I28: 13.4789883 | J28: 1.744851 | K28: 168.553926 | L28: 73.07442866 | M28: G | N28: G | O28: G | P28: | | Q28: . | R28: . | S28: .
A29: 1 | B29: 2 | C29: 1 | D29: =INDEX(Assump!$C$30:$N$30,$A29)*INDEX(Assump!$C$56:$FN$56,($B29-1)*Hrs_in_dy+$C29) -> 0.6404783353 | E29: =INDEX(ePrice!$F30:$K30,P_Off)*EPrice_Fac -> 137.3382149 | F29: 15.55141825 | H29: 15.55141825 | I29: 13.4789883 | J29: 1.744851 | K29: 154.4339729 | L29: 73.07442866 | M29: G | N29: G | O29: G | P29: | | Q29: 15.37148005 | R29: 15.37148005 | S29: 15.37148005
A30: 1 | B30: 2 | C30: 2 | D30: =INDEX(Assump!$C$30:$N$30,$A30)*INDEX(Assump!$C$56:$FN$56,($B30-1)*Hrs_in_dy+$C30) -> 0.6404783353 | E30: =INDEX(ePrice!$F31:$K31,P_Off)*EPrice_Fac -> 111.3255779 | F30: 15.55141825 | H30: 15.55141825 | I30: 13.4789883 | J30: 1.744851 | K30: 128.1585819 | L30: 73.07442866 | M30: G | N30: G | O30: G | P30: | | Q30: . | R30: . | S30: .
A31: 1 | B31: 2 | C31: 3 | D31: =INDEX(Assump!$C$30:$N$30,$A31)*INDEX(Assump!$C$56:$FN$56,($B31-1)*Hrs_in_dy+$C31) -> 0.6404783353 | E31: =INDEX(ePrice!$F32:$K32,P_Off)*EPrice_Fac -> 120.8189748 | F31: 15.55141825 | H31: 15.55141825 | I31: 13.4789883 | J31: 1.744851 | K31: 137.7478718 | L31: 73.07442866 | M31: G | N31: G | O31: G | P31: | | Q31: . | R31: . | S31: .
A32: 1 | B32: 2 | C32: 4 | D32: =INDEX(Assump!$C$30:$N$30,$A32)*INDEX(Assump!$C$56:$FN$56,($B32-1)*Hrs_in_dy+$C32) -> 0.6404783353 | E32: =INDEX(ePrice!$F33:$K33,P_Off)*EPrice_Fac -> 145.0386848 | F32: 15.55141825 | H32: 15.55141825 | I32: 13.4789883 | J32: 1.744851 | K32: 162.2122253 | L32: 73.07442866 | M32: G | N32: G | O32: G | P32: | | Q32: . | R32: . | S32: .
A33: 1 | B33: 2 | C33: 5 | D33: =INDEX(Assump!$C$30:$N$30,$A33)*INDEX(Assump!$C$56:$FN$56,($B33-1)*Hrs_in_dy+$C33) -> 0.6404783353 | E33: =INDEX(ePrice!$F34:$K34,P_Off)*EPrice_Fac -> 124.1738757 | F33: 15.55141825 | H33: 15.55141825 | I33: 13.4789883 | J33: 1.744851 | K33: 141.1366605 | L33: 73.07442866 | M33: G | N33: G | O33: G | P33: | | Q33: . | R33: . | S33: .
A34: 1 | B34: 2 | C34: 6 | D34: =INDEX(Assump!$C$30:$N$30,$A34)*INDEX(Assump!$C$56:$FN$56,($B34-1)*Hrs_in_dy+$C34) -> 0.6404783353 | E34: =INDEX(ePrice!$F35:$K35,P_Off)*EPrice_Fac -> 134.1534902 | F34: 15.55141825 | H34: 15.55141825 | I34: 13.4789883 | J34: 1.744851 | K34: 151.2170792 | L34: 73.07442866 | M34: G | N34: G | O34: G | P34: | | Q34: . | R34: . | S34: .
A35: 1 | B35: 2 | C35: 7 | D35: =INDEX(Assump!$C$30:$N$30,$A35)*INDEX(Assump!$C$56:$FN$56,($B35-1)*Hrs_in_dy+$C35) -> 0.6404783353 | E35: =INDEX(ePrice!$F36:$K36,P_Off)*EPrice_Fac -> 175.3665023 | F35: 15.55141825 | H35: 15.55141825 | I35: 13.4789883 | J35: 1.744851 | K35: 192.8463844 | L35: 73.07442866 | M35: G | N35: G | O35: G | P35: | | Q35: . | R35: . | S35: .
A36: 1 | B36: 2 | C36: 8 | D36: =INDEX(Assump!$C$30:$N$30,$A36)*INDEX(Assump!$C$56:$FN$56,($B36-1)*Hrs_in_dy+$C36) -> 0.6404783353 | E36: =INDEX(ePrice!$F37:$K37,P_Off)*EPrice_Fac -> 165.8305613 | F36: 15.55141825 | H36: 15.55141825 | I36: 13.4789883 | J36: 1.744851 | K36: 183.2141208 | L36: 73.07442866 | M36: G | N36: G | O36: G | P36: | | Q36: . | R36: . | S36: .
A37: 1 | B37: 2 | C37: 9 | D37: =INDEX(Assump!$C$30:$N$30,$A37)*INDEX(Assump!$C$56:$FN$56,($B37-1)*Hrs_in_dy+$C37) -> 0.6404783353 | E37: =INDEX(ePrice!$F38:$K38,P_Off)*EPrice_Fac -> 189.5518984 | F37: 15.55141825 | H37: 15.55141825 | I37: 13.4789883 | J37: 1.744851 | K37: 207.1750673 | L37: 73.07442866 | M37: G | N37: G | O37: G | P37: | | Q37: . | R37: . | S37: .
A38: 1 | B38: 2 | C38: 10 | D38: =INDEX(Assump!$C$30:$N$30,$A38)*INDEX(Assump!$C$56:$FN$56,($B38-1)*Hrs_in_dy+$C38) -> 0.6404783353 | E38: =INDEX(ePrice!$F39:$K39,P_Off)*EPrice_Fac -> 240.7506027 | F38: 15.55141825 | H38: 15.55141825 | I38: 13.4789883 | J38: 1.744851 | K38: 258.8909303 | L38: 73.07442866 | M38: G | N38: G | O38: G | P38: | | Q38: . | R38: . | S38: .
A39: 1 | B39: 2 | C39: 11 | D39: =INDEX(Assump!$C$30:$N$30,$A39)*INDEX(Assump!$C$56:$FN$56,($B39-1)*Hrs_in_dy+$C39) -> 0.6404783353 | E39: =INDEX(ePrice!$F40:$K40,P_Off)*EPrice_Fac -> 260.4545675 | F39: 15.55141825 | H39: 15.55141825 | I39: 13.4789883 | J39: 1.744851 | K39: 278.793925 | L39: 73.07442866 | M39: G | N39: G | O39: G | P39: | | Q39: . | R39: . | S39: .
A40: 1 | B40: 2 | C40: 12 | D40: =INDEX(Assump!$C$30:$N$30,$A40)*INDEX(Assump!$C$56:$FN$56,($B40-1)*Hrs_in_dy+$C40) -> 0.6404783353 | E40: =INDEX(ePrice!$F41:$K41,P_Off)*EPrice_Fac -> 230.9229312 | F40: 15.55141825 | H40: 15.55141825 | I40: 13.4789883 | J40: 1.744851 | K40: 248.9639893 | L40: 73.07442866 | M40: G | N40: G | O40: G | P40: | | Q40: . | R40: . | S40: .
A41: 1 | B41: 2 | C41: 13 | D41: =INDEX(Assump!$C$30:$N$30,$A41)*INDEX(Assump!$C$56:$FN$56,($B41-1)*Hrs_in_dy+$C41) -> 0.6404783353 | E41: =INDEX(ePrice!$F42:$K42,P_Off)*EPrice_Fac -> 227.4829423 | F41: 15.55141825 | H41: 15.55141825 | I41: 13.4789883 | J41: 1.744851 | K41: 245.489253 | L41: 73.07442866 | M41: G | N41: G | O41: G | P41: | | Q41: . | R41: . | S41: .
A42: 1 | B42: 2 | C42: 14 | D42: =INDEX(Assump!$C$30:$N$30,$A42)*INDEX(Assump!$C$56:$FN$56,($B42-1)*Hrs_in_dy+$C42) -> 0.6404783353 | E42: =INDEX(ePrice!$F43:$K43,P_Off)*EPrice_Fac -> 274.4697874 | F42: 15.55141825 | H42: 15.55141825 | I42: 13.4789883 | J42: 1.744851 | K42: 292.9507128 | L42: 73.07442866 | M42: G | N42: G | O42: G | P42: | | Q42: . | R42: . | S42: .
A43: 1 | B43: 2 | C43: 15 | D43: =INDEX(Assump!$C$30:$N$30,$A43)*INDEX(Assump!$C$56:$FN$56,($B43-1)*Hrs_in_dy+$C43) -> 0.6404783353 | E43: =INDEX(ePrice!$F44:$K44,P_Off)*EPrice_Fac -> 271.9293009 | F43: 15.55141825 | H43: 15.55141825 | I43: 13.4789883 | J43: 1.744851 | K43: 290.3845648 | L43: 73.07442866 | M43: G | N43: G | O43: G | P43: | | Q43: . | R43: . | S43: .
A44: 1 | B44: 2 | C44: 16 | D44: =INDEX(Assump!$C$30:$N$30,$A44)*INDEX(Assump!$C$56:$FN$56,($B44-1)*Hrs_in_dy+$C44) -> 0.6404783353 | E44: =INDEX(ePrice!$F45:$K45,P_Off)*EPrice_Fac -> 278.803201 | F44: 15.55141825 | H44: 15.55141825 | I44: 13.4789883 | J44: 1.744851 | K44: 297.3278982 | L44: 73.07442866 | M44: G | N44: G | O44: G | P44: | | Q44: . | R44: . | S44: .
A45: 1 | B45: 2 | C45: 17 | D45: =INDEX(Assump!$C$30:$N$30,$A45)*INDEX(Assump!$C$56:$FN$56,($B45-1)*Hrs_in_dy+$C45) -> 0.6404783353 | E45: =INDEX(ePrice!$F46:$K46,P_Off)*EPrice_Fac -> 287.7192147 | F45: 15.55141825 | H45: 15.55141825 | I45: 13.4789883 | J45: 1.744851 | K45: 306.3339727 | L45: 73.07442866 | M45: G | N45: G | O45: G | P45: | | Q45: . | R45: . | S45: .
A46: 1 | B46: 2 | C46: 18 | D46: =INDEX(Assump!$C$30:$N$30,$A46)*INDEX(Assump!$C$56:$FN$56,($B46-1)*Hrs_in_dy+$C46) -> 0.6404783353 | E46: =INDEX(ePrice!$F47:$K47,P_Off)*EPrice_Fac -> 205.4086671 | F46: 15.55141825 | H46: 15.55141825 | I46: 13.4789883 | J46: 1.744851 | K46: 223.1920054 | L46: 73.07442866 | M46: G | N46: G | O46: G | P46: | | Q46: . | R46: . | S46: .
A47: 1 | B47: 2 | C47: 19 | D47: =INDEX(Assump!$C$30:$N$30,$A47)*INDEX(Assump!$C$56:$FN$56,($B47-1)*Hrs_in_dy+$C47) -> 0.6404783353 | E47: =INDEX(ePrice!$F48:$K48,P_Off)*EPrice_Fac -> 172.8320935 | F47: 15.55141825 | H47: 15.55141825 | I47: 13.4789883 | J47: 1.744851 | K47: 190.2863755 | L47: 73.07442866 | M47: G | N47: G | O47: G | P47: | | Q47: . | R47: . | S47: .
A48: 1 | B48: 2 | C48: 20 | D48: =INDEX(Assump!$C$30:$N$30,$A48)*INDEX(Assump!$C$56:$FN$56,($B48-1)*Hrs_in_dy+$C48) -> 0.6404783353 | E48: =INDEX(ePrice!$F49:$K49,P_Off)*EPrice_Fac -> 168.4926022 | F48: 15.55141825 | H48: 15.55141825 | I48: 13.4789883 | J48: 1.744851 | K48: 185.903051 | L48: 73.07442866 | M48: G | N48: G | O48: G | P48: | | Q48: . | R48: . | S48: .
A49: 1 | B49: 2 | C49: 21 | D49: =INDEX(Assump!$C$30:$N$30,$A49)*INDEX(Assump!$C$56:$FN$56,($B49-1)*Hrs_in_dy+$C49) -> 0.6404783353 | E49: =INDEX(ePrice!$F50:$K50,P_Off)*EPrice_Fac -> 175.4637458 | F49: 15.55141825 | H49: 15.55141825 | I49: 13.4789883 | J49: 1.744851 | K49: 192.9446102 | L49: 73.07442866 | M49: G | N49: G | O49: G | P49: | | Q49: . | R49: . | S49: .
A50: 1 | B50: 2 | C50: 22 | D50: =INDEX(Assump!$C$30:$N$30,$A50)*INDEX(Assump!$C$56:$FN$56,($B50-1)*Hrs_in_dy+$C50) -> 0.6404783353 | E50: =INDEX(ePrice!$F51:$K51,P_Off)*EPrice_Fac -> 171.7016378 | F50: 15.55141825 | H50: 15.55141825 | I50: 13.4789883 | J50: 1.744851 | K50: 189.1445011 | L50: 73.07442866 | M50: G | N50: G | O50: G | P50: | | Q50: . | R50: . | S50: .
A51: 1 | B51: 2 | C51: 23 | D51: =INDEX(Assump!$C$30:$N$30,$A51)*INDEX(Assump!$C$56:$FN$56,($B51-1)*Hrs_in_dy+$C51) -> 0.6404783353 | E51: =INDEX(ePrice!$F52:$K52,P_Off)*EPrice_Fac -> 186.336785 | F51: 15.55141825 | H51: 15.55141825 | I51: 13.4789883 | J51: 1.744851 | K51: 203.9274781 | L51: 73.07442866 | M51: G | N51: G | O51: G | P51: | | Q51: . | R51: . | S51: .
A52: 1 | B52: 2 | C52: 24 | D52: =INDEX(Assump!$C$30:$N$30,$A52)*INDEX(Assump!$C$56:$FN$56,($B52-1)*Hrs_in_dy+$C52) -> 0.6404783353 | E52: =INDEX(ePrice!$F53:$K53,P_Off)*EPrice_Fac -> 183.2857701 | F52: 15.55141825 | H52: 15.55141825 | I52: 13.4789883 | J52: 1.744851 | K52: 200.8456448 | L52: 73.07442866 | M52: G | N52: G | O52: G | P52: | | Q52: . | R52: . | S52: .
A53: 1 | B53: 3 | C53: 1 | D53: =INDEX(Assump!$C$30:$N$30,$A53)*INDEX(Assump!$C$56:$FN$56,($B53-1)*Hrs_in_dy+$C53) -> 0.6404783353 | E53: =INDEX(ePrice!$F54:$K54,P_Off)*EPrice_Fac -> 175.8770307 | F53: 15.55141825 | H53: 15.55141825 | I53: 13.4789883 | J53: 1.744851 | K53: 193.3620697 | L53: 73.07442866 | M53: G | N53: G | O53: G | P53: | | Q53: 15.37148005 | R53: 15.37148005 | S53: 15.37148005
A54: 1 | B54: 3 | C54: 2 | D54: =INDEX(Assump!$C$30:$N$30,$A54)*INDEX(Assump!$C$56:$FN$56,($B54-1)*Hrs_in_dy+$C54) -> 0.6404783353 | E54: =INDEX(ePrice!$F55:$K55,P_Off)*EPrice_Fac -> 155.6260712 | F54: 15.55141825 | H54: 15.55141825 | I54: 13.4789883 | J54: 1.744851 | K54: 172.906555 | L54: 73.07442866 | M54: G | N54: G | O54: G | P54: | | Q54: . | R54: . | S54: .
A55: 1 | B55: 3 | C55: 3 | D55: =INDEX(Assump!$C$30:$N$30,$A55)*INDEX(Assump!$C$56:$FN$56,($B55-1)*Hrs_in_dy+$C55) -> 0.6404783353 | E55: =INDEX(ePrice!$F56:$K56,P_Off)*EPrice_Fac -> 137.0282513 | F55: 15.55141825 | H55: 15.55141825 | I55: 13.4789883 | J55: 1.744851 | K55: 154.1208783 | L55: 73.07442866 | M55: G | N55: G | O55: G | P55: | | Q55: . | R55: . | S55: .
A56: 1 | B56: 3 | C56: 4 | D56: =INDEX(Assump!$C$30:$N$30,$A56)*INDEX(Assump!$C$56:$FN$56,($B56-1)*Hrs_in_dy+$C56) -> 0.6404783353 | E56: =INDEX(ePrice!$F57:$K57,P_Off)*EPrice_Fac -> 137.8973651 | F56: 15.55141825 | H56: 15.55141825 | I56: 13.4789883 | J56: 1.744851 | K56: 154.998771 | L56: 73.07442866 | M56: G | N56: G | O56: G | P56: | | Q56: . | R56: . | S56: .
A57: 1 | B57: 3 | C57: 5 | D57: =INDEX(Assump!$C$30:$N$30,$A57)*INDEX(Assump!$C$56:$FN$56,($B57-1)*Hrs_in_dy+$C57) -> 0.6404783353 | E57: =INDEX(ePrice!$F58:$K58,P_Off)*EPrice_Fac -> 143.1789028 | F57: 15.55141825 | H57: 15.55141825 | I57: 13.4789883 | J57: 1.744851 | K57: 160.3336577 | L57: 73.07442866 | M57: G | N57: G | O57: G | P57: | | Q57: . | R57: . | S57: .
A58: 1 | B58: 3 | C58: 6 | D58: =INDEX(Assump!$C$30:$N$30,$A58)*INDEX(Assump!$C$56:$FN$56,($B58-1)*Hrs_in_dy+$C58) -> 0.6404783353 | E58: =INDEX(ePrice!$F59:$K59,P_Off)*EPrice_Fac -> 187.2058988 | F58: 15.55141825 | H58: 15.55141825 | I58: 13.4789883 | J58: 1.744851 | K58: 204.8053708 | L58: 73.07442866 | M58: G | N58: G | O58: G | P58: | | Q58: . | R58: . | S58: .
A59: 1 | B59: 3 | C59: 7 | D59: =INDEX(Assump!$C$30:$N$30,$A59)*INDEX(Assump!$C$56:$FN$56,($B59-1)*Hrs_in_dy+$C59) -> 0.6404783353 | E59: =INDEX(ePrice!$F60:$K60,P_Off)*EPrice_Fac -> 199.2519378 | F59: 15.55141825 | H59: 15.55141825 | I59: 13.4789883 | J59: 1.744851 | K59: 216.9730869 | L59: 73.07442866 | M59: G | N59: G | O59: G | P59: | | Q59: . | R59: . | S59: .
A60: 1 | B60: 3 | C60: 8 | D60: =INDEX(Assump!$C$30:$N$30,$A60)*INDEX(Assump!$C$56:$FN$56,($B60-1)*Hrs_in_dy+$C60) -> 0.6404783353 | E60: =INDEX(ePrice!$F61:$K61,P_Off)*EPrice_Fac -> 201.0874089 | F60: 15.55141825 | H60: 15.55141825 | I60: 13.4789883 | J60: 1.744851 | K60: 218.8270981 | L60: 73.07442866 | M60: G | N60: G | O60: G | P60: | | Q60: . | R60: . | S60: .
A61: 1 | B61: 3 | C61: 9 | D61: =INDEX(Assump!$C$30:$N$30,$A61)*INDEX(Assump!$C$56:$FN$56,($B61-1)*Hrs_in_dy+$C61) -> 0.6404783353 | E61: =INDEX(ePrice!$F62:$K62,P_Off)*EPrice_Fac -> 170.9905447 | F61: 15.55141825 | H61: 15.55141825 | I61: 13.4789883 | J61: 1.744851 | K61: 188.4262252 | L61: 73.07442866 | M61: G | N61: G | O61: G | P61: | | Q61: . | R61: . | S61: .
A62: 1 | B62: 3 | C62: 10 | D62: =INDEX(Assump!$C$30:$N$30,$A62)*INDEX(Assump!$C$56:$FN$56,($B62-1)*Hrs_in_dy+$C62) -> 0.6404783353 | E62: =INDEX(ePrice!$F63:$K63,P_Off)*EPrice_Fac -> 190.9740846 | F62: 15.55141825 | H62: 15.55141825 | I62: 13.4789883 | J62: 1.744851 | K62: 208.611619 | L62: 73.07442866 | M62: G | N62: G | O62: G | P62: | | Q62: . | R62: . | S62: .
A63: 1 | B63: 3 | C63: 11 | D63: =INDEX(Assump!$C$30:$N$30,$A63)*INDEX(Assump!$C$56:$FN$56,($B63-1)*Hrs_in_dy+$C63) -> 0.6404783353 | E63: =INDEX(ePrice!$F64:$K64,P_Off)*EPrice_Fac -> 171.0999436 | F63: 15.55141825 | H63: 15.55141825 | I63: 13.4789883 | J63: 1.744851 | K63: 188.5367292 | L63: 73.07442866 | M63: G | N63: G | O63: G | P63: | | Q63: . | R63: . | S63: .
A64: 1 | B64: 3 | C64: 12 | D64: =INDEX(Assump!$C$30:$N$30,$A64)*INDEX(Assump!$C$56:$FN$56,($B64-1)*Hrs_in_dy+$C64) -> 0.6404783353 | E64: =INDEX(ePrice!$F65:$K65,P_Off)*EPrice_Fac -> 190.5364888 | F64: 15.55141825 | H64: 15.55141825 | I64: 13.4789883 | J64: 1.744851 | K64: 208.1696031 | L64: 73.07442866 | M64: G | N64: G | O64: G | P64: | | Q64: . | R64: . | S64: .
A65: 1 | B65: 3 | C65: 13 | D65: =INDEX(Assump!$C$30:$N$30,$A65)*INDEX(Assump!$C$56:$FN$56,($B65-1)*Hrs_in_dy+$C65) -> 0.6404783353 | E65: =INDEX(ePrice!$F66:$K66,P_Off)*EPrice_Fac -> 213.2246136 | F65: 15.55141825 | H65: 15.55141825 | I65: 13.4789883 | J65: 1.744851 | K65: 231.0869009 | L65: 73.07442866 | M65: G | N65: G | O65: G | P65: | | Q65: . | R65: . | S65: .
A66: 1 | B66: 3 | C66: 14 | D66: =INDEX(Assump!$C$30:$N$30,$A66)*INDEX(Assump!$C$56:$FN$56,($B66-1)*Hrs_in_dy+$C66) -> 0.6404783353 | E66: =INDEX(ePrice!$F67:$K67,P_Off)*EPrice_Fac -> 289.961893 | F66: 15.55141825 | H66: 15.55141825 | I66: 13.4789883 | J66: 1.744851 | K66: 308.5993043 | L66: 73.07442866 | M66: G | N66: G | O66: G | P66: | | Q66: . | R66: . | S66: .
A67: 1 | B67: 3 | C67: 15 | D67: =INDEX(Assump!$C$30:$N$30,$A67)*INDEX(Assump!$C$56:$FN$56,($B67-1)*Hrs_in_dy+$C67) -> 0.6404783353 | E67: =INDEX(ePrice!$F68:$K68,P_Off)*EPrice_Fac -> 212.7505516 | F67: 15.55141825 | H67: 15.55141825 | I67: 13.4789883 | J67: 1.744851 | K67: 230.6080503 | L67: 73.07442866 | M67: G | N67: G | O67: G | P67: | | Q67: . | R67: . | S67: .
A68: 1 | B68: 3 | C68: 16 | D68: =INDEX(Assump!$C$30:$N$30,$A68)*INDEX(Assump!$C$56:$FN$56,($B68-1)*Hrs_in_dy+$C68) -> 0.6404783353 | E68: =INDEX(ePrice!$F69:$K69,P_Off)*EPrice_Fac -> 207.3839257 | F68: 15.55141825 | H68: 15.55141825 | I68: 13.4789883 | J68: 1.744851 | K68: 225.1872161 | L68: 73.07442866 | M68: G | N68: G | O68: G | P68: | | Q68: . | R68: . | S68: .
A69: 1 | B69: 3 | C69: 17 | D69: =INDEX(Assump!$C$30:$N$30,$A69)*INDEX(Assump!$C$56:$FN$56,($B69-1)*Hrs_in_dy+$C69) -> 0.6404783353 | E69: =INDEX(ePrice!$F70:$K70,P_Off)*EPrice_Fac -> 212.3008004 | F69: 15.55141825 | H69: 15.55141825 | I69: =IF(Other_fuel="Gas", CHOOSE(Gas_price_option,Other_fuel_price_wholesale_flex,Gas_elec_m*$E69+Gas_elec_c), Other_fuel_price_wholesale_flex) -> 13.4789883 | J69: =IF(Other_fuel="Gas",Nwk_Gas_Var,0) -> 1.744851 | K69: 230.1537562 | L69: 73.07442866 | M69: =IF(K69<L69,ID_E,ID_O) -> G | N69: =IF($C69=1,IF(SUM($D69:$D92)=0,".",IF(SUMPRODUCT($K69:$K92,$D69:$D92)<SUMPRODUCT($L69:$L92,$D69:$D92),ID_E,ID_O)),N68) -> G | O69: =IF(SUM($B69:$C69)=2,IF(SUMPRODUCT($K69:$K236,$D69:$D236)<SUMPRODUCT($L69:$L236,$D69:$D236),ID_E,ID_O),O68) -> G | P69: | | Q69: =IF($C69=1,SUMIFS($D69:$D92,M69:M92,ID_O),".") -> . | R69: =IF($C69=1,SUMIFS($D69:$D92,N69:N92,ID_O),".") -> . | S69: =IF($C69=1,SUMIFS($D69:$D92,O69:O92,ID_O),".") -> .
A70: 1 | B70: 3 | C70: 18 | D70: =INDEX(Assump!$C$30:$N$30,$A70)*INDEX(Assump!$C$56:$FN$56,($B70-1)*Hrs_in_dy+$C70) -> 0.6404783353 | E70: =INDEX(ePrice!$F71:$K71,P_Off)*EPrice_Fac -> 196.1401457 | F70: 15.55141825 | H70: =SUM($F70:$G70) -> 15.55141825 | I70: 13.4789883 | J70: 1.744851 | K70: =SUM(E70,H70)/COP_Elec -> 213.8298626 | L70: =SUM(I70:J70)*GJ_MWh/COP_Other -> 73.07442866 | M70: G | N70: G | O70: G | P70: | | Q70: . | R70: . | S70: .
A71: 1 | B71: 3 | C71: 19 | D71: =INDEX(Assump!$C$30:$N$30,$A71)*INDEX(Assump!$C$56:$FN$56,($B71-1)*Hrs_in_dy+$C71) -> 0.6404783353 | E71: =INDEX(ePrice!$F72:$K72,P_Off)*EPrice_Fac -> 181.1768017 | F71: 15.55141825 | H71: 15.55141825 | I71: 13.4789883 | J71: 1.744851 | K71: 198.7153736 | L71: 73.07442866 | M71: G | N71: G | O71: G | P71: | | Q71: . | R71: . | S71: .
A72: 1 | B72: 3 | C72: 20 | D72: =INDEX(Assump!$C$30:$N$30,$A72)*INDEX(Assump!$C$56:$FN$56,($B72-1)*Hrs_in_dy+$C72) -> 0.6404783353 | E72: =INDEX(ePrice!$F73:$K73,P_Off)*EPrice_Fac -> 149.8400828 | F72: 15.55141825 | H72: 15.55141825 | I72: 13.4789883 | J72: 1.744851 | K72: 167.0621223 | L72: 73.07442866 | M72: G | N72: G | O72: G | P72: | | Q72: . | R72: . | S72: .
A73: 1 | B73: 3 | C73: 21 | D73: =INDEX(Assump!$C$30:$N$30,$A73)*INDEX(Assump!$C$56:$FN$56,($B73-1)*Hrs_in_dy+$C73) -> 0.6404783353 | E73: =INDEX(ePrice!$F74:$K74,P_Off)*EPrice_Fac -> 141.9268927 | F73: 15.55141825 | H73: 15.55141825 | I73: 13.4789883 | J73: 1.744851 | K73: 159.069001 | L73: 73.07442866 | M73: G | N73: G | O73: G | P73: | | Q73: . | R73: . | S73: .
A74: 1 | B74: 3 | C74: 22 | D74: =INDEX(Assump!$C$30:$N$30,$A74)*INDEX(Assump!$C$56:$FN$56,($B74-1)*Hrs_in_dy+$C74) -> 0.6404783353 | E74: =INDEX(ePrice!$F75:$K75,P_Off)*EPrice_Fac -> 115.8838671 | F74: 15.55141825 | H74: 15.55141825 | I74: 13.4789883 | J74: 1.744851 | K74: 132.7629145 | L74: 73.07442866 | M74: G | N74: G | O74: G | P74: | | Q74: . | R74: . | S74: .
A75: 1 | B75: 3 | C75: 23 | D75: =INDEX(Assump!$C$30:$N$30,$A75)*INDEX(Assump!$C$56:$FN$56,($B75-1)*Hrs_in_dy+$C75) -> 0.6404783353 | E75: =INDEX(ePrice!$F76:$K76,P_Off)*EPrice_Fac -> 121.7610213 | F75: 15.55141825 | H75: 15.55141825 | I75: 13.4789883 | J75: 1.744851 | K75: 138.6994339 | L75: 73.07442866 | M75: G | N75: G | O75: G | P75: | | Q75: . | R75: . | S75: .
A76: 1 | B76: 3 | C76: 24 | D76: =INDEX(Assump!$C$30:$N$30,$A76)*INDEX(Assump!$C$56:$FN$56,($B76-1)*Hrs_in_dy+$C76) -> 0.6404783353 | E76: =INDEX(ePrice!$F77:$K77,P_Off)*EPrice_Fac -> 146.7708347 | F76: 15.55141825 | H76: 15.55141825 | I76: 13.4789883 | J76: 1.744851 | K76: 163.9618717 | L76: 73.07442866 | M76: G | N76: G | O76: G | P76: | | Q76: . | R76: . | S76: .
A77: 1 | B77: 4 | C77: 1 | D77: =INDEX(Assump!$C$30:$N$30,$A77)*INDEX(Assump!$C$56:$FN$56,($B77-1)*Hrs_in_dy+$C77) -> 0.6404783353 | E77: =INDEX(ePrice!$F78:$K78,P_Off)*EPrice_Fac -> 95.25001126 | F77: 15.55141825 | H77: 15.55141825 | I77: 13.4789883 | J77: 1.744851 | K77: 111.9206359 | L77: 73.07442866 | M77: G | N77: G | O77: G | P77: | | Q77: 15.37148005 | R77: 15.37148005 | S77: 15.37148005
A78: 1 | B78: 4 | C78: 2 | D78: =INDEX(Assump!$C$30:$N$30,$A78)*INDEX(Assump!$C$56:$FN$56,($B78-1)*Hrs_in_dy+$C78) -> 0.6404783353 | E78: =INDEX(ePrice!$F79:$K79,P_Off)*EPrice_Fac -> 112.3527124 | F78: 15.55141825 | H78: 15.55141825 | I78: 13.4789883 | J78: 1.744851 | K78: 129.1960915 | L78: 73.07442866 | M78: G | N78: G | O78: G | P78: | | Q78: . | R78: . | S78: .
A79: 1 | B79: 4 | C79: 3 | D79: =INDEX(Assump!$C$30:$N$30,$A79)*INDEX(Assump!$C$56:$FN$56,($B79-1)*Hrs_in_dy+$C79) -> 0.6404783353 | E79: =INDEX(ePrice!$F80:$K80,P_Off)*EPrice_Fac -> 107.9949879 | F79: 15.55141825 | H79: 15.55141825 | I79: 13.4789883 | J79: 1.744851 | K79: 124.7943496 | L79: 73.07442866 | M79: G | N79: G | O79: G | P79: | | Q79: . | R79: . | S79: .
A80: 1 | B80: 4 | C80: 4 | D80: =INDEX(Assump!$C$30:$N$30,$A80)*INDEX(Assump!$C$56:$FN$56,($B80-1)*Hrs_in_dy+$C80) -> 0.6404783353 | E80: =INDEX(ePrice!$F81:$K81,P_Off)*EPrice_Fac -> 108.3049515 | F80: 15.55141825 | H80: 15.55141825 | I80: 13.4789883 | J80: 1.744851 | K80: 125.1074442 | L80: 73.07442866 | M80: G | N80: G | O80: G | P80: | | Q80: . | R80: . | S80: .
A81: 1 | B81: 4 | C81: 5 | D81: =INDEX(Assump!$C$30:$N$30,$A81)*INDEX(Assump!$C$56:$FN$56,($B81-1)*Hrs_in_dy+$C81) -> 0.6404783353 | E81: =INDEX(ePrice!$F82:$K82,P_Off)*EPrice_Fac -> 117.9989133 | F81: 15.55141825 | H81: 15.55141825 | I81: 13.4789883 | J81: 1.744851 | K81: 134.8993247 | L81: 73.07442866 | M81: G | N81: G | O81: G | P81: | | Q81: . | R81: . | S81: .
A82: 1 | B82: 4 | C82: 6 | D82: =INDEX(Assump!$C$30:$N$30,$A82)*INDEX(Assump!$C$56:$FN$56,($B82-1)*Hrs_in_dy+$C82) -> 0.6404783353 | E82: =INDEX(ePrice!$F83:$K83,P_Off)*EPrice_Fac -> 159.0721379 | F82: 15.55141825 | H82: 15.55141825 | I82: 13.4789883 | J82: 1.744851 | K82: 176.3874304 | L82: 73.07442866 | M82: G | N82: G | O82: G | P82: | | Q82: . | R82: . | S82: .
A83: 1 | B83: 4 | C83: 7 | D83: =INDEX(Assump!$C$30:$N$30,$A83)*INDEX(Assump!$C$56:$FN$56,($B83-1)*Hrs_in_dy+$C83) -> 0.6404783353 | E83: =INDEX(ePrice!$F84:$K84,P_Off)*EPrice_Fac -> 219.6730734 | F83: 15.55141825 | H83: 15.55141825 | I83: 13.4789883 | J83: 1.744851 | K83: 237.6004966 | L83: 73.07442866 | M83: G | N83: G | O83: G | P83: | | Q83: . | R83: . | S83: .
A84: 1 | B84: 4 | C84: 8 | D84: =INDEX(Assump!$C$30:$N$30,$A84)*INDEX(Assump!$C$56:$FN$56,($B84-1)*Hrs_in_dy+$C84) -> 0.6404783353 | E84: =INDEX(ePrice!$F85:$K85,P_Off)*EPrice_Fac -> 225.8845022 | F84: 15.55141825 | H84: 15.55141825 | I84: 13.4789883 | J84: 1.744851 | K84: 243.8746671 | L84: 73.07442866 | M84: G | N84: G | O84: G | P84: | | Q84: . | R84: . | S84: .
A85: 1 | B85: 4 | C85: 9 | D85: =INDEX(Assump!$C$30:$N$30,$A85)*INDEX(Assump!$C$56:$FN$56,($B85-1)*Hrs_in_dy+$C85) -> 0.6404783353 | E85: =INDEX(ePrice!$F86:$K86,P_Off)*EPrice_Fac -> 247.5515702 | F85: 15.55141825 | H85: 15.55141825 | I85: 13.4789883 | J85: 1.744851 | K85: 265.7605944 | L85: 73.07442866 | M85: G | N85: G | O85: G | P85: | | Q85: . | R85: . | S85: .
A86: 1 | B86: 4 | C86: 10 | D86: =INDEX(Assump!$C$30:$N$30,$A86)*INDEX(Assump!$C$56:$FN$56,($B86-1)*Hrs_in_dy+$C86) -> 0.6404783353 | E86: =INDEX(ePrice!$F87:$K87,P_Off)*EPrice_Fac -> 205.2445687 | F86: 15.55141825 | H86: 15.55141825 | I86: 13.4789883 | J86: 1.744851 | K86: 223.0262494 | L86: 73.07442866 | M86: G | N86: G | O86: G | P86: | | Q86: . | R86: . | S86: .
A87: 1 | B87: 4 | C87: 11 | D87: =INDEX(Assump!$C$30:$N$30,$A87)*INDEX(Assump!$C$56:$FN$56,($B87-1)*Hrs_in_dy+$C87) -> 0.6404783353 | E87: =INDEX(ePrice!$F88:$K88,P_Off)*EPrice_Fac -> 206.7092989 | F87: 15.55141825 | H87: 15.55141825 | I87: 13.4789883 | J87: 1.744851 | K87: 224.5057749 | L87: 73.07442866 | M87: G | N87: G | O87: G | P87: | | Q87: . | R87: . | S87: .
A88: 1 | B88: 4 | C88: 12 | D88: =INDEX(Assump!$C$30:$N$30,$A88)*INDEX(Assump!$C$56:$FN$56,($B88-1)*Hrs_in_dy+$C88) -> 0.6404783353 | E88: =INDEX(ePrice!$F89:$K89,P_Off)*EPrice_Fac -> 239.121774 | F88: 15.55141825 | H88: 15.55141825 | I88: 13.4789883 | J88: 1.744851 | K88: 257.2456488 | L88: 73.07442866 | M88: G | N88: G | O88: G | P88: | | Q88: . | R88: . | S88: .
A89: 1 | B89: 4 | C89: 13 | D89: =INDEX(Assump!$C$30:$N$30,$A89)*INDEX(Assump!$C$56:$FN$56,($B89-1)*Hrs_in_dy+$C89) -> 0.6404783353 | E89: =INDEX(ePrice!$F90:$K90,P_Off)*EPrice_Fac -> 305.314211 | F89: 15.55141825 | H89: 15.55141825 | I89: 13.4789883 | J89: 1.744851 | K89: 324.1066962 | L89: 73.07442866 | M89: G | N89: G | O89: G | P89: | | Q89: . | R89: . | S89: .
A90: 1 | B90: 4 | C90: 14 | D90: =INDEX(Assump!$C$30:$N$30,$A90)*INDEX(Assump!$C$56:$FN$56,($B90-1)*Hrs_in_dy+$C90) -> 0.6404783353 | E90: =INDEX(ePrice!$F91:$K91,P_Off)*EPrice_Fac -> 319.609006 | F90: 15.55141825 | H90: 15.55141825 | I90: 13.4789883 | J90: 1.744851 | K90: 338.5458831 | L90: 73.07442866 | M90: G | N90: G | O90: G | P90: | | Q90: . | R90: . | S90: .
A91: 1 | B91: 4 | C91: 15 | D91: =INDEX(Assump!$C$30:$N$30,$A91)*INDEX(Assump!$C$56:$FN$56,($B91-1)*Hrs_in_dy+$C91) -> 0.6404783353 | E91: =INDEX(ePrice!$F92:$K92,P_Off)*EPrice_Fac -> 295.5898607 | F91: 15.55141825 | H91: 15.55141825 | I91: 13.4789883 | J91: 1.744851 | K91: 314.2841202 | L91: 73.07442866 | M91: G | N91: G | O91: G | P91: | | Q91: . | R91: . | S91: .
A92: 1 | B92: 4 | C92: 16 | D92: =INDEX(Assump!$C$30:$N$30,$A92)*INDEX(Assump!$C$56:$FN$56,($B92-1)*Hrs_in_dy+$C92) -> 0.6404783353 | E92: =INDEX(ePrice!$F93:$K93,P_Off)*EPrice_Fac -> 297.8993939 | F92: 15.55141825 | H92: 15.55141825 | I92: 13.4789883 | J92: 1.744851 | K92: 316.616982 | L92: 73.07442866 | M92: G | N92: G | O92: G | P92: | | Q92: . | R92: . | S92: .
A93: 1 | B93: 4 | C93: 17 | D93: =INDEX(Assump!$C$30:$N$30,$A93)*INDEX(Assump!$C$56:$FN$56,($B93-1)*Hrs_in_dy+$C93) -> 0.6404783353 | E93: =INDEX(ePrice!$F94:$K94,P_Off)*EPrice_Fac -> 313.3489555 | F93: 15.55141825 | H93: 15.55141825 | I93: 13.4789883 | J93: 1.744851 | K93: 332.2225997 | L93: 73.07442866 | M93: G | N93: G | O93: G | P93: | | Q93: . | R93: . | S93: .
A94: 1 | B94: 4 | C94: 18 | D94: =INDEX(Assump!$C$30:$N$30,$A94)*INDEX(Assump!$C$56:$FN$56,($B94-1)*Hrs_in_dy+$C94) -> 0.6404783353 | E94: =INDEX(ePrice!$F95:$K95,P_Off)*EPrice_Fac -> 309.4166713 | F94: 15.55141825 | H94: 15.55141825 | I94: 13.4789883 | J94: 1.744851 | K94: 328.2505955 | L94: 73.07442866 | M94: G | N94: G | O94: G | P94: | | Q94: . | R94: . | S94: .
A95: 1 | B95: 4 | C95: 19 | D95: =INDEX(Assump!$C$30:$N$30,$A95)*INDEX(Assump!$C$56:$FN$56,($B95-1)*Hrs_in_dy+$C95) -> 0.6404783353 | E95: =INDEX(ePrice!$F96:$K96,P_Off)*EPrice_Fac -> 314.7711417 | F95: 15.55141825 | H95: 15.55141825 | I95: 13.4789883 | J95: 1.744851 | K95: 333.6591515 | L95: 73.07442866 | M95: G | N95: G | O95: G | P95: | | Q95: . | R95: . | S95: .
A96: 1 | B96: 4 | C96: 20 | D96: =INDEX(Assump!$C$30:$N$30,$A96)*INDEX(Assump!$C$56:$FN$56,($B96-1)*Hrs_in_dy+$C96) -> 0.6404783353 | E96: =INDEX(ePrice!$F97:$K97,P_Off)*EPrice_Fac -> 225.8541136 | F96: 15.55141825 | H96: 15.55141825 | I96: 13.4789883 | J96: 1.744851 | K96: 243.8439716 | L96: 73.07442866 | M96: G | N96: G | O96: G | P96: | | Q96: . | R96: . | S96: .
A97: 1 | B97: 4 | C97: 21 | D97: =INDEX(Assump!$C$30:$N$30,$A97)*INDEX(Assump!$C$56:$FN$56,($B97-1)*Hrs_in_dy+$C97) -> 0.6404783353 | E97: =INDEX(ePrice!$F98:$K98,P_Off)*EPrice_Fac -> 166.3654006 | F97: 15.55141825 | H97: 15.55141825 | I97: 13.4789883 | J97: 1.744851 | K97: 183.7543625 | L97: 73.07442866 | M97: G | N97: G | O97: G | P97: | | Q97: . | R97: . | S97: .
A98: 1 | B98: 4 | C98: 22 | D98: =INDEX(Assump!$C$30:$N$30,$A98)*INDEX(Assump!$C$56:$FN$56,($B98-1)*Hrs_in_dy+$C98) -> 0.6404783353 | E98: =INDEX(ePrice!$F99:$K99,P_Off)*EPrice_Fac -> 168.7600219 | F98: 15.55141825 | H98: 15.55141825 | I98: 13.4789883 | J98: 1.744851 | K98: 186.1731718 | L98: 73.07442866 | M98: G | N98: G | O98: G | P98: | | Q98: . | R98: . | S98: .
A99: 1 | B99: 4 | C99: 23 | D99: =INDEX(Assump!$C$30:$N$30,$A99)*INDEX(Assump!$C$56:$FN$56,($B99-1)*Hrs_in_dy+$C99) -> 0.6404783353 | E99: =INDEX(ePrice!$F100:$K100,P_Off)*EPrice_Fac -> 253.8359316 | F99: 15.55141825 | H99: 15.55141825 | I99: 13.4789883 | J99: 1.744851 | K99: 272.1084342 | L99: 73.07442866 | M99: G | N99: G | O99: G | P99: | | Q99: . | R99: . | S99: .
A100: 1 | B100: 4 | C100: 24 | D100: =INDEX(Assump!$C$30:$N$30,$A100)*INDEX(Assump!$C$56:$FN$56,($B100-1)*Hrs_in_dy+$C100) -> 0.6404783353 | E100: =INDEX(ePrice!$F101:$K101,P_Off)*EPrice_Fac -> 209.9001014 | F100: 15.55141825 | H100: 15.55141825 | I100: 13.4789883 | J100: 1.744851 | K100: 227.7288077 | L100: 73.07442866 | M100: G | N100: G | O100: G | P100: | | Q100: . | R100: . | S100: .
A101: 1 | B101: 5 | C101: 1 | D101: =INDEX(Assump!$C$30:$N$30,$A101)*INDEX(Assump!$C$56:$FN$56,($B101-1)*Hrs_in_dy+$C101) -> 0.6404783353 | E101: =INDEX(ePrice!$F102:$K102,P_Off)*EPrice_Fac -> 130.9322992 | F101: 15.55141825 | H101: 15.55141825 | I101: 13.4789883 | J101: 1.744851 | K101: 147.9633509 | L101: 73.07442866 | M101: G | N101: G | O101: G | P101: | | Q101: 15.37148005 | R101: 15.37148005 | S101: 15.37148005
A102: 1 | B102: 5 | C102: 2 | D102: =INDEX(Assump!$C$30:$N$30,$A102)*INDEX(Assump!$C$56:$FN$56,($B102-1)*Hrs_in_dy+$C102) -> 0.6404783353 | E102: =INDEX(ePrice!$F103:$K103,P_Off)*EPrice_Fac -> 127.4801548 | F102: 15.55141825 | H102: 15.55141825 | I102: 13.4789883 | J102: 1.744851 | K102: 144.4763364 | L102: 73.07442866 | M102: G | N102: G | O102: G | P102: | | Q102: . | R102: . | S102: .
A103: 1 | B103: 5 | C103: 3 | D103: =INDEX(Assump!$C$30:$N$30,$A103)*INDEX(Assump!$C$56:$FN$56,($B103-1)*Hrs_in_dy+$C103) -> 0.6404783353 | E103: =INDEX(ePrice!$F104:$K104,P_Off)*EPrice_Fac -> 134.4695316 | F103: 15.55141825 | H103: 15.55141825 | I103: 13.4789883 | J103: 1.744851 | K103: 151.536313 | L103: 73.07442866 | M103: G | N103: G | O103: G | P103: | | Q103: . | R103: . | S103: .
A104: 1 | B104: 5 | C104: 4 | D104: =INDEX(Assump!$C$30:$N$30,$A104)*INDEX(Assump!$C$56:$FN$56,($B104-1)*Hrs_in_dy+$C104) -> 0.6404783353 | E104: =INDEX(ePrice!$F105:$K105,P_Off)*EPrice_Fac -> 123.0251868 | F104: 15.55141825 | H104: 15.55141825 | I104: 13.4789883 | J104: 1.744851 | K104: 139.9763688 | L104: 73.07442866 | M104: G | N104: G | O104: G | P104: | | Q104: . | R104: . | S104: .
A105: 1 | B105: 5 | C105: 5 | D105: =INDEX(Assump!$C$30:$N$30,$A105)*INDEX(Assump!$C$56:$FN$56,($B105-1)*Hrs_in_dy+$C105) -> 0.6404783353 | E105: =INDEX(ePrice!$F106:$K106,P_Off)*EPrice_Fac -> 121.5179125 | F105: 15.55141825 | H105: 15.55141825 | I105: 13.4789883 | J105: 1.744851 | K105: 138.4538695 | L105: 73.07442866 | M105: G | N105: G | O105: G | P105: | | Q105: . | R105: . | S105: .
A106: 1 | B106: 5 | C106: 6 | D106: =INDEX(Assump!$C$30:$N$30,$A106)*INDEX(Assump!$C$56:$FN$56,($B106-1)*Hrs_in_dy+$C106) -> 0.6404783353 | E106: =INDEX(ePrice!$F107:$K107,P_Off)*EPrice_Fac -> 138.243795 | F106: 15.55141825 | H106: 15.55141825 | I106: 13.4789883 | J106: 1.744851 | K106: 155.3487003 | L106: 73.07442866 | M106: G | N106: G | O106: G | P106: | | Q106: . | R106: . | S106: .
A107: 1 | B107: 5 | C107: 7 | D107: =INDEX(Assump!$C$30:$N$30,$A107)*INDEX(Assump!$C$56:$FN$56,($B107-1)*Hrs_in_dy+$C107) -> 0.6404783353 | E107: =INDEX(ePrice!$F108:$K108,P_Off)*EPrice_Fac -> 210.5808059 | F107: 15.55141825 | H107: 15.55141825 | I107: 13.4789883 | J107: 1.744851 | K107: 228.416388 | L107: 73.07442866 | M107: G | N107: G | O107: G | P107: | | Q107: . | R107: . | S107: .
A108: 1 | B108: 5 | C108: 8 | D108: =INDEX(Assump!$C$30:$N$30,$A108)*INDEX(Assump!$C$56:$FN$56,($B108-1)*Hrs_in_dy+$C108) -> 0.6404783353 | E108: =INDEX(ePrice!$F109:$K109,P_Off)*EPrice_Fac -> 268.0942602 | F108: 15.55141825 | H108: 15.55141825 | I108: 13.4789883 | J108: 1.744851 | K108: 286.5107863 | L108: 73.07442866 | M108: G | N108: G | O108: G | P108: | | Q108: . | R108: . | S108: .
A109: 1 | B109: 5 | C109: 9 | D109: =INDEX(Assump!$C$30:$N$30,$A109)*INDEX(Assump!$C$56:$FN$56,($B109-1)*Hrs_in_dy+$C109) -> 0.6404783353 | E109: =INDEX(ePrice!$F110:$K110,P_Off)*EPrice_Fac -> 292.1741827 | F109: 15.55141825 | H109: 15.55141825 | I109: 13.4789883 | J109: 1.744851 | K109: 310.8339403 | L109: 73.07442866 | M109: G | N109: G | O109: G | P109: | | Q109: . | R109: . | S109: .
A110: 1 | B110: 5 | C110: 10 | D110: =INDEX(Assump!$C$30:$N$30,$A110)*INDEX(Assump!$C$56:$FN$56,($B110-1)*Hrs_in_dy+$C110) -> 0.6404783353 | E110: =INDEX(ePrice!$F111:$K111,P_Off)*EPrice_Fac -> 287.8590022 | F110: 15.55141825 | H110: 15.55141825 | I110: 13.4789883 | J110: 1.744851 | K110: 306.4751722 | L110: 73.07442866 | M110: G | N110: G | O110: G | P110: | | Q110: . | R110: . | S110: .
A111: 1 | B111: 5 | C111: 11 | D111: =INDEX(Assump!$C$30:$N$30,$A111)*INDEX(Assump!$C$56:$FN$56,($B111-1)*Hrs_in_dy+$C111) -> 0.6404783353 | E111: =INDEX(ePrice!$F112:$K112,P_Off)*EPrice_Fac -> 273.0172126 | F111: 15.55141825 | H111: 15.55141825 | I111: 13.4789883 | J111: 1.744851 | K111: 291.4834655 | L111: 73.07442866 | M111: G | N111: G | O111: G | P111: | | Q111: . | R111: . | S111: .
A112: 1 | B112: 5 | C112: 12 | D112: =INDEX(Assump!$C$30:$N$30,$A112)*INDEX(Assump!$C$56:$FN$56,($B112-1)*Hrs_in_dy+$C112) -> 0.6404783353 | E112: =INDEX(ePrice!$F113:$K113,P_Off)*EPrice_Fac -> 244.0933481 | F112: 15.55141825 | H112: 15.55141825 | I112: 13.4789883 | J112: 1.744851 | K112: 262.2674408 | L112: 73.07442866 | M112: G | N112: G | O112: G | P112: | | Q112: . | R112: . | S112: .
A113: 1 | B113: 5 | C113: 13 | D113: =INDEX(Assump!$C$30:$N$30,$A113)*INDEX(Assump!$C$56:$FN$56,($B113-1)*Hrs_in_dy+$C113) -> 0.6404783353 | E113: =INDEX(ePrice!$F114:$K114,P_Off)*EPrice_Fac -> 239.3952714 | F113: 15.55141825 | H113: 15.55141825 | I113: 13.4789883 | J113: 1.744851 | K113: 257.5219087 | L113: 73.07442866 | M113: G | N113: G | O113: G | P113: | | Q113: . | R113: . | S113: .
A114: 1 | B114: 5 | C114: 14 | D114: =INDEX(Assump!$C$30:$N$30,$A114)*INDEX(Assump!$C$56:$FN$56,($B114-1)*Hrs_in_dy+$C114) -> 0.6404783353 | E114: =INDEX(ePrice!$F115:$K115,P_Off)*EPrice_Fac -> 251.4473881 | F114: 15.55141825 | H114: 15.55141825 | I114: 13.4789883 | J114: 1.744851 | K114: 269.6957639 | L114: 73.07442866 | M114: G | N114: G | O114: G | P114: | | Q114: . | R114: . | S114: .
A115: 1 | B115: 5 | C115: 15 | D115: =INDEX(Assump!$C$30:$N$30,$A115)*INDEX(Assump!$C$56:$FN$56,($B115-1)*Hrs_in_dy+$C115) -> 0.6404783353 | E115: =INDEX(ePrice!$F116:$K116,P_Off)*EPrice_Fac -> 258.7284954 | F115: 15.55141825 | H115: 15.55141825 | I115: 13.4789883 | J115: 1.744851 | K115: 277.0504178 | L115: 73.07442866 | M115: G | N115: G | O115: G | P115: | | Q115: . | R115: . | S115: .
A116: 1 | B116: 5 | C116: 16 | D116: =INDEX(Assump!$C$30:$N$30,$A116)*INDEX(Assump!$C$56:$FN$56,($B116-1)*Hrs_in_dy+$C116) -> 0.6404783353 | E116: =INDEX(ePrice!$F117:$K117,P_Off)*EPrice_Fac -> 287.6888261 | F116: 15.55141825 | H116: 15.55141825 | I116: 13.4789883 | J116: 1.744851 | K116: 306.3032771 | L116: 73.07442866 | M116: G | N116: G | O116: G | P116: | | Q116: . | R116: . | S116: .
A117: 1 | B117: 5 | C117: 17 | D117: =INDEX(Assump!$C$30:$N$30,$A117)*INDEX(Assump!$C$56:$FN$56,($B117-1)*Hrs_in_dy+$C117) -> 0.6404783353 | E117: =INDEX(ePrice!$F118:$K118,P_Off)*EPrice_Fac -> 270.4949592 | F117: 15.55141825 | H117: 15.55141825 | I117: 13.4789883 | J117: 1.744851 | K117: 288.9357348 | L117: 73.07442866 | M117: G | N117: G | O117: G | P117: | | Q117: . | R117: . | S117: .
A118: 1 | B118: 5 | C118: 18 | D118: =INDEX(Assump!$C$30:$N$30,$A118)*INDEX(Assump!$C$56:$FN$56,($B118-1)*Hrs_in_dy+$C118) -> 0.6404783353 | E118: =INDEX(ePrice!$F119:$K119,P_Off)*EPrice_Fac -> 249.9705024 | F118: 15.55141825 | H118: 15.55141825 | I118: 13.4789883 | J118: 1.744851 | K118: 268.2039602 | L118: 73.07442866 | M118: G | N118: G | O118: G | P118: | | Q118: . | R118: . | S118: .
A119: 1 | B119: 5 | C119: 19 | D119: =INDEX(Assump!$C$30:$N$30,$A119)*INDEX(Assump!$C$56:$FN$56,($B119-1)*Hrs_in_dy+$C119) -> 0.6404783353 | E119: =INDEX(ePrice!$F120:$K120,P_Off)*EPrice_Fac -> 166.8029964 | F119: 15.55141825 | H119: 15.55141825 | I119: 13.4789883 | J119: 1.744851 | K119: 184.1963784 | L119: 73.07442866 | M119: G | N119: G | O119: G | P119: | | Q119: . | R119: . | S119: .
A120: 1 | B120: 5 | C120: 20 | D120: =INDEX(Assump!$C$30:$N$30,$A120)*INDEX(Assump!$C$56:$FN$56,($B120-1)*Hrs_in_dy+$C120) -> 0.6404783353 | E120: =INDEX(ePrice!$F121:$K121,P_Off)*EPrice_Fac -> 146.6310472 | F120: 15.55141825 | H120: 15.55141825 | I120: 13.4789883 | J120: 1.744851 | K120: 163.8206722 | L120: 73.07442866 | M120: G | N120: G | O120: G | P120: | | Q120: . | R120: . | S120: .
A121: 1 | B121: 5 | C121: 21 | D121: =INDEX(Assump!$C$30:$N$30,$A121)*INDEX(Assump!$C$56:$FN$56,($B121-1)*Hrs_in_dy+$C121) -> 0.6404783353 | E121: =INDEX(ePrice!$F122:$K122,P_Off)*EPrice_Fac -> 137.1376502 | F121: 15.55141825 | H121: 15.55141825 | I121: 13.4789883 | J121: 1.744851 | K121: 154.2313823 | L121: 73.07442866 | M121: G | N121: G | O121: G | P121: | | Q121: . | R121: . | S121: .
A122: 1 | B122: 5 | C122: 22 | D122: =INDEX(Assump!$C$30:$N$30,$A122)*INDEX(Assump!$C$56:$FN$56,($B122-1)*Hrs_in_dy+$C122) -> 0.6404783353 | E122: =INDEX(ePrice!$F123:$K123,P_Off)*EPrice_Fac -> 156.6106617 | F122: 15.55141825 | H122: 15.55141825 | I122: 13.4789883 | J122: 1.744851 | K122: 173.9010908 | L122: 73.07442866 | M122: G | N122: G | O122: G | P122: | | Q122: . | R122: . | S122: .
A123: 1 | B123: 5 | C123: 23 | D123: =INDEX(Assump!$C$30:$N$30,$A123)*INDEX(Assump!$C$56:$FN$56,($B123-1)*Hrs_in_dy+$C123) -> 0.6404783353 | E123: =INDEX(ePrice!$F124:$K124,P_Off)*EPrice_Fac -> 170.5711821 | F123: 15.55141825 | H123: 15.55141825 | I123: 13.4789883 | J123: 1.744851 | K123: 188.0026266 | L123: 73.07442866 | M123: G | N123: G | O123: G | P123: | | Q123: . | R123: . | S123: .
A124: 1 | B124: 5 | C124: 24 | D124: =INDEX(Assump!$C$30:$N$30,$A124)*INDEX(Assump!$C$56:$FN$56,($B124-1)*Hrs_in_dy+$C124) -> 0.6404783353 | E124: =INDEX(ePrice!$F125:$K125,P_Off)*EPrice_Fac -> 240.1306754 | F124: 15.55141825 | H124: 15.55141825 | I124: 13.4789883 | J124: 1.744851 | K124: 258.264741 | L124: 73.07442866 | M124: G | N124: G | O124: G | P124: | | Q124: . | R124: . | S124: .
A125: 1 | B125: 6 | C125: 1 | D125: =INDEX(Assump!$C$30:$N$30,$A125)*INDEX(Assump!$C$56:$FN$56,($B125-1)*Hrs_in_dy+$C125) -> 0.6404783353 | E125: =INDEX(ePrice!$F126:$K126,P_Off)*EPrice_Fac -> 156.6410503 | F125: 15.55141825 | H125: 15.55141825 | I125: 13.4789883 | J125: 1.744851 | K125: 173.9317864 | L125: 73.07442866 | M125: G | N125: G | O125: G | P125: | | Q125: 15.37148005 | R125: 15.37148005 | S125: 15.37148005
A126: 1 | B126: 6 | C126: 2 | D126: =INDEX(Assump!$C$30:$N$30,$A126)*INDEX(Assump!$C$56:$FN$56,($B126-1)*Hrs_in_dy+$C126) -> 0.6404783353 | E126: =INDEX(ePrice!$F127:$K127,P_Off)*EPrice_Fac -> 144.5342342 | F126: 15.55141825 | H126: 15.55141825 | I126: 13.4789883 | J126: 1.744851 | K126: 161.7026792 | L126: 73.07442866 | M126: G | N126: G | O126: G | P126: | | Q126: . | R126: . | S126: .
A127: 1 | B127: 6 | C127: 3 | D127: =INDEX(Assump!$C$30:$N$30,$A127)*INDEX(Assump!$C$56:$FN$56,($B127-1)*Hrs_in_dy+$C127) -> 0.6404783353 | E127: =INDEX(ePrice!$F128:$K128,P_Off)*EPrice_Fac -> 117.9563692 | F127: 15.55141825 | H127: 15.55141825 | I127: 13.4789883 | J127: 1.744851 | K127: 134.856351 | L127: 73.07442866 | M127: G | N127: G | O127: G | P127: | | Q127: . | R127: . | S127: .
A128: 1 | B128: 6 | C128: 4 | D128: =INDEX(Assump!$C$30:$N$30,$A128)*INDEX(Assump!$C$56:$FN$56,($B128-1)*Hrs_in_dy+$C128) -> 0.6404783353 | E128: =INDEX(ePrice!$F129:$K129,P_Off)*EPrice_Fac -> 118.3635764 | F128: 15.55141825 | H128: 15.55141825 | I128: 13.4789883 | J128: 1.744851 | K128: 135.2676713 | L128: 73.07442866 | M128: G | N128: G | O128: G | P128: | | Q128: . | R128: . | S128: .
A129: 1 | B129: 6 | C129: 5 | D129: =INDEX(Assump!$C$30:$N$30,$A129)*INDEX(Assump!$C$56:$FN$56,($B129-1)*Hrs_in_dy+$C129) -> 0.6404783353 | E129: =INDEX(ePrice!$F130:$K130,P_Off)*EPrice_Fac -> 117.2635093 | F129: 15.55141825 | H129: 15.55141825 | I129: 13.4789883 | J129: 1.744851 | K129: 134.1564924 | L129: 73.07442866 | M129: G | N129: G | O129: G | P129: | | Q129: . | R129: . | S129: .
A130: 1 | B130: 6 | C130: 6 | D130: =INDEX(Assump!$C$30:$N$30,$A130)*INDEX(Assump!$C$56:$FN$56,($B130-1)*Hrs_in_dy+$C130) -> 0.6404783353 | E130: =INDEX(ePrice!$F131:$K131,P_Off)*EPrice_Fac -> 119.281312 | F130: 15.55141825 | H130: 15.55141825 | I130: 13.4789883 | J130: 1.744851 | K130: 136.194677 | L130: 73.07442866 | M130: G | N130: G | O130: G | P130: | | Q130: . | R130: . | S130: .
A131: 1 | B131: 6 | C131: 7 | D131: =INDEX(Assump!$C$30:$N$30,$A131)*INDEX(Assump!$C$56:$FN$56,($B131-1)*Hrs_in_dy+$C131) -> 0.6404783353 | E131: =INDEX(ePrice!$F132:$K132,P_Off)*EPrice_Fac -> 115.7197687 | F131: 15.55141825 | H131: 15.55141825 | I131: 13.4789883 | J131: 1.744851 | K131: 132.5971585 | L131: 73.07442866 | M131: G | N131: G | O131: G | P131: | | Q131: . | R131: . | S131: .
A132: 1 | B132: 6 | C132: 8 | D132: =INDEX(Assump!$C$30:$N$30,$A132)*INDEX(Assump!$C$56:$FN$56,($B132-1)*Hrs_in_dy+$C132) -> 0.6404783353 | E132: =INDEX(ePrice!$F133:$K133,P_Off)*EPrice_Fac -> 120.8858298 | F132: 15.55141825 | H132: 15.55141825 | I132: 13.4789883 | J132: 1.744851 | K132: 137.815402 | L132: 73.07442866 | M132: G | N132: G | O132: G | P132: | | Q132: . | R132: . | S132: .
A133: 1 | B133: 6 | C133: 9 | D133: =INDEX(Assump!$C$30:$N$30,$A133)*INDEX(Assump!$C$56:$FN$56,($B133-1)*Hrs_in_dy+$C133) -> 0.6404783353 | E133: =INDEX(ePrice!$F134:$K134,P_Off)*EPrice_Fac -> 141.878271 | F133: 15.55141825 | H133: 15.55141825 | I133: =IF(Other_fuel="Gas", CHOOSE(Gas_price_option,Other_fuel_price_wholesale_flex,Gas_elec_m*$E133+Gas_elec_c), Other_fuel_price_wholesale_flex) -> 13.4789883 | J133: =IF(Other_fuel="Gas",Nwk_Gas_Var,0) -> 1.744851 | K133: 159.0198881 | L133: 73.07442866 | M133: =IF(K133<L133,ID_E,ID_O) -> G | N133: =IF($C133=1,IF(SUM($D133:$D156)=0,".",IF(SUMPRODUCT($K133:$K156,$D133:$D156)<SUMPRODUCT($L133:$L156,$D133:$D156),ID_E,ID_O)),N132) -> G | O133: =IF(SUM($B133:$C133)=2,IF(SUMPRODUCT($K133:$K300,$D133:$D300)<SUMPRODUCT($L133:$L300,$D133:$D300),ID_E,ID_O),O132) -> G | P133: | | Q133: =IF($C133=1,SUMIFS($D133:$D156,M133:M156,ID_O),".") -> . | R133: =IF($C133=1,SUMIFS($D133:$D156,N133:N156,ID_O),".") -> . | S133: =IF($C133=1,SUMIFS($D133:$D156,O133:O156,ID_O),".") -> .
A134: 1 | B134: 6 | C134: 10 | D134: =INDEX(Assump!$C$30:$N$30,$A134)*INDEX(Assump!$C$56:$FN$56,($B134-1)*Hrs_in_dy+$C134) -> 0.6404783353 | E134: =INDEX(ePrice!$F135:$K135,P_Off)*EPrice_Fac -> 175.0565387 | F134: 15.55141825 | H134: =SUM($F134:$G134) -> 15.55141825 | I134: 13.4789883 | J134: 1.744851 | K134: =SUM(E134,H134)/COP_Elec -> 192.5332898 | L134: =SUM(I134:J134)*GJ_MWh/COP_Other -> 73.07442866 | M134: G | N134: G | O134: G | P134: | | Q134: . | R134: . | S134: .
A135: 1 | B135: 6 | C135: 11 | D135: =INDEX(Assump!$C$30:$N$30,$A135)*INDEX(Assump!$C$56:$FN$56,($B135-1)*Hrs_in_dy+$C135) -> 0.6404783353 | E135: =INDEX(ePrice!$F136:$K136,P_Off)*EPrice_Fac -> 160.8711427 | F135: 15.55141825 | H135: 15.55141825 | I135: 13.4789883 | J135: 1.744851 | K135: 178.204607 | L135: 73.07442866 | M135: G | N135: G | O135: G | P135: | | Q135: . | R135: . | S135: .
A136: 1 | B136: 6 | C136: 12 | D136: =INDEX(Assump!$C$30:$N$30,$A136)*INDEX(Assump!$C$56:$FN$56,($B136-1)*Hrs_in_dy+$C136) -> 0.6404783353 | E136: =INDEX(ePrice!$F137:$K137,P_Off)*EPrice_Fac -> 134.244656 | F136: 15.55141825 | H136: 15.55141825 | I136: 13.4789883 | J136: 1.744851 | K136: 151.3091659 | L136: 73.07442866 | M136: G | N136: G | O136: G | P136: | | Q136: . | R136: . | S136: .
A137: 1 | B137: 6 | C137: 13 | D137: =INDEX(Assump!$C$30:$N$30,$A137)*INDEX(Assump!$C$56:$FN$56,($B137-1)*Hrs_in_dy+$C137) -> 0.6404783353 | E137: =INDEX(ePrice!$F138:$K138,P_Off)*EPrice_Fac -> 112.2919352 | F137: 15.55141825 | H137: 15.55141825 | I137: 13.4789883 | J137: 1.744851 | K137: 129.1347004 | L137: 73.07442866 | M137: G | N137: G | O137: G | P137: | | Q137: . | R137: . | S137: .
A138: 1 | B138: 6 | C138: 14 | D138: =INDEX(Assump!$C$30:$N$30,$A138)*INDEX(Assump!$C$56:$FN$56,($B138-1)*Hrs_in_dy+$C138) -> 0.6404783353 | E138: =INDEX(ePrice!$F139:$K139,P_Off)*EPrice_Fac -> 120.5576329 | F138: 15.55141825 | H138: 15.55141825 | I138: 13.4789883 | J138: 1.744851 | K138: 137.4838901 | L138: 73.07442866 | M138: G | N138: G | O138: G | P138: | | Q138: . | R138: . | S138: .
A139: 1 | B139: 6 | C139: 15 | D139: =INDEX(Assump!$C$30:$N$30,$A139)*INDEX(Assump!$C$56:$FN$56,($B139-1)*Hrs_in_dy+$C139) -> 0.6404783353 | E139: =INDEX(ePrice!$F140:$K140,P_Off)*EPrice_Fac -> 124.5871606 | F139: 15.55141825 | H139: 15.55141825 | I139: 13.4789883 | J139: 1.744851 | K139: 141.55412 | L139: 73.07442866 | M139: G | N139: G | O139: G | P139: | | Q139: . | R139: . | S139: .
A140: 1 | B140: 6 | C140: 16 | D140: =INDEX(Assump!$C$30:$N$30,$A140)*INDEX(Assump!$C$56:$FN$56,($B140-1)*Hrs_in_dy+$C140) -> 0.6404783353 | E140: =INDEX(ePrice!$F141:$K141,P_Off)*EPrice_Fac -> 127.8934397 | F140: 15.55141825 | H140: 15.55141825 | I140: 13.4789883 | J140: 1.744851 | K140: 144.8937959 | L140: 73.07442866 | M140: G | N140: G | O140: G | P140: | | Q140: . | R140: . | S140: .
A141: 1 | B141: 6 | C141: 17 | D141: =INDEX(Assump!$C$30:$N$30,$A141)*INDEX(Assump!$C$56:$FN$56,($B141-1)*Hrs_in_dy+$C141) -> 0.6404783353 | E141: =INDEX(ePrice!$F142:$K142,P_Off)*EPrice_Fac -> 138.2620282 | F141: 15.55141825 | H141: 15.55141825 | I141: 13.4789883 | J141: 1.744851 | K141: 155.3671176 | L141: 73.07442866 | M141: G | N141: G | O141: G | P141: | | Q141: . | R141: . | S141: .
A142: 1 | B142: 6 | C142: 18 | D142: =INDEX(Assump!$C$30:$N$30,$A142)*INDEX(Assump!$C$56:$FN$56,($B142-1)*Hrs_in_dy+$C142) -> 0.6404783353 | E142: =INDEX(ePrice!$F143:$K143,P_Off)*EPrice_Fac -> 151.4871446 | F142: 15.55141825 | H142: 15.55141825 | I142: 13.4789883 | J142: 1.744851 | K142: 168.7258211 | L142: 73.07442866 | M142: G | N142: G | O142: G | P142: | | Q142: . | R142: . | S142: .
A143: 1 | B143: 6 | C143: 19 | D143: =INDEX(Assump!$C$30:$N$30,$A143)*INDEX(Assump!$C$56:$FN$56,($B143-1)*Hrs_in_dy+$C143) -> 0.6404783353 | E143: =INDEX(ePrice!$F144:$K144,P_Off)*EPrice_Fac -> 138.049308 | F143: 15.55141825 | H143: 15.55141825 | I143: 13.4789883 | J143: 1.744851 | K143: 155.1522488 | L143: 73.07442866 | M143: G | N143: G | O143: G | P143: | | Q143: . | R143: . | S143: .
A144: 1 | B144: 6 | C144: 20 | D144: =INDEX(Assump!$C$30:$N$30,$A144)*INDEX(Assump!$C$56:$FN$56,($B144-1)*Hrs_in_dy+$C144) -> 0.6404783353 | E144: =INDEX(ePrice!$F145:$K145,P_Off)*EPrice_Fac -> 113.7688209 | F144: 15.55141825 | H144: 15.55141825 | I144: 13.4789883 | J144: 1.744851 | K144: 130.6265042 | L144: 73.07442866 | M144: G | N144: G | O144: G | P144: | | Q144: . | R144: . | S144: .
A145: 1 | B145: 6 | C145: 21 | D145: =INDEX(Assump!$C$30:$N$30,$A145)*INDEX(Assump!$C$56:$FN$56,($B145-1)*Hrs_in_dy+$C145) -> 0.6404783353 | E145: =INDEX(ePrice!$F146:$K146,P_Off)*EPrice_Fac -> 138.6449245 | F145: 15.55141825 | H145: 15.55141825 | I145: 13.4789883 | J145: 1.744851 | K145: 155.7538816 | L145: 73.07442866 | M145: G | N145: G | O145: G | P145: | | Q145: . | R145: . | S145: .
A146: 1 | B146: 6 | C146: 22 | D146: =INDEX(Assump!$C$30:$N$30,$A146)*INDEX(Assump!$C$56:$FN$56,($B146-1)*Hrs_in_dy+$C146) -> 0.6404783353 | E146: =INDEX(ePrice!$F147:$K147,P_Off)*EPrice_Fac -> 167.3439133 | F146: 15.55141825 | H146: 15.55141825 | I146: 13.4789883 | J146: 1.744851 | K146: 184.7427592 | L146: 73.07442866 | M146: G | N146: G | O146: G | P146: | | Q146: . | R146: . | S146: .
A147: 1 | B147: 6 | C147: 23 | D147: =INDEX(Assump!$C$30:$N$30,$A147)*INDEX(Assump!$C$56:$FN$56,($B147-1)*Hrs_in_dy+$C147) -> 0.6404783353 | E147: =INDEX(ePrice!$F148:$K148,P_Off)*EPrice_Fac -> 107.9767547 | F147: 15.55141825 | H147: 15.55141825 | I147: 13.4789883 | J147: 1.744851 | K147: 124.7759323 | L147: 73.07442866 | M147: G | N147: G | O147: G | P147: | | Q147: . | R147: . | S147: .
A148: 1 | B148: 6 | C148: 24 | D148: =INDEX(Assump!$C$30:$N$30,$A148)*INDEX(Assump!$C$56:$FN$56,($B148-1)*Hrs_in_dy+$C148) -> 0.6404783353 | E148: =INDEX(ePrice!$F149:$K149,P_Off)*EPrice_Fac -> 93.13496506 | F148: 15.55141825 | H148: 15.55141825 | I148: 13.4789883 | J148: 1.744851 | K148: 109.7842256 | L148: 73.07442866 | M148: G | N148: G | O148: G | P148: | | Q148: . | R148: . | S148: .
A149: 1 | B149: 7 | C149: 1 | D149: =INDEX(Assump!$C$30:$N$30,$A149)*INDEX(Assump!$C$56:$FN$56,($B149-1)*Hrs_in_dy+$C149) -> 0.6404783353 | E149: =INDEX(ePrice!$F150:$K150,P_Off)*EPrice_Fac -> 88.52805411 | F149: 15.55141825 | H149: 15.55141825 | I149: 13.4789883 | J149: 1.744851 | K149: 105.1307802 | L149: 73.07442866 | M149: G | N149: G | O149: G | P149: | | Q149: 15.37148005 | R149: 15.37148005 | S149: 15.37148005
A150: 1 | B150: 7 | C150: 2 | D150: =INDEX(Assump!$C$30:$N$30,$A150)*INDEX(Assump!$C$56:$FN$56,($B150-1)*Hrs_in_dy+$C150) -> 0.6404783353 | E150: =INDEX(ePrice!$F151:$K151,P_Off)*EPrice_Fac -> 100.5680153 | F150: 15.55141825 | H150: 15.55141825 | I150: 13.4789883 | J150: 1.744851 | K150: 117.2923571 | L150: 73.07442866 | M150: G | N150: G | O150: G | P150: | | Q150: . | R150: . | S150: .
A151: 1 | B151: 7 | C151: 3 | D151: =INDEX(Assump!$C$30:$N$30,$A151)*INDEX(Assump!$C$56:$FN$56,($B151-1)*Hrs_in_dy+$C151) -> 0.6404783353 | E151: =INDEX(ePrice!$F152:$K152,P_Off)*EPrice_Fac -> 101.3520411 | F151: 15.55141825 | H151: 15.55141825 | I151: 13.4789883 | J151: 1.744851 | K151: 118.0843023 | L151: 73.07442866 | M151: G | N151: G | O151: G | P151: | | Q151: . | R151: . | S151: .
A152: 1 | B152: 7 | C152: 4 | D152: =INDEX(Assump!$C$30:$N$30,$A152)*INDEX(Assump!$C$56:$FN$56,($B152-1)*Hrs_in_dy+$C152) -> 0.6404783353 | E152: =INDEX(ePrice!$F153:$K153,P_Off)*EPrice_Fac -> 101.2061758 | F152: 15.55141825 | H152: 15.55141825 | I152: 13.4789883 | J152: 1.744851 | K152: 117.9369637 | L152: 73.07442866 | M152: G | N152: G | O152: G | P152: | | Q152: . | R152: . | S152: .
A153: 1 | B153: 7 | C153: 5 | D153: =INDEX(Assump!$C$30:$N$30,$A153)*INDEX(Assump!$C$56:$FN$56,($B153-1)*Hrs_in_dy+$C153) -> 0.6404783353 | E153: =INDEX(ePrice!$F154:$K154,P_Off)*EPrice_Fac -> 85.00297712 | F153: 15.55141825 | H153: 15.55141825 | I153: 13.4789883 | J153: 1.744851 | K153: 101.5700963 | L153: 73.07442866 | M153: G | N153: G | O153: G | P153: | | Q153: . | R153: . | S153: .
A154: 1 | B154: 7 | C154: 6 | D154: =INDEX(Assump!$C$30:$N$30,$A154)*INDEX(Assump!$C$56:$FN$56,($B154-1)*Hrs_in_dy+$C154) -> 0.6404783353 | E154: =INDEX(ePrice!$F155:$K155,P_Off)*EPrice_Fac -> 91.60337989 | F154: 15.55141825 | H154: 15.55141825 | I154: 13.4789883 | J154: 1.744851 | K154: 108.2371698 | L154: 73.07442866 | M154: G | N154: G | O154: G | P154: | | Q154: . | R154: . | S154: .
A155: 1 | B155: 7 | C155: 7 | D155: =INDEX(Assump!$C$30:$N$30,$A155)*INDEX(Assump!$C$56:$FN$56,($B155-1)*Hrs_in_dy+$C155) -> 0.6404783353 | E155: =INDEX(ePrice!$F156:$K156,P_Off)*EPrice_Fac -> 106.1777499 | F155: 15.55141825 | H155: 15.55141825 | I155: 13.4789883 | J155: 1.744851 | K155: 122.9587557 | L155: 73.07442866 | M155: G | N155: G | O155: G | P155: | | Q155: . | R155: . | S155: .
A156: 1 | B156: 7 | C156: 8 | D156: =INDEX(Assump!$C$30:$N$30,$A156)*INDEX(Assump!$C$56:$FN$56,($B156-1)*Hrs_in_dy+$C156) -> 0.6404783353 | E156: =INDEX(ePrice!$F157:$K157,P_Off)*EPrice_Fac -> 106.0987396 | F156: 15.55141825 | H156: 15.55141825 | I156: 13.4789883 | J156: 1.744851 | K156: 122.8789473 | L156: 73.07442866 | M156: G | N156: G | O156: G | P156: | | Q156: . | R156: . | S156: .
A157: 1 | B157: 7 | C157: 9 | D157: =INDEX(Assump!$C$30:$N$30,$A157)*INDEX(Assump!$C$56:$FN$56,($B157-1)*Hrs_in_dy+$C157) -> 0.6404783353 | E157: =INDEX(ePrice!$F158:$K158,P_Off)*EPrice_Fac -> 123.5114043 | F157: 15.55141825 | H157: 15.55141825 | I157: 13.4789883 | J157: 1.744851 | K157: 140.4674976 | L157: 73.07442866 | M157: G | N157: G | O157: G | P157: | | Q157: . | R157: . | S157: .
A158: 1 | B158: 7 | C158: 10 | D158: =INDEX(Assump!$C$30:$N$30,$A158)*INDEX(Assump!$C$56:$FN$56,($B158-1)*Hrs_in_dy+$C158) -> 0.6404783353 | E158: =INDEX(ePrice!$F159:$K159,P_Off)*EPrice_Fac -> 124.404829 | F158: 15.55141825 | H158: 15.55141825 | I158: 13.4789883 | J158: 1.744851 | K158: 141.3699467 | L158: 73.07442866 | M158: G | N158: G | O158: G | P158: | | Q158: . | R158: . | S158: .
A159: 1 | B159: 7 | C159: 11 | D159: =INDEX(Assump!$C$30:$N$30,$A159)*INDEX(Assump!$C$56:$FN$56,($B159-1)*Hrs_in_dy+$C159) -> 0.6404783353 | E159: =INDEX(ePrice!$F160:$K160,P_Off)*EPrice_Fac -> 122.8610884 | F159: 15.55141825 | H159: 15.55141825 | I159: 13.4789883 | J159: 1.744851 | K159: 139.8106128 | L159: 73.07442866 | M159: G | N159: G | O159: G | P159: | | Q159: . | R159: . | S159: .
A160: 1 | B160: 7 | C160: 12 | D160: =INDEX(Assump!$C$30:$N$30,$A160)*INDEX(Assump!$C$56:$FN$56,($B160-1)*Hrs_in_dy+$C160) -> 0.6404783353 | E160: =INDEX(ePrice!$F161:$K161,P_Off)*EPrice_Fac -> 129.1758384 | F160: 15.55141825 | H160: 15.55141825 | I160: 13.4789883 | J160: 1.744851 | K160: 146.1891481 | L160: 73.07442866 | M160: G | N160: G | O160: G | P160: | | Q160: . | R160: . | S160: .
A161: 1 | B161: 7 | C161: 13 | D161: =INDEX(Assump!$C$30:$N$30,$A161)*INDEX(Assump!$C$56:$FN$56,($B161-1)*Hrs_in_dy+$C161) -> 0.6404783353 | E161: =INDEX(ePrice!$F162:$K162,P_Off)*EPrice_Fac -> 129.6802891 | F161: 15.55141825 | H161: 15.55141825 | I161: 13.4789883 | J161: 1.744851 | K161: 146.6986942 | L161: 73.07442866 | M161: G | N161: G | O161: G | P161: | | Q161: . | R161: . | S161: .
A162: 1 | B162: 7 | C162: 14 | D162: =INDEX(Assump!$C$30:$N$30,$A162)*INDEX(Assump!$C$56:$FN$56,($B162-1)*Hrs_in_dy+$C162) -> 0.6404783353 | E162: =INDEX(ePrice!$F163:$K163,P_Off)*EPrice_Fac -> 120.1382703 | F162: 15.55141825 | H162: 15.55141825 | I162: 13.4789883 | J162: 1.744851 | K162: 137.0602915 | L162: 73.07442866 | M162: G | N162: G | O162: G | P162: | | Q162: . | R162: . | S162: .
A163: 1 | B163: 7 | C163: 15 | D163: =INDEX(Assump!$C$30:$N$30,$A163)*INDEX(Assump!$C$56:$FN$56,($B163-1)*Hrs_in_dy+$C163) -> 0.6404783353 | E163: =INDEX(ePrice!$F164:$K164,P_Off)*EPrice_Fac -> 137.9763754 | F163: 15.55141825 | H163: 15.55141825 | I163: 13.4789883 | J163: 1.744851 | K163: 155.0785795 | L163: 73.07442866 | M163: G | N163: G | O163: G | P163: | | Q163: . | R163: . | S163: .
A164: 1 | B164: 7 | C164: 16 | D164: =INDEX(Assump!$C$30:$N$30,$A164)*INDEX(Assump!$C$56:$FN$56,($B164-1)*Hrs_in_dy+$C164) -> 0.6404783353 | E164: =INDEX(ePrice!$F165:$K165,P_Off)*EPrice_Fac -> 137.3017486 | F164: 15.55141825 | H164: 15.55141825 | I164: 13.4789883 | J164: 1.744851 | K164: 154.3971382 | L164: 73.07442866 | M164: G | N164: G | O164: G | P164: | | Q164: . | R164: . | S164: .
A165: 1 | B165: 7 | C165: 17 | D165: =INDEX(Assump!$C$30:$N$30,$A165)*INDEX(Assump!$C$56:$FN$56,($B165-1)*Hrs_in_dy+$C165) -> 0.6404783353 | E165: =INDEX(ePrice!$F166:$K166,P_Off)*EPrice_Fac -> 134.5059979 | F165: 15.55141825 | H165: 15.55141825 | I165: 13.4789883 | J165: 1.744851 | K165: 151.5731476 | L165: 73.07442866 | M165: G | N165: G | O165: G | P165: | | Q165: . | R165: . | S165: .
A166: 1 | B166: 7 | C166: 18 | D166: =INDEX(Assump!$C$30:$N$30,$A166)*INDEX(Assump!$C$56:$FN$56,($B166-1)*Hrs_in_dy+$C166) -> 0.6404783353 | E166: =INDEX(ePrice!$F167:$K167,P_Off)*EPrice_Fac -> 152.8910977 | F166: 15.55141825 | H166: 15.55141825 | I166: 13.4789883 | J166: 1.744851 | K166: 170.1439555 | L166: 73.07442866 | M166: G | N166: G | O166: G | P166: | | Q166: . | R166: . | S166: .
A167: 1 | B167: 7 | C167: 19 | D167: =INDEX(Assump!$C$30:$N$30,$A167)*INDEX(Assump!$C$56:$FN$56,($B167-1)*Hrs_in_dy+$C167) -> 0.6404783353 | E167: =INDEX(ePrice!$F168:$K168,P_Off)*EPrice_Fac -> 155.5713718 | F167: 15.55141825 | H167: 15.55141825 | I167: 13.4789883 | J167: 1.744851 | K167: 172.851303 | L167: 73.07442866 | M167: G | N167: G | O167: G | P167: | | Q167: . | R167: . | S167: .
A168: 1 | B168: 7 | C168: 20 | D168: =INDEX(Assump!$C$30:$N$30,$A168)*INDEX(Assump!$C$56:$FN$56,($B168-1)*Hrs_in_dy+$C168) -> 0.6404783353 | E168: =INDEX(ePrice!$F169:$K169,P_Off)*EPrice_Fac -> 154.8785118 | F168: 15.55141825 | H168: 15.55141825 | I168: 13.4789883 | J168: 1.744851 | K168: 172.1514445 | L168: 73.07442866 | M168: G | N168: G | O168: G | P168: | | Q168: . | R168: . | S168: .
A169: 1 | B169: 7 | C169: 21 | D169: =INDEX(Assump!$C$30:$N$30,$A169)*INDEX(Assump!$C$56:$FN$56,($B169-1)*Hrs_in_dy+$C169) -> 0.6404783353 | E169: =INDEX(ePrice!$F170:$K170,P_Off)*EPrice_Fac -> 146.1144411 | F169: 15.55141825 | H169: 15.55141825 | I169: 13.4789883 | J169: 1.744851 | K169: 163.2988478 | L169: 73.07442866 | M169: G | N169: G | O169: G | P169: | | Q169: . | R169: . | S169: .
A170: 1 | B170: 7 | C170: 22 | D170: =INDEX(Assump!$C$30:$N$30,$A170)*INDEX(Assump!$C$56:$FN$56,($B170-1)*Hrs_in_dy+$C170) -> 0.6404783353 | E170: =INDEX(ePrice!$F171:$K171,P_Off)*EPrice_Fac -> 151.7120202 | F170: 15.55141825 | H170: 15.55141825 | I170: 13.4789883 | J170: 1.744851 | K170: 168.9529682 | L170: 73.07442866 | M170: G | N170: G | O170: G | P170: | | Q170: . | R170: . | S170: .
A171: 1 | B171: 7 | C171: 23 | D171: =INDEX(Assump!$C$30:$N$30,$A171)*INDEX(Assump!$C$56:$FN$56,($B171-1)*Hrs_in_dy+$C171) -> 0.6404783353 | E171: =INDEX(ePrice!$F172:$K172,P_Off)*EPrice_Fac -> 145.9685758 | F171: 15.55141825 | H171: 15.55141825 | I171: 13.4789883 | J171: 1.744851 | K171: 163.1515092 | L171: 73.07442866 | M171: G | N171: G | O171: G | P171: | | Q171: . | R171: . | S171: .
A172: 1 | B172: 7 | C172: 24 | D172: =INDEX(Assump!$C$30:$N$30,$A172)*INDEX(Assump!$C$56:$FN$56,($B172-1)*Hrs_in_dy+$C172) -> 0.6404783353 | E172: =INDEX(ePrice!$F173:$K173,P_Off)*EPrice_Fac -> 138.9427327 | F172: 15.55141825 | H172: 15.55141825 | I172: 13.4789883 | J172: 1.744851 | K172: 156.054698 | L172: 73.07442866 | M172: G | N172: G | O172: G | P172: | | Q172: . | R172: . | S172: .
A173: 1 | B173: 1 | C173: 1 | D173: =INDEX(Assump!$C$30:$N$30,$A173)*INDEX(Assump!$C$56:$FN$56,($B173-1)*Hrs_in_dy+$C173) -> 0.6404783353 | E173: =INDEX(ePrice!$F174:$K174,P_Off)*EPrice_Fac -> 106.1756796 | F173: 15.55141825 | H173: 15.55141825 | I173: 13.4789883 | J173: 1.744851 | K173: 122.9566645 | L173: 73.07442866 | M173: G | N173: G | O173: G | P173: | | Q173: 15.37148005 | R173: 15.37148005 | S173: 15.37148005
A174: 1 | B174: 1 | C174: 2 | D174: =INDEX(Assump!$C$30:$N$30,$A174)*INDEX(Assump!$C$56:$FN$56,($B174-1)*Hrs_in_dy+$C174) -> 0.6404783353 | E174: =INDEX(ePrice!$F175:$K175,P_Off)*EPrice_Fac -> 109.1835771 | F174: 15.55141825 | H174: 15.55141825 | I174: 13.4789883 | J174: 1.744851 | K174: 125.9949448 | L174: 73.07442866 | M174: G | N174: G | O174: G | P174: | | Q174: . | R174: . | S174: .
A175: 1 | B175: 1 | C175: 3 | D175: =INDEX(Assump!$C$30:$N$30,$A175)*INDEX(Assump!$C$56:$FN$56,($B175-1)*Hrs_in_dy+$C175) -> 0.6404783353 | E175: =INDEX(ePrice!$F176:$K176,P_Off)*EPrice_Fac -> 104.4856754 | F175: 15.55141825 | H175: 15.55141825 | I175: 13.4789883 | J175: 1.744851 | K175: 121.2495895 | L175: 73.07442866 | M175: G | N175: G | O175: G | P175: | | Q175: . | R175: . | S175: .
A176: 1 | B176: 1 | C176: 4 | D176: =INDEX(Assump!$C$30:$N$30,$A176)*INDEX(Assump!$C$56:$FN$56,($B176-1)*Hrs_in_dy+$C176) -> 0.6404783353 | E176: =INDEX(ePrice!$F177:$K177,P_Off)*EPrice_Fac -> 122.4477847 | F176: 15.55141825 | H176: 15.55141825 | I176: 13.4789883 | J176: 1.744851 | K176: 139.3931343 | L176: 73.07442866 | M176: G | N176: G | O176: G | P176: | | Q176: . | R176: . | S176: .
A177: 1 | B177: 1 | C177: 5 | D177: =INDEX(Assump!$C$30:$N$30,$A177)*INDEX(Assump!$C$56:$FN$56,($B177-1)*Hrs_in_dy+$C177) -> 0.6404783353 | E177: =INDEX(ePrice!$F178:$K178,P_Off)*EPrice_Fac -> 124.3703584 | F177: 15.55141825 | H177: 15.55141825 | I177: 13.4789883 | J177: 1.744851 | K177: 141.3351279 | L177: 73.07442866 | M177: G | N177: G | O177: G | P177: | | Q177: . | R177: . | S177: .
A178: 1 | B178: 1 | C178: 6 | D178: =INDEX(Assump!$C$30:$N$30,$A178)*INDEX(Assump!$C$56:$FN$56,($B178-1)*Hrs_in_dy+$C178) -> 0.6404783353 | E178: =INDEX(ePrice!$F179:$K179,P_Off)*EPrice_Fac -> 117.4010289 | F178: 15.55141825 | H178: 15.55141825 | I178: 13.4789883 | J178: 1.744851 | K178: 134.2954012 | L178: 73.07442866 | M178: G | N178: G | O178: G | P178: | | Q178: . | R178: . | S178: .
A179: 1 | B179: 1 | C179: 7 | D179: =INDEX(Assump!$C$30:$N$30,$A179)*INDEX(Assump!$C$56:$FN$56,($B179-1)*Hrs_in_dy+$C179) -> 0.6404783353 | E179: =INDEX(ePrice!$F180:$K180,P_Off)*EPrice_Fac -> 125.5952238 | F179: 15.55141825 | H179: 15.55141825 | I179: 13.4789883 | J179: 1.744851 | K179: 142.5723657 | L179: 73.07442866 | M179: G | N179: G | O179: G | P179: | | Q179: . | R179: . | S179: .
A180: 1 | B180: 1 | C180: 8 | D180: =INDEX(Assump!$C$30:$N$30,$A180)*INDEX(Assump!$C$56:$FN$56,($B180-1)*Hrs_in_dy+$C180) -> 0.6404783353 | E180: =INDEX(ePrice!$F181:$K181,P_Off)*EPrice_Fac -> 129.6729405 | F180: 15.55141825 | H180: 15.55141825 | I180: 13.4789883 | J180: 1.744851 | K180: 146.6912715 | L180: 73.07442866 | M180: G | N180: G | O180: G | P180: | | Q180: . | R180: . | S180: .
A181: 1 | B181: 1 | C181: 9 | D181: =INDEX(Assump!$C$30:$N$30,$A181)*INDEX(Assump!$C$56:$FN$56,($B181-1)*Hrs_in_dy+$C181) -> 0.6404783353 | E181: =INDEX(ePrice!$F182:$K182,P_Off)*EPrice_Fac -> 147.2319296 | F181: 15.55141825 | H181: 15.55141825 | I181: 13.4789883 | J181: 1.744851 | K181: 164.4276241 | L181: 73.07442866 | M181: G | N181: G | O181: G | P181: | | Q181: . | R181: . | S181: .
A182: 1 | B182: 1 | C182: 10 | D182: =INDEX(Assump!$C$30:$N$30,$A182)*INDEX(Assump!$C$56:$FN$56,($B182-1)*Hrs_in_dy+$C182) -> 0.6404783353 | E182: =INDEX(ePrice!$F183:$K183,P_Off)*EPrice_Fac -> 174.1402082 | F182: 15.55141825 | H182: 15.55141825 | I182: 13.4789883 | J182: 1.744851 | K182: 191.6077035 | L182: 73.07442866 | M182: G | N182: G | O182: G | P182: | | Q182: . | R182: . | S182: .
A183: 1 | B183: 1 | C183: 11 | D183: =INDEX(Assump!$C$30:$N$30,$A183)*INDEX(Assump!$C$56:$FN$56,($B183-1)*Hrs_in_dy+$C183) -> 0.6404783353 | E183: =INDEX(ePrice!$F184:$K184,P_Off)*EPrice_Fac -> 164.3180275 | F183: 15.55141825 | H183: 15.55141825 | I183: 13.4789883 | J183: 1.744851 | K183: 181.6863089 | L183: 73.07442866 | M183: G | N183: G | O183: G | P183: | | Q183: . | R183: . | S183: .
A184: 1 | B184: 1 | C184: 12 | D184: =INDEX(Assump!$C$30:$N$30,$A184)*INDEX(Assump!$C$56:$FN$56,($B184-1)*Hrs_in_dy+$C184) -> 0.6404783353 | E184: =INDEX(ePrice!$F185:$K185,P_Off)*EPrice_Fac -> 196.4591175 | F184: 15.55141825 | H184: 15.55141825 | I184: 13.4789883 | J184: 1.744851 | K184: 214.1520563 | L184: 73.07442866 | M184: G | N184: G | O184: G | P184: | | Q184: . | R184: . | S184: .
A185: 1 | B185: 1 | C185: 13 | D185: =INDEX(Assump!$C$30:$N$30,$A185)*INDEX(Assump!$C$56:$FN$56,($B185-1)*Hrs_in_dy+$C185) -> 0.6404783353 | E185: =INDEX(ePrice!$F186:$K186,P_Off)*EPrice_Fac -> 183.7375718 | F185: 15.55141825 | H185: 15.55141825 | I185: 13.4789883 | J185: 1.744851 | K185: 201.3020101 | L185: 73.07442866 | M185: G | N185: G | O185: G | P185: | | Q185: . | R185: . | S185: .
A186: 1 | B186: 1 | C186: 14 | D186: =INDEX(Assump!$C$30:$N$30,$A186)*INDEX(Assump!$C$56:$FN$56,($B186-1)*Hrs_in_dy+$C186) -> 0.6404783353 | E186: =INDEX(ePrice!$F187:$K187,P_Off)*EPrice_Fac -> 170.1090054 | F186: 15.55141825 | H186: 15.55141825 | I186: 13.4789883 | J186: 1.744851 | K186: 187.5357815 | L186: 73.07442866 | M186: G | N186: G | O186: G | P186: | | Q186: . | R186: . | S186: .
A187: 1 | B187: 1 | C187: 15 | D187: =INDEX(Assump!$C$30:$N$30,$A187)*INDEX(Assump!$C$56:$FN$56,($B187-1)*Hrs_in_dy+$C187) -> 0.6404783353 | E187: =INDEX(ePrice!$F188:$K188,P_Off)*EPrice_Fac -> 164.9614695 | F187: 15.55141825 | H187: 15.55141825 | I187: 13.4789883 | J187: 1.744851 | K187: 182.3362503 | L187: 73.07442866 | M187: G | N187: G | O187: G | P187: | | Q187: . | R187: . | S187: .
A188: 1 | B188: 1 | C188: 16 | D188: =INDEX(Assump!$C$30:$N$30,$A188)*INDEX(Assump!$C$56:$FN$56,($B188-1)*Hrs_in_dy+$C188) -> 0.6404783353 | E188: =INDEX(ePrice!$F189:$K189,P_Off)*EPrice_Fac -> 189.613825 | F188: 15.55141825 | H188: 15.55141825 | I188: 13.4789883 | J188: 1.744851 | K188: 207.2376195 | L188: 73.07442866 | M188: G | N188: G | O188: G | P188: | | Q188: . | R188: . | S188: .
A189: 1 | B189: 1 | C189: 17 | D189: =INDEX(Assump!$C$30:$N$30,$A189)*INDEX(Assump!$C$56:$FN$56,($B189-1)*Hrs_in_dy+$C189) -> 0.6404783353 | E189: =INDEX(ePrice!$F190:$K190,P_Off)*EPrice_Fac -> 206.0254718 | F189: 15.55141825 | H189: 15.55141825 | I189: 13.4789883 | J189: 1.744851 | K189: 223.8150404 | L189: 73.07442866 | M189: G | N189: G | O189: G | P189: | | Q189: . | R189: . | S189: .
A190: 1 | B190: 1 | C190: 18 | D190: =INDEX(Assump!$C$30:$N$30,$A190)*INDEX(Assump!$C$56:$FN$56,($B190-1)*Hrs_in_dy+$C190) -> 0.6404783353 | E190: =INDEX(ePrice!$F191:$K191,P_Off)*EPrice_Fac -> 191.7069496 | F190: 15.55141825 | H190: 15.55141825 | I190: 13.4789883 | J190: 1.744851 | K190: 209.3518867 | L190: 73.07442866 | M190: G | N190: G | O190: G | P190: | | Q190: . | R190: . | S190: .
A191: 1 | B191: 1 | C191: 19 | D191: =INDEX(Assump!$C$30:$N$30,$A191)*INDEX(Assump!$C$56:$FN$56,($B191-1)*Hrs_in_dy+$C191) -> 0.6404783353 | E191: =INDEX(ePrice!$F192:$K192,P_Off)*EPrice_Fac -> 178.3032003 | F191: 15.55141825 | H191: 15.55141825 | I191: 13.4789883 | J191: 1.744851 | K191: 195.812746 | L191: 73.07442866 | M191: G | N191: G | O191: G | P191: | | Q191: . | R191: . | S191: .
A192: 1 | B192: 1 | C192: 20 | D192: =INDEX(Assump!$C$30:$N$30,$A192)*INDEX(Assump!$C$56:$FN$56,($B192-1)*Hrs_in_dy+$C192) -> 0.6404783353 | E192: =INDEX(ePrice!$F193:$K193,P_Off)*EPrice_Fac -> 169.5275819 | F192: 15.55141825 | H192: 15.55141825 | I192: 13.4789883 | J192: 1.744851 | K192: 186.948485 | L192: 73.07442866 | M192: G | N192: G | O192: G | P192: | | Q192: . | R192: . | S192: .
A193: 1 | B193: 1 | C193: 21 | D193: =INDEX(Assump!$C$30:$N$30,$A193)*INDEX(Assump!$C$56:$FN$56,($B193-1)*Hrs_in_dy+$C193) -> 0.6404783353 | E193: =INDEX(ePrice!$F194:$K194,P_Off)*EPrice_Fac -> 168.9771677 | F193: 15.55141825 | H193: 15.55141825 | I193: 13.4789883 | J193: 1.744851 | K193: 186.392511 | L193: 73.07442866 | M193: G | N193: G | O193: G | P193: | | Q193: . | R193: . | S193: .
A194: 1 | B194: 1 | C194: 22 | D194: =INDEX(Assump!$C$30:$N$30,$A194)*INDEX(Assump!$C$56:$FN$56,($B194-1)*Hrs_in_dy+$C194) -> 0.6404783353 | E194: =INDEX(ePrice!$F195:$K195,P_Off)*EPrice_Fac -> 199.4902719 | F194: 15.55141825 | H194: 15.55141825 | I194: 13.4789883 | J194: 1.744851 | K194: 217.2138284 | L194: 73.07442866 | M194: G | N194: G | O194: G | P194: | | Q194: . | R194: . | S194: .
A195: 1 | B195: 1 | C195: 23 | D195: =INDEX(Assump!$C$30:$N$30,$A195)*INDEX(Assump!$C$56:$FN$56,($B195-1)*Hrs_in_dy+$C195) -> 0.6404783353 | E195: =INDEX(ePrice!$F196:$K196,P_Off)*EPrice_Fac -> 209.1419016 | F195: 15.55141825 | H195: 15.55141825 | I195: 13.4789883 | J195: 1.744851 | K195: 226.9629494 | L195: 73.07442866 | M195: G | N195: G | O195: G | P195: | | Q195: . | R195: . | S195: .
A196: 1 | B196: 1 | C196: 24 | D196: =INDEX(Assump!$C$30:$N$30,$A196)*INDEX(Assump!$C$56:$FN$56,($B196-1)*Hrs_in_dy+$C196) -> 0.6404783353 | E196: =INDEX(ePrice!$F197:$K197,P_Off)*EPrice_Fac -> 176.2720943 | F196: 15.55141825 | H196: 15.55141825 | I196: 13.4789883 | J196: 1.744851 | K196: 193.7611238 | L196: 73.07442866 | M196: G | N196: G | O196: G | P196: | | Q196: . | R196: . | S196: .
A197: 1 | B197: 2 | C197: 1 | D197: =INDEX(Assump!$C$30:$N$30,$A197)*INDEX(Assump!$C$56:$FN$56,($B197-1)*Hrs_in_dy+$C197) -> 0.6404783353 | E197: =INDEX(ePrice!$F198:$K198,P_Off)*EPrice_Fac -> 156.4726867 | F197: =Nwk_Elec_Var -> 15.55141825 | H197: 15.55141825 | I197: =IF(Other_fuel="Gas", CHOOSE(Gas_price_option,Other_fuel_price_wholesale_flex,Gas_elec_m*$E197+Gas_elec_c), Other_fuel_price_wholesale_flex) -> 13.4789883 | J197: =IF(Other_fuel="Gas",Nwk_Gas_Var,0) -> 1.744851 | K197: 173.7617222 | L197: 73.07442866 | M197: =IF(K197<L197,ID_E,ID_O) -> G | N197: =IF($C197=1,IF(SUM($D197:$D220)=0,".",IF(SUMPRODUCT($K197:$K220,$D197:$D220)<SUMPRODUCT($L197:$L220,$D197:$D220),ID_E,ID_O)),N196) -> G | O197: =IF(SUM($B197:$C197)=2,IF(SUMPRODUCT($K197:$K364,$D197:$D364)<SUMPRODUCT($L197:$L364,$D197:$D364),ID_E,ID_O),O196) -> G | P197: | | Q197: =IF($C197=1,SUMIFS($D197:$D220,M197:M220,ID_O),".") -> 14.73100171 | R197: =IF($C197=1,SUMIFS($D197:$D220,N197:N220,ID_O),".") -> 15.37148005 | S197: =IF($C197=1,SUMIFS($D197:$D220,O197:O220,ID_O),".") -> 15.37148005
A198: 1 | B198: 2 | C198: 2 | D198: =INDEX(Assump!$C$30:$N$30,$A198)*INDEX(Assump!$C$56:$FN$56,($B198-1)*Hrs_in_dy+$C198) -> 0.6404783353 | E198: =INDEX(ePrice!$F199:$K199,P_Off)*EPrice_Fac -> 169.7756559 | F198: 15.55141825 | H198: =SUM($F198:$G198) -> 15.55141825 | I198: 13.4789883 | J198: 1.744851 | K198: =SUM(E198,H198)/COP_Elec -> 187.1990648 | L198: =SUM(I198:J198)*GJ_MWh/COP_Other -> 73.07442866 | M198: G | N198: G | O198: G | P198: | | Q198: . | R198: . | S198: .
A199: 1 | B199: 2 | C199: 3 | D199: =INDEX(Assump!$C$30:$N$30,$A199)*INDEX(Assump!$C$56:$FN$56,($B199-1)*Hrs_in_dy+$C199) -> 0.6404783353 | E199: =INDEX(ePrice!$F200:$K200,P_Off)*EPrice_Fac -> 149.8289544 | F199: 15.55141825 | H199: 15.55141825 | I199: 13.4789883 | J199: 1.744851 | K199: 167.0508815 | L199: 73.07442866 | M199: G | N199: G | O199: G | P199: | | Q199: . | R199: . | S199: .
A200: 1 | B200: 2 | C200: 4 | D200: =INDEX(Assump!$C$30:$N$30,$A200)*INDEX(Assump!$C$56:$FN$56,($B200-1)*Hrs_in_dy+$C200) -> 0.6404783353 | E200: =INDEX(ePrice!$F201:$K201,P_Off)*EPrice_Fac -> 144.123252 | F200: 15.55141825 | H200: 15.55141825 | I200: 13.4789883 | J200: 1.744851 | K200: 161.2875457 | L200: 73.07442866 | M200: G | N200: G | O200: G | P200: | | Q200: . | R200: . | S200: .
... 4300 more rows

Sheet Out
C1: Single fuel | E1: Dual-fuel
B2: Option: | C2: =Other_fuel -> Gas | D2: Elec | E2: Hourly | F2: Daily | G2: Weekly
A3: Operating patterns
A4: Capacity factors | B4: Elec | D4: =AVERAGE(Prof_Ar) -> 0.6228570452 | E4: =AVERAGE(Prof_Ar)*SUM(IF(ISNUMBER(Prof_Ar),IF(Calc!M$4:M$22181=ID_E,Prof_Ar)))/SUM(Prof_Ar) -> 0.1461155766 | F4: =AVERAGE(Prof_Ar)*SUM(IF(ISNUMBER(Prof_Ar),IF(Calc!N$4:N$22181=ID_E,Prof_Ar)))/SUM(Prof_Ar) -> 0.1201589909 | G4: =AVERAGE(Prof_Ar)*SUM(IF(ISNUMBER(Prof_Ar),IF(Calc!O$4:O$22181=ID_E,Prof_Ar)))/SUM(Prof_Ar) -> 0.1089839807
B5: =Other_fuel -> Gas | C5: =AVERAGE(Prof_Ar) -> 0.6228570452 | E5: =AVERAGE(Prof_Ar)*SUM(IF(ISNUMBER(Prof_Ar),IF(Calc!M$4:M$22181=ID_O,Prof_Ar)))/SUM(Prof_Ar) -> 0.4767414686 | F5: =AVERAGE(Prof_Ar)*SUM(IF(ISNUMBER(Prof_Ar),IF(Calc!N$4:N$22181=ID_O,Prof_Ar)))/SUM(Prof_Ar) -> 0.5026980542 | G5: =AVERAGE(Prof_Ar)*SUM(IF(ISNUMBER(Prof_Ar),IF(Calc!O$4:O$22181=ID_O,Prof_Ar)))/SUM(Prof_Ar) -> 0.5138730644
B6: Total (check) | C6: =SUM(C4:C5) -> 0.6228570452 | D6: =SUM(D4:D5) -> 0.6228570452 | E6: =SUM(E4:E5) -> 0.6228570452 | F6: =SUM(F4:F5) -> 0.6228570452 | G6: =SUM(G4:G5) -> 0.6228570452
A8: Elec prop'n of operation | C8: =C4/SUM(C4:C5) -> 0 | D8: =D4/SUM(D4:D5) -> 1 | E8: =E4/SUM(E4:E5) -> 0.2345892652 | F8: =F4/SUM(F4:F5) -> 0.1929158414 | G8: =G4/SUM(G4:G5) -> 0.1749743084
A10: Wholesale + Nwk UoS costs ($k)
A11: Wholesale | B11: Elec | D11: =SUM(IF(ISNUMBER(Prof_Ar),Prof_Ar*Elec_Whl_Ar))*Heat_load/COP_Elec/Num_hrs*Hrs_in_yr/1000 -> 5598.08543 | E11: =SUM(IF(ISNUMBER(Prof_Ar),IF(Calc!M$4:M$22181=ID_E,Prof_Ar*Elec_Whl_Ar)))*Heat_load/COP_Elec/Num_hrs*Hrs_in_yr/1000 -> 440.2487072 | F11: =SUM(IF(ISNUMBER(Prof_Ar),IF(Calc!N$4:N$22181=ID_E,Prof_Ar*Elec_Whl_Ar)))*Heat_load/COP_Elec/Num_hrs*Hrs_in_yr/1000 -> 427.0646009 | G11: =SUM(IF(ISNUMBER(Prof_Ar),IF(Calc!O$4:O$22181=ID_E,Prof_Ar*Elec_Whl_Ar)))*Heat_load/COP_Elec/Num_hrs*Hrs_in_yr/1000 -> 434.1390803
B12: =Other_fuel -> Gas | C12: =IF(Other_fuel="Gas", CHOOSE(Gas_price_option, Other_fuel_price_wholesale_inflex*GJ_MWh*Heat_load/COP_Other*Hrs_in_yr*C5/1000, SUM(IF(ISNUMBER(Prof_Ar),Prof_Ar*OtherFuel_Whl_Ar))*GJ_MWh*Heat_load/COP_Other/Num_hrs*Hrs_in_yr/1000), Other_fuel_price_wholesale_inflex*GJ_MWh*Heat_load/COP_Other*Hrs_in_yr*C5/1000) -> 6130.368057 | E12: =SUM(IF(ISNUMBER(Prof_Ar),IF(Calc!M$4:M$22181=ID_O,Prof_Ar*OtherFuel_Whl_Ar)))*GJ_MWh*Heat_load/COP_Other/Num_hrs*Hrs_in_yr/1000 -> 2703.77806 | F12: =SUM(IF(ISNUMBER(Prof_Ar),IF(Calc!N$4:N$22181=ID_O,Prof_Ar*OtherFuel_Whl_Ar)))*GJ_MWh*Heat_load/COP_Other/Num_hrs*Hrs_in_yr/1000 -> 2850.987505 | G12: =SUM(IF(ISNUMBER(Prof_Ar),IF(Calc!O$4:O$22181=ID_O,Prof_Ar*OtherFuel_Whl_Ar)))*GJ_MWh*Heat_load/COP_Other/Num_hrs*Hrs_in_yr/1000 -> 2914.365141
B13: Total | C13: =SUM(C11:C12) -> 6130.368057 | D13: =SUM(D11:D12) -> 5598.08543 | E13: =SUM(E11:E12) -> 3144.026767 | F13: =SUM(F11:F12) -> 3278.052106 | G13: =SUM(G11:G12) -> 3348.504221
A15: Elec network | B15: Variable | C15: 0 | D15: =SUM(IF(ISNUMBER(Prof_Ar),Prof_Ar*Elec_Nwk_Ar))*Heat_load/COP_Elec/Num_hrs*Hrs_in_yr/1000 -> 857.6552767 | E15: =SUM(IF(ISNUMBER(Prof_Ar),IF(Calc!M$4:M$22181=ID_E,Prof_Ar*Elec_Nwk_Ar)))*Heat_load/COP_Elec/Num_hrs*Hrs_in_yr/1000 -> 201.1967212 | F15: =SUM(IF(ISNUMBER(Prof_Ar),IF(Calc!N$4:N$22181=ID_E,Prof_Ar*Elec_Nwk_Ar)))*Heat_load/COP_Elec/Num_hrs*Hrs_in_yr/1000 -> 165.4552893 | G15: =SUM(IF(ISNUMBER(Prof_Ar),IF(Calc!O$4:O$22181=ID_E,Prof_Ar*Elec_Nwk_Ar)))*Heat_load/COP_Elec/Num_hrs*Hrs_in_yr/1000 -> 150.0676389
B16: Fixed | C16: 0 | D16: =Nwk_Elec_Fix/1000 -> 13.8 | E16: =Nwk_Elec_Fix/1000 -> 13.8 | F16: =Nwk_Elec_Fix/1000 -> 13.8 | G16: =Nwk_Elec_Fix/1000 -> 13.8
B17: Capacity | C17: 0 | D17: =Nwk_Elec_Cap*Elec_Cap/1000 -> 0.4014242424 | E17: =Nwk_Elec_Cap*Elec_Cap/1000 -> 0.4014242424 | F17: =Nwk_Elec_Cap*Elec_Cap/1000 -> 0.4014242424 | G17: =Nwk_Elec_Cap*Elec_Cap/1000 -> 0.4014242424
B18: AMD | C18: 0 | D18: =Nwk_Elec_AMD*Elec_AMD/1000 -> 0 | E18: =Nwk_Elec_AMD*Elec_AMD/1000 -> 0 | F18: =Nwk_Elec_AMD*Elec_AMD/1000 -> 0 | G18: =Nwk_Elec_AMD*Elec_AMD/1000 -> 0
B19: CPD | C19: 0 | D19: =SUM(Nwk_Elec_CPD_Sum*Elec_CPD_Sum,Nwk_Elec_CPD_Win*Elec_CPD_Win)/1000 -> 0.4789235602 | E19: =SUM(Nwk_Elec_CPD_Sum*Elec_CPD_Sum,Nwk_Elec_CPD_Win*Elec_CPD_Win)/1000 -> 0.4789235602 | F19: =SUM(Nwk_Elec_CPD_Sum*Elec_CPD_Sum,Nwk_Elec_CPD_Win*Elec_CPD_Win)/1000 -> 0.4789235602 | G19: =SUM(Nwk_Elec_CPD_Sum*Elec_CPD_Sum,Nwk_Elec_CPD_Win*Elec_CPD_Win)/1000 -> 0.4789235602
B20: Total | C20: =SUM(C15:C19) -> 0 | D20: =SUM(D15:D19) -> 872.3356245 | E20: =SUM(E15:E19) -> 215.877069 | F20: =SUM(F15:F19) -> 180.1356371 | G20: =SUM(G15:G19) -> 164.7479867
A22: =Other_fuel&" network" -> Gas network | B22: Variable | C22: =IF(Other_fuel="Gas",SUM(IF(ISNUMBER(Prof_Ar),Prof_Ar*OtherFuel_Nwk_Ar))*GJ_MWh*Heat_load/COP_Other/Num_hrs*Hrs_in_yr/1000,"na") -> 457.275087 | D22: 0 | E22: =IF(Other_fuel="Gas",SUM(IF(ISNUMBER(Prof_Ar),IF(Calc!M$4:M$22181=ID_O,Prof_Ar*OtherFuel_Nwk_Ar)))*GJ_MWh*Heat_load/COP_Other/Num_hrs*Hrs_in_yr/1000,"na") -> 350.0032603 | F22: =IF(Other_fuel="Gas",SUM(IF(ISNUMBER(Prof_Ar),IF(Calc!N$4:N$22181=ID_O,Prof_Ar*OtherFuel_Nwk_Ar)))*GJ_MWh*Heat_load/COP_Other/Num_hrs*Hrs_in_yr/1000,"na") -> 369.0594788 | G22: =IF(Other_fuel="Gas",SUM(IF(ISNUMBER(Prof_Ar),IF(Calc!O$4:O$22181=ID_O,Prof_Ar*OtherFuel_Nwk_Ar)))*GJ_MWh*Heat_load/COP_Other/Num_hrs*Hrs_in_yr/1000,"na") -> 377.2636949
B23: Capacity | C23: =IF(Other_fuel="Gas",Nwk_Gas_Cap*Gas_Cap/1000,"na") -> 88.51555556 | D23: 0 | E23: =IF(Other_fuel="Gas",Nwk_Gas_Cap*Gas_Cap/1000,"na") -> 88.51555556 | F23: =IF(Other_fuel="Gas",Nwk_Gas_Cap*Gas_Cap/1000,"na") -> 88.51555556 | G23: =IF(Other_fuel="Gas",Nwk_Gas_Cap*Gas_Cap/1000,"na") -> 88.51555556
B24: Fixed | C24: =IF(Other_fuel="Gas",Nwk_Gas_Fix*Days_in_yr/1000,"na") -> 0 | D24: 0 | E24: =IF(Other_fuel="Gas",Nwk_Gas_Fix*Days_in_yr/1000,"na") -> 0 | F24: =IF(Other_fuel="Gas",Nwk_Gas_Fix*Days_in_yr/1000,"na") -> 0 | G24: =IF(Other_fuel="Gas",Nwk_Gas_Fix*Days_in_yr/1000,"na") -> 0
B25: Total | C25: =SUM(C22:C24) -> 545.7906425 | D25: =SUM(D22:D24) -> 0 | E25: =SUM(E22:E24) -> 438.5188159 | F25: =SUM(F22:F24) -> 457.5750344 | G25: =SUM(G22:G24) -> 465.7792504
A27: Wholesale + Nwk | C27: =SUM(C$13,C$20,C$25) -> 6676.158699 | D27: =SUM(D$13,D$20,D$25) -> 6470.421054 | E27: =SUM(E$13,E$20,E$25) -> 3798.422652 | F27: =SUM(F$13,F$20,F$25) -> 3915.762777 | G27: =SUM(G$13,G$20,G$25) -> 3979.031458
A30: Average variable/variablised prices - for cross-checking purposes
A31: Wholesale (incl. carbon)
A32: Elec ($/MWh) | C32: =IF(C4>0,C11*1000/(Heat_load/COP_Elec*Hrs_in_yr*C4),".") -> . | D32: =IF(D4>0,D11*1000/(Heat_load/COP_Elec*Hrs_in_yr*D4),".") -> 101.5071792 | E32: =IF(E4>0,E11*1000/(Heat_load/COP_Elec*Hrs_in_yr*E4),".") -> 34.0288437 | F32: =IF(F4>0,F11*1000/(Heat_load/COP_Elec*Hrs_in_yr*F4),".") -> 40.14051322 | G32: =IF(G4>0,G11*1000/(Heat_load/COP_Elec*Hrs_in_yr*G4),".") -> 44.98956913
A33: =Other_fuel&" ($/GJ)" -> Gas ($/GJ) | C33: =IF(C12>0,C12*1000/(GJ_MWh*Heat_load/COP_Other*Hrs_in_yr*C5),".") -> 23.392 | D33: =IF(D12>0,D12*1000/(GJ_MWh*Heat_load/COP_Other*Hrs_in_yr*D5),".") -> . | E33: =IF(E12>0,E12*1000/(GJ_MWh*Heat_load/COP_Other*Hrs_in_yr*E5),".") -> 13.4789883 | F33: =IF(F12>0,F12*1000/(GJ_MWh*Heat_load/COP_Other*Hrs_in_yr*F5),".") -> 13.4789883 | G33: =IF(G12>0,G12*1000/(GJ_MWh*Heat_load/COP_Other*Hrs_in_yr*G5),".") -> 13.4789883
A35: Network
A36: Electricity ($/MWh) | B36: =B15 -> Variable | C36: . | D36: =D15*1000/(Heat_load/COP_Elec*Hrs_in_yr*D$4) -> 15.55141825 | E36: 15.55141825 | F36: 15.55141825 | G36: 15.55141825
B37: Fixed | C37: . | D37: 0.2502282416 | E37: 1.066665354 | F37: 1.297084987 | G37: 1.430085616
B38: Capacity | C38: . | D38: 0.007278817559 | E38: 0.03102792258 | F38: 0.03773053321 | G38: 0.04159935035
B39: AMD | C39: . | D39: 0 | E39: 0 | F39: 0 | G39: 0
B40: CPD | C40: . | D40: 0.008684072487 | E40: 0.03701820064 | F40: 0.04501482318 | G40: 0.04963055757
B41: Total | C41: . | D41: 15.81760938 | E41: 16.68612972 | F41: 16.93124859 | G41: 17.07273377
A43: =Other_fuel &" ($/GJ)" -> Gas ($/GJ) | B43: =B22 -> Variable | C43: =IF(Other_fuel="Gas",IF(C22>0,C22*1000/(GJ_MWh*Heat_load/COP_Other*Hrs_in_yr*C$5),"."),"na") -> 1.744851 | D43: . | E43: 1.744851 | F43: 1.744851 | G43: 1.744851
B44: =B23 -> Capacity | C44: 0.3377539254 | D44: . | E44: 0.441271477 | F44: 0.4184866247 | G44: 0.4093859487
B45: Fixed | C45: . | D45: . | E45: . | F45: . | G45: .
B46: Total | C46: 2.082604925 | D46: . | E46: 2.186122477 | F46: 2.163337625 | G46: 2.154236949
A49: Financial evaluation
A50: Fuel costs present value ($m) | C50: =-PV(Disc_rate,Yrs,C$27/1000) -> 49.1371092 | D50: =-PV(Disc_rate,Yrs,D$27/1000) -> 47.62286222 | E50: =-PV(Disc_rate,Yrs,E$27/1000) -> 27.95672138 | F50: =-PV(Disc_rate,Yrs,F$27/1000) -> 28.82035491 | G50: =-PV(Disc_rate,Yrs,G$27/1000) -> 29.28601791
A52: Electro heating capex ($m) | C52: na | D52: =Electro_capex -> 1 | E52: =Electro_capex -> 1 | F52: =Electro_capex -> 1 | G52: =Electro_capex -> 1
A53: Electro heating non-fuel opex ($m/yr) | C53: na | D53: =Electro_Opex -> 0.05 | E53: =Electro_Opex -> 0.05 | F53: =Electro_Opex -> 0.05 | G53: =Electro_Opex -> 0.05
A54: Non-fuel opex present-value ($m) | C54: na | D54: =-PV(Disc_rate,Yrs,D53) -> 0.3680043526 | E54: =-PV(Disc_rate,Yrs,E53) -> 0.3680043526 | F54: =-PV(Disc_rate,Yrs,F53) -> 0.3680043526 | G54: =-PV(Disc_rate,Yrs,G53) -> 0.3680043526
A55: Electricity nwk upgrade costs ($m) | C55: na | D55: =ElecNwk_Upgrade_SingleFuel -> 3 | E55: =ElecNwk_Upgrade_DualFuel -> 1 | F55: =ElecNwk_Upgrade_DualFuel -> 1 | G55: =ElecNwk_Upgrade_DualFuel -> 1
A57: =Other_fuel&" boiler non-fuel opex ($m/yr)" -> Gas boiler non-fuel opex ($m/yr) | C57: =Combustion_Opex -> 0.05 | D57: na | E57: =Combustion_Opex -> 0.05 | F57: =Combustion_Opex -> 0.05 | G57: =Combustion_Opex -> 0.05
A58: Non-fuel opex PV ($m) | C58: =-PV(Disc_rate,Yrs,C57) -> 0.3680043526 | D58: na | E58: =-PV(Disc_rate,Yrs,E57) -> 0.3680043526 | F58: =-PV(Disc_rate,Yrs,F57) -> 0.3680043526 | G58: =-PV(Disc_rate,Yrs,G57) -> 0.3680043526
A60: Trading function costs ($m/yr) | C60: na | D60: na | E60: =Trading_function_costs -> 0.1 | F60: =Trading_function_costs -> 0.1 | G60: =Trading_function_costs -> 0.1
A61: Trading costs PV ($m) | C61: na | D61: na | E61: =-PV(Disc_rate,Yrs,E60) -> 0.7360087051 | F61: =-PV(Disc_rate,Yrs,F60) -> 0.7360087051 | G61: =-PV(Disc_rate,Yrs,G60) -> 0.7360087051
A63: Total PV ($m) | C63: =SUM(C50,C52,C54:C55,C58,C61) -> 49.50511355 | D63: 51.99086657 | E63: 31.42873879 | F63: 32.29237232 | G63: 32.75803532

Sheet Potential
A1: This tab presents some stand-alone high-level analysis about the theoretical potential for industrial dual-fuel sites to provide long-duration (eg, dry-year) flex to the electricity system
C2: Dairy | D2: Meat | E2: OthFood | F2: Wood | G2: Ag.
A3: 2023 Fuel consumption (PJ) | B3: Gas | C3: 13.45789302 | D3: 2.443428273 | E3: 3.083742316 | F3: 1.059592698 | G3: 1.0461101
B4: Coal | C4: 11.60421186 | D4: 1.479861993 | E4: 0.5423419289 | F4: 0.12734366 | G4: 1.612409125
A5: COP | B5: Gas | C5: 0.9 | D5: =$C5 -> 0.9 | E5: 0.9 | F5: 0.9 | G5: 0.9
B6: Coal | C6: 0.75 | D6: 0.75 | E6: 0.75 | F6: 0.75 | G6: 0.75
A7: Useful heat (PJ) | B7: Gas | C7: =C3*C5 -> 12.11210372 | D7: =D3*D5 -> 2.199085446 | E7: 2.775368084 | F7: 0.9536334278 | G7: 0.9414990899
B8: Coal | C8: =C4*C6 -> 8.703158896 | D8: =D4*D6 -> 1.109896494 | E8: 0.4067564467 | F8: 0.09550774503 | G8: 1.209306844
A10: Prop'n switching to biomass | B10: Gas | C10: 0.05 | D10: 0.05 | E10: 0.05 | F10: 0.05 | G10: 0.5
B11: Coal | C11: 0.5 | D11: 0.5 | E11: 0.5 | F11: 0.5 | G11: 0.5
A13: For electric | B13: Prop'n of useful heat from heat pump | C13: 0.2 | D13: 0.5 | E13: 0.5 | F13: 0.05 | G13: 1
A14: 0.98 | B14: HP COP | C14: 2.2 | D14: 2.5 | E14: 2.5 | F14: 2.2 | G14: 3
B15: Avg COP | C15: =C$13*C$14+(1-C$13)*$A$14 -> 1.224 | D15: =D$13*D$14+(1-D$13)*$A$14 -> 1.74 | E15: 1.74 | F15: 1.041 | G15: 3
B17: Demand red'n from efficiency | C17: 0.05 | D17: 0.05 | E17: 0.05 | F17: 0.05 | G17: 0.05
B18: Electric COP for electrification | C18: 8 | D18: 8 | E18: 8 | F18: 8 | G18: 8
B20: Resultant electricity demand that's potentially flexible (TWh)
B21: Gas | C21: =SUM(C7*(1-C10)*(1-C$17)/C$15,C3*(1-C10)*C$17/C$18)/GJ_MWh -> 2.502945453 | D21: 0.3208681806 | E21: 0.4049534816 | F21: 0.2314023494 | G21: 0.04231660647
B22: Coal | C22: 0.9482540364 | D22: 0.08544820952 | E22: 0.03131518142 | F22: 0.01221593653 | G22: 0.05458676725
B25: Within-year profile | C25: Dairy | D25: Flat | E25: Flat | F25: Flat | G25: Flat
B26: Average CF | C26: =AVERAGE(INDEX(Prof_WY_Ar,_xlfn.XMATCH(C$25,Prof_Nm_WY_Ar),1):INDEX(Prof_WY_Ar,_xlfn.XMATCH(C$25,Prof_Nm_WY_Ar),12)) -> 0.625651468 | D26: =AVERAGE(INDEX(Prof_WY_Ar,_xlfn.XMATCH(D$25,Prof_Nm_WY_Ar),1):INDEX(Prof_WY_Ar,_xlfn.XMATCH(D$25,Prof_Nm_WY_Ar),12)) -> 1 | E26: =AVERAGE(INDEX(Prof_WY_Ar,_xlfn.XMATCH(E$25,Prof_Nm_WY_Ar),1):INDEX(Prof_WY_Ar,_xlfn.XMATCH(E$25,Prof_Nm_WY_Ar),12)) -> 1 | F26: =AVERAGE(INDEX(Prof_WY_Ar,_xlfn.XMATCH(F$25,Prof_Nm_WY_Ar),1):INDEX(Prof_WY_Ar,_xlfn.XMATCH(F$25,Prof_Nm_WY_Ar),12)) -> 1 | G26: =AVERAGE(INDEX(Prof_WY_Ar,_xlfn.XMATCH(G$25,Prof_Nm_WY_Ar),1):INDEX(Prof_WY_Ar,_xlfn.XMATCH(G$25,Prof_Nm_WY_Ar),12)) -> 1
A27: Month | B27: 7 | C27: =INDEX(Prof_WY_Ar,_xlfn.XMATCH(C$25,Prof_Nm_WY_Ar),$B27) -> 0.2663101963 | D27: =INDEX(Prof_WY_Ar,_xlfn.XMATCH(D$25,Prof_Nm_WY_Ar),$B27) -> 1 | E27: =INDEX(Prof_WY_Ar,_xlfn.XMATCH(E$25,Prof_Nm_WY_Ar),$B27) -> 1 | F27: =INDEX(Prof_WY_Ar,_xlfn.XMATCH(F$25,Prof_Nm_WY_Ar),$B27) -> 1 | G27: =INDEX(Prof_WY_Ar,_xlfn.XMATCH(G$25,Prof_Nm_WY_Ar),$B27) -> 1
B28: 8 | C28: =INDEX(Prof_WY_Ar,_xlfn.XMATCH(C$25,Prof_Nm_WY_Ar),$B28) -> 0.6990424916 | D28: =INDEX(Prof_WY_Ar,_xlfn.XMATCH(D$25,Prof_Nm_WY_Ar),$B28) -> 1 | E28: =INDEX(Prof_WY_Ar,_xlfn.XMATCH(E$25,Prof_Nm_WY_Ar),$B28) -> 1 | F28: =INDEX(Prof_WY_Ar,_xlfn.XMATCH(F$25,Prof_Nm_WY_Ar),$B28) -> 1 | G28: =INDEX(Prof_WY_Ar,_xlfn.XMATCH(G$25,Prof_Nm_WY_Ar),$B28) -> 1
B29: Avg | C29: =AVERAGE(C27:C28) -> 0.4826763439 | D29: =AVERAGE(D27:D28) -> 1 | E29: 1 | F29: 1 | G29: 1
A31: Avg MW potentially deliverable | B31: Gas | C31: =C21*1000000/Days_in_yr*C$29/C$26/Hrs_in_dy -> 220.2852183 | D31: 36.60471888 | E31: 46.19719016 | F31: 26.39843544 | G31: 4.8274886
B32: Coal | C32: 83.45621242 | D32: 9.747952205 | E32: 3.572443396 | F32: 1.393596965 | G32: 6.22727148
A34: Efficiency advantage relative to powergeneration
C35: Power generator | E35: Competing industrial boiler
C36: Heat rate (GJ/MWh) | D36: Efficiency | F36: Efficiency | G36: Difference in heat rate (GJ/MWh) | H36: Fuel price, ex-carbon ($/GJ) | I36: Carbon price ($/tCO2) | J36: Emissions intensity (tCO2/GJ) | K36: Value ($/MWh)
B37: CCGT | C37: 7.2 | D37: =GJ_MWh/C37 -> 0.5 | E37: Gas | F37: =_xlfn.XLOOKUP(E37,$B$5:$B$6,$C$5:$C$6) -> 0.9 | G37: =GJ_MWh/(F37-D37) -> 9 | H37: 13 | I37: 100 | J37: =CO2_Gas -> 0.053 | K37: =G37*SUM(H37,I37*J37) -> 164.7
B38: OCGT | C38: 10 | D38: =GJ_MWh/C38 -> 0.36 | E38: Gas | F38: 0.9 | G38: =GJ_MWh/(F38-D38) -> 6.666666667 | H38: 15 | I38: =I37 -> 100 | J38: =CO2_Gas -> 0.053 | K38: =G38*SUM(H38,I38*J38) -> 135.3333333
B39: Rankine | C39: 10.5 | D39: =GJ_MWh/C39 -> 0.3428571429 | E39: Coal | F39: 0.75 | G39: =GJ_MWh/(F39-D39) -> 8.842105263 | H39: 11 | I39: 100 | J39: =CO2_Coal -> 0.0891 | K39: 176.0463158
C41: Coal | D41: Gas
B42: Boiler capex ($/kW_use) | C42: 2500 | D42: 600
A43: 0.015 | B43: Non-fuel opex ($/kW_use/yr) | C43: =C$42*$A43 -> 37.5 | D43: 9
A44: =1/40 -> 0.025 | B44: SIB capex ($/kW_use/yr) | C44: 62.5 | D44: 15
B45: Total fixed costs ($/kW_use/yr) | C45: =SUM(C43:C44) -> 100 | D45: =SUM(D43:D44) -> 24
A48: 0.15 | B48: Capacity factor of operation | C48: =C$45*1000/(Hrs_in_yr*$A48) -> 76.05349298 | D48: =D$45*1000/(Hrs_in_yr*$A48) -> 18.25283832

Sheet Bk (hidden)
A1: Dual_Fuel_Econ_06
A3: Flexible fuel price for iteration | B3: 10.0869883
